Workbook

Sheet Main
B10: 2020-12-02
B12: Sheet No. | C12: Template Name | D12: Summary
B13: 1 | C13: Future Intra | D13: For Intraday trading in F&O segment
B14: 2 | C14: Cash Intra | D14: For Intraday trading in cash market segment
B15: 3 | C15: Mid-cap Intra | D15: For Intraday trading in Mid-cap stocks
B16: 4 | C16: Bulk Deals | D16: Reveals Bulk Deals carried on NSE & BSE
B17: 5 | C17: Call Tracker
K27: `

Sheet Future Intra
M5: Back to Main Page
A6: FOR INTRA DAY TRADING | L6: =Main!B10 -> 2020-12-02
A9: Sr.no | B9: Sector | C9: Scrip | D9: CLOSE RATE | E9: Pivot Point | F9: Supports | I9: Resistances
B10: Sector | D10: Point | E10: Point | F10: S1 | G10: S2 | H10: S3 | I10: R1 | J10: R2 | K10: R3 | L10: HIGH | M10: LOW | N10: OI | O10: % Change in OI
A11: 1 | B11: Index | C11: BANKNIFTY | D11: 29892.20 | E11: 29802.72 | F11: 29615.43 | G11: 29338.67 | H11: 29151.38 | I11: 30079.48 | J11: 30266.77 | K11: 30543.53 | L11: 29990 | M11: 29525.95 | N11: 1567250 | O11: 3.62%
A12: 2 | B12: Index | C12: NIFTY | D12: 13143.40 | E12: 13101.53 | F12: 13034.72 | G12: 12926.03 | H12: 12859.22 | I12: 13210.22 | J12: 13277.03 | K12: 13385.72 | L12: 13168.35 | M12: 12992.85 | N12: 12660450 | O12: -0.22%
A13: 3 | B13: Cement | C13: ACC | D13: 1727.05 | E13: 1734.32 | F13: 1690.83 | G13: 1654.62 | H13: 1611.13 | I13: 1770.53 | J13: 1814.02 | K13: 1850.23 | L13: 1777.8 | M13: 1698.1 | N13: 2275000 | O13: 8.15%
A14: 4 | B14: Others | C14: ADANIENT | D14: 424.50 | E14: 416.07 | F14: 405.58 | G14: 386.67 | H14: 376.18 | I14: 434.98 | J14: 445.47 | K14: 464.38 | L14: 426.55 | M14: 397.15 | N14: 18664000 | O14: 6.35%
A15: 5 | B15: Others | C15: ADANIPORTS | D15: 424.70 | E15: 421.25 | F15: 415.70 | G15: 406.70 | H15: 401.15 | I15: 430.25 | J15: 435.80 | K15: 444.80 | L15: 426.8 | M15: 412.25 | N15: 52732500 | O15: -1.95%
A16: 6 | B16: Automobile | C16: AMARAJABAT | D16: 910.00 | E16: 915.58 | F16: 898.72 | G16: 887.43 | H16: 870.57 | I16: 926.87 | J16: 943.73 | K16: 955.02 | L16: 932.45 | M16: 904.3 | N16: 1296000 | O16: 6.40%
A17: 7 | B17: Cement | C17: AMBUJACEM | D17: 262.90 | E17: 265.03 | F17: 259.62 | G17: 256.33 | H17: 250.92 | I17: 268.32 | J17: 273.73 | K17: 277.02 | L17: 270.45 | M17: 261.75 | N17: 15429000 | O17: 5.80%
A18: 8 | B18: Others | C18: APOLLOHOSP | D18: 2434.25 | E18: 2407.07 | F18: 2365.13 | G18: 2296.02 | H18: 2254.08 | I18: 2476.18 | J18: 2518.12 | K18: 2587.23 | L18: 2449 | M18: 2337.95 | N18: 2262500 | O18: 15.02%
A19: 9 | B19: Automobile | C19: APOLLOTYRE | D19: 187.65 | E19: 186.55 | F19: 184.45 | G19: 181.25 | H19: 179.15 | I19: 189.75 | J19: 191.85 | K19: 195.05 | L19: 188.65 | M19: 183.35 | N19: 9265000 | O19: -3.19%
A20: 10 | B20: Automobile | C20: ASHOKLEY | D20: 93.10 | E20: 93.05 | F20: 91.70 | G20: 90.30 | H20: 88.95 | I20: 94.45 | J20: 95.80 | K20: 97.20 | L20: 94.4 | M20: 91.65 | N20: 34821000 | O20: 5.28%
A21: 11 | B21: FMCG | C21: ASIANPAINT | D21: 2234.60 | E21: 2230.05 | F21: 2204.65 | G21: 2174.70 | H21: 2149.30 | I21: 2260.00 | J21: 2285.40 | K21: 2315.35 | L21: 2255.45 | M21: 2200.1 | N21: 4308600 | O21: -0.12%
A22: 12 | B22: Pharma | C22: AUROPHARMA | D22: 900.40 | E22: 891.85 | F22: 879.95 | G22: 859.50 | H22: 847.60 | I22: 912.30 | J22: 924.20 | K22: 944.65 | L22: 903.75 | M22: 871.4 | N22: 11323000 | O22: -2.36%
A23: 13 | B23: Banking | C23: AXISBANK | D23: 607.25 | E23: 606.98 | F23: 599.62 | G23: 591.98 | H23: 584.62 | I23: 614.62 | J23: 621.98 | K23: 629.62 | L23: 614.35 | M23: 599.35 | N23: 51318000 | O23: 0.15%
A24: 14 | B24: Automobile | C24: BAJAJ-AUTO | D24: 3250.80 | E24: 3223.60 | F24: 3192.20 | G24: 3133.60 | H24: 3102.20 | I24: 3282.20 | J24: 3313.60 | K24: 3372.20 | L24: 3255 | M24: 3165 | N24: 1969250 | O24: -5.98%
A25: 15 | B25: Finance | C25: BAJAJFINSV | D25: 8789.05 | E25: 8795.98 | F25: 8736.12 | G25: 8683.18 | H25: 8623.32 | I25: 8848.92 | J25: 8908.78 | K25: 8961.72 | L25: 8855.85 | M25: 8743.05 | N25: 846750 | O25: -4.87%
A26: 16 | B26: Finance | C26: BAJFINANCE | D26: 4829.85 | E26: 4847.43 | F26: 4779.42 | G26: 4728.98 | H26: 4660.97 | I26: 4897.87 | J26: 4965.88 | K26: 5016.32 | L26: 4915.45 | M26: 4797 | N26: 6704250 | O26: 4.04%
A27: 17 | B27: Automobile | C27: BALKRISIND | D27: 1662.45 | E27: 1664.55 | F27: 1633.45 | G27: 1604.45 | H27: 1573.35 | I27: 1693.55 | J27: 1724.65 | K27: 1753.65 | L27: 1695.65 | M27: 1635.55 | N27: 1982000 | O27: -3.37%
A28: 18 | B28: Banking | C28: BANDHANBNK | D28: 377.75 | E28: 376.22 | F28: 369.58 | G28: 361.42 | H28: 354.78 | I28: 384.38 | J28: 391.02 | K28: 399.18 | L28: 382.85 | M28: 368.05 | N28: 10074600 | O28: -3.65%
A29: 19 | B29: Banking | C29: BANKBARODA | D29: 53.95 | E29: 53.28 | F29: 52.02 | G29: 50.08 | H29: 48.82 | I29: 55.22 | J29: 56.48 | K29: 58.42 | L29: 54.55 | M29: 51.35 | N29: 58554600 | O29: 0.13%
A30: 20 | B30: FMCG | C30: BATAINDIA | D30: 1550.05 | E30: 1552.62 | F30: 1525.38 | G30: 1500.72 | H30: 1473.48 | I30: 1577.28 | J30: 1604.52 | K30: 1629.18 | L30: 1579.85 | M30: 1527.95 | N30: 1041150 | O30: 3.50%
A31: 21 | B31: Capital_Goods | C31: BEL | D31: 112.20 | E31: 112.10 | F31: 110.80 | G31: 109.40 | H31: 108.10 | I31: 113.50 | J31: 114.80 | K31: 116.20 | L31: 113.4 | M31: 110.7 | N31: 29191600 | O31: 3.20%
A32: 22 | B32: FMCG | C32: BERGEPAINT | D32: 658.25 | E32: 655.83 | F32: 651.82 | G32: 645.38 | H32: 641.37 | I32: 662.27 | J32: 666.28 | K32: 672.72 | L32: 659.85 | M32: 649.4 | N32: 2428800 | O32: 2.51%
A33: 23 | B33: Automobile | C33: BHARATFORG | D33: 511.95 | E33: 509.63 | F33: 504.12 | G33: 496.28 | H33: 490.77 | I33: 517.47 | J33: 522.98 | K33: 530.82 | L33: 515.15 | M33: 501.8 | N33: 5539500 | O33: 0.49%
A34: 24 | B34: Telecom | C34: BHARTIARTL | D34: 482.00 | E34: 476.78 | F34: 468.07 | G34: 454.13 | H34: 445.42 | I34: 490.72 | J34: 499.43 | K34: 513.37 | L34: 485.5 | M34: 462.85 | N34: 93066429 | O34: -1.63%
A35: 25 | B35: Capital_Goods | C35: BHEL | D35: 34.35 | E35: 33.75 | F35: 32.85 | G35: 31.35 | H35: 30.45 | I35: 35.25 | J35: 36.15 | K35: 37.65 | L35: 34.65 | M35: 32.25 | N35: 89607000 | O35: 8.91%
A36: 26 | B36: Pharma | C36: BIOCON | D36: 435.55 | E36: 434.97 | F36: 430.63 | G36: 425.72 | H36: 421.38 | I36: 439.88 | J36: 444.22 | K36: 449.13 | L36: 439.3 | M36: 430.05 | N36: 11247000 | O36: -2.40%
A37: 27 | B37: Automobile | C37: BOSCHLTD | D37: 13308.65 | E37: 13119.88 | F37: 12869.77 | G37: 12430.88 | H37: 12180.77 | I37: 13558.77 | J37: 13808.88 | K37: 14247.77 | L37: 13370 | M37: 12681 | N37: 276100 | O37: 1.40%
A38: 28 | B38: Oil_Gas | C38: BPCL | D38: 381.05 | E38: 378.90 | F38: 375.05 | G38: 369.05 | H38: 365.20 | I38: 384.90 | J38: 388.75 | K38: 394.75 | L38: 382.75 | M38: 372.9 | N38: 20923200 | O38: -1.24%
A39: 29 | B39: FMCG | C39: BRITANNIA | D39: 3612.70 | E39: 3623.68 | F39: 3567.42 | G39: 3522.13 | H39: 3465.87 | I39: 3668.97 | J39: 3725.23 | K39: 3770.52 | L39: 3679.95 | M39: 3578.4 | N39: 1908000 | O39: 2.35%
A40: 30 | B40: Pharma | C40: CADILAHC | D40: 454.70 | E40: 452.57 | F40: 445.13 | G40: 435.57 | H40: 428.13 | I40: 462.13 | J40: 469.57 | K40: 479.13 | L40: 460 | M40: 443 | N40: 6987200 | O40: -4.08%
A41: 31 | B41: Banking | C41: CANBK | D41: 110.50 | E41: 108.60 | F41: 106.20 | G41: 101.90 | H41: 99.50 | I41: 112.90 | J41: 115.30 | K41: 119.60 | L41: 111 | M41: 104.3 | N41: 23118800 | O41: 26.82%
A42: 32 | B42: Finance | C42: CHOLAFIN | D42: 373.95 | E42: 376.90 | F42: 365.85 | G42: 357.75 | H42: 346.70 | I42: 385.00 | J42: 396.05 | K42: 404.15 | L42: 387.95 | M42: 368.8 | N42: 4715000 | O42: -10.49%
A43: 33 | B43: Pharma | C43: CIPLA | D43: 757.55 | E43: 756.32 | F43: 749.13 | G43: 740.72 | H43: 733.53 | I43: 764.73 | J43: 771.92 | K43: 780.33 | L43: 763.5 | M43: 747.9 | N43: 16376100 | O43: -4.71%
A44: 34 | B44: Others | C44: COALINDIA | D44: 127.05 | E44: 126.55 | F44: 125.45 | G44: 123.85 | H44: 122.75 | I44: 128.15 | J44: 129.25 | K44: 130.85 | L44: 127.65 | M44: 124.95 | N44: 30714200 | O44: -2.90%
A45: 35 | B45: Technology | C45: COFORGE | D45: 2470.45 | E45: 2451.08 | F45: 2412.32 | G45: 2354.18 | H45: 2315.42 | I45: 2509.22 | J45: 2547.98 | K45: 2606.12 | L45: 2489.85 | M45: 2392.95 | N45: 532125 | O45: -0.07%
A46: 36 | B46: FMCG | C46: COLPAL | D46: 1512.80 | E46: 1513.85 | F46: 1497.00 | G46: 1481.20 | H46: 1464.35 | I46: 1529.65 | J46: 1546.50 | K46: 1562.30 | L46: 1530.7 | M46: 1498.05 | N46: 2302300 | O46: -1.82%
A47: 37 | B47: Others | C47: CONCOR | D47: 410.85 | E47: 408.12 | F47: 401.73 | G47: 392.62 | H47: 386.23 | I47: 417.23 | J47: 423.62 | K47: 432.73 | L47: 414.5 | M47: 399 | N47: 5884695 | O47: 0.75%
A48: 38 | B48: Capital_Goods | C48: CUMMINSIND | D48: 574.30 | E48: 574.28 | F48: 562.77 | G48: 551.23 | H48: 539.72 | I48: 585.82 | J48: 597.33 | K48: 608.87 | L48: 585.8 | M48: 562.75 | N48: 1524000 | O48: 0.24%
A49: 39 | B49: FMCG | C49: DABUR | D49: 507.35 | E49: 505.73 | F49: 503.17 | G49: 498.98 | H49: 496.42 | I49: 509.92 | J49: 512.48 | K49: 516.67 | L49: 508.3 | M49: 501.55 | N49: 14785000 | O49: -4.57%
A50: 40 | B50: Pharma | C50: DIVISLAB | D50: 3638.70 | E50: 3658.18 | F50: 3576.17 | G50: 3513.63 | H50: 3431.62 | I50: 3720.72 | J50: 3802.73 | K50: 3865.27 | L50: 3740.2 | M50: 3595.65 | N50: 2855800 | O50: 4.75%
A51: 41 | B51: Realty | C51: DLF | D51: 195.55 | E51: 194.75 | F51: 191.00 | G51: 186.45 | H51: 182.70 | I51: 199.30 | J51: 203.05 | K51: 207.60 | L51: 198.5 | M51: 190.2 | N51: 28851900 | O51: 1.33%
A52: 42 | B52: Pharma | C52: DRREDDY | D52: 4859.40 | E52: 4863.57 | F52: 4822.03 | G52: 4784.67 | H52: 4743.13 | I52: 4900.93 | J52: 4942.47 | K52: 4979.83 | L52: 4905.1 | M52: 4826.2 | N52: 3728875 | O52: 2.25%
A53: 43 | B53: Automobile | C53: EICHERMOT | D53: 2547.20 | E53: 2559.07 | F53: 2525.13 | G53: 2503.07 | H53: 2469.13 | I53: 2581.13 | J53: 2615.07 | K53: 2637.13 | L53: 2593 | M53: 2537 | N53: 2249800 | O53: -0.19%
A54: 44 | B54: Automobile | C54: ESCORTS | D54: 1381.25 | E54: 1387.07 | F54: 1361.18 | G54: 1341.12 | H54: 1315.23 | I54: 1407.13 | J54: 1433.02 | K54: 1453.08 | L54: 1412.95 | M54: 1367 | N54: 2572900 | O54: 0.28%
A55: 45 | B55: Automobile | C55: EXIDEIND | D55: 184.65 | E55: 183.65 | F55: 181.00 | G55: 177.35 | H55: 174.70 | I55: 187.30 | J55: 189.95 | K55: 193.60 | L55: 186.3 | M55: 180 | N55: 13366800 | O55: 2.71%
A56: 46 | B56: Banking | C56: FEDERALBNK | D56: 65.85 | E56: 64.85 | F56: 63.50 | G56: 61.15 | H56: 59.80 | I56: 67.20 | J56: 68.55 | K56: 70.90 | L56: 66.2 | M56: 62.5 | N56: 113647000 | O56: 0.27%
A57: 47 | B57: Oil_Gas | C57: GAIL | D57: 110.90 | E57: 108.68 | F57: 105.57 | G57: 100.23 | H57: 97.12 | I57: 114.02 | J57: 117.13 | K57: 122.47 | L57: 111.8 | M57: 103.35 | N57: 26236100 | O57: 9.97%
A58: 48 | B58: Pharma | C58: GLENMARK | D58: 479.80 | E58: 479.18 | F58: 474.57 | G58: 469.33 | H58: 464.72 | I58: 484.42 | J58: 489.03 | K58: 494.27 | L58: 483.8 | M58: 473.95 | N58: 5068050 | O58: -2.02%
A59: 49 | B59: Infrastructure | C59: GMRINFRA | D59: 26.30 | E59: 26.38 | F59: 25.97 | G59: 25.63 | H59: 25.22 | I59: 26.72 | J59: 27.13 | K59: 27.47 | L59: 26.8 | M59: 26.05 | N59: 54585000 | O59: 2.02%
A60: 50 | B60: FMCG | C60: GODREJCP | D60: 709.60 | E60: 710.82 | F60: 704.78 | G60: 699.97 | H60: 693.93 | I60: 715.63 | J60: 721.67 | K60: 726.48 | L60: 716.85 | M60: 706 | N60: 3634000 | O60: -0.57%
A61: 51 | B61: Others | C61: GODREJPROP | D61: 1172.10 | E61: 1174.80 | F61: 1155.60 | G61: 1139.10 | H61: 1119.90 | I61: 1191.30 | J61: 1210.50 | K61: 1227.00 | L61: 1194 | M61: 1158.3 | N61: 1409200 | O61: 13.21%
A62: 52 | B62: Cement | C62: GRASIM | D62: 909.60 | E62: 896.67 | F62: 881.08 | G62: 852.57 | H62: 836.98 | I62: 925.18 | J62: 940.77 | K62: 969.28 | L62: 912.25 | M62: 868.15 | N62: 18094650 | O62: -1.73%
A63: 53 | B63: Others | C63: HAVELLS | D63: 826.10 | E63: 824.30 | F63: 806.80 | G63: 787.50 | H63: 770.00 | I63: 843.60 | J63: 861.10 | K63: 880.40 | L63: 841.8 | M63: 805 | N63: 3835000 | O63: -4.67%
A64: 54 | B64: Technology | C64: HCLTECH | D64: 838.60 | E64: 832.90 | F64: 825.85 | G64: 813.10 | H64: 806.05 | I64: 845.65 | J64: 852.70 | K64: 865.45 | L64: 839.95 | M64: 820.15 | N64: 19618900 | O64: 3.17%
A65: 55 | B65: Finance | C65: HDFC | D65: 2314.00 | E65: 2289.73 | F65: 2250.77 | G65: 2187.53 | H65: 2148.57 | I65: 2352.97 | J65: 2391.93 | K65: 2455.17 | L65: 2328.7 | M65: 2226.5 | N65: 24690300 | O65: -2.86%
A66: 56 | B66: Banking | C66: HDFCBANK | D66: 1437.00 | E66: 1438.72 | F66: 1429.08 | G66: 1421.17 | H66: 1411.53 | I66: 1446.63 | J66: 1456.27 | K66: 1464.18 | L66: 1448.35 | M66: 1430.8 | N66: 28273850 | O66: -2.73%
A67: 57 | B67: Finance | C67: HDFCLIFE | D67: 646.05 | E67: 648.78 | F67: 637.57 | G67: 629.08 | H67: 617.87 | I67: 657.27 | J67: 668.48 | K67: 676.97 | L67: 660 | M67: 640.3 | N67: 13840200 | O67: 1.04%
A68: 58 | B68: Automobile | C68: HEROMOTOCO | D68: 3079.35 | E68: 3086.87 | F68: 3048.73 | G68: 3018.12 | H68: 2979.98 | I68: 3117.48 | J68: 3155.62 | K68: 3186.23 | L68: 3125 | M68: 3056.25 | N68: 3750900 | O68: 10.03%
A69: 59 | B69: Metals | C69: HINDALCO | D69: 229.80 | E69: 228.20 | F69: 225.00 | G69: 220.20 | H69: 217.00 | I69: 233.00 | J69: 236.20 | K69: 241.00 | L69: 231.4 | M69: 223.4 | N69: 26612700 | O69: -0.91%
A70: 60 | B70: Oil_Gas | C70: HINDPETRO | D70: 212.65 | E70: 211.77 | F70: 210.03 | G70: 207.42 | H70: 205.68 | I70: 214.38 | J70: 216.12 | K70: 218.73 | L70: 213.5 | M70: 209.15 | N70: 28239300 | O70: -0.92%
A71: 61 | B71: FMCG | C71: HINDUNILVR | D71: 2144.95 | E71: 2149.10 | F71: 2136.25 | G71: 2127.55 | H71: 2114.70 | I71: 2157.80 | J71: 2170.65 | K71: 2179.35 | L71: 2161.95 | M71: 2140.4 | N71: 6658500 | O71: 1.50%
A72: 62 | B72: Finance | C72: IBULHSGFIN | D72: 189.85 | E72: 190.42 | F72: 185.53 | G72: 181.22 | H72: 176.33 | I72: 194.73 | J72: 199.62 | K72: 203.93 | L72: 195.3 | M72: 186.1 | N72: 18119500 | O72: 3.05%
A73: 63 | B73: Banking | C73: ICICIBANK | D73: 487.55 | E73: 484.97 | F73: 478.58 | G73: 469.62 | H73: 463.23 | I73: 493.93 | J73: 500.32 | K73: 509.28 | L73: 491.35 | M73: 476 | N73: 111394250 | O73: 0.40%
A74: 64 | B74: Finance | C74: ICICIGI | D74: 1478.65 | E74: 1482.55 | F74: 1456.20 | G74: 1433.75 | H74: 1407.40 | I74: 1505.00 | J74: 1531.35 | K74: 1553.80 | L74: 1508.9 | M74: 1460.1 | N74: 735675 | O74: 5.48%
A75: 65 | B75: Finance | C75: ICICIPRULI | D75: 458.25 | E75: 454.23 | F75: 448.27 | G75: 438.28 | H75: 432.32 | I75: 464.22 | J75: 470.18 | K75: 480.17 | L75: 460.2 | M75: 444.25 | N75: 6555000 | O75: -5.39%
A76: 66 | B76: Telecom | C76: IDEA | D76: 10.15 | E76: 10.08 | F76: 9.72 | G76: 9.28 | H76: 8.92 | I76: 10.52 | J76: 10.88 | K76: 11.32 | L76: 10.45 | M76: 9.65 | N76: 553210000 | O76: 9.89%
A77: 67 | B77: Banking | C77: IDFCFIRSTB | D77: 37.00 | E77: 36.87 | F77: 36.48 | G77: 35.97 | H77: 35.58 | I77: 37.38 | J77: 37.77 | K77: 38.28 | L77: 37.25 | M77: 36.35 | N77: 121619000 | O77: 1.22%
A78: 68 | B78: Oil_Gas | C78: IGL | D78: 485.05 | E78: 490.68 | F78: 477.92 | G78: 470.78 | H78: 458.02 | I78: 497.82 | J78: 510.58 | K78: 517.72 | L78: 503.45 | M78: 483.55 | N78: 5769500 | O78: 2.99%
A79: 69 | B79: Others | C79: INDIGO | D79: 1566.60 | E79: 1555.20 | F79: 1531.40 | G79: 1496.20 | H79: 1472.40 | I79: 1590.40 | J79: 1614.20 | K79: 1649.40 | L79: 1579 | M79: 1520 | N79: 3118500 | O79: -0.48%
A80: 70 | B80: Banking | C80: INDUSINDBK | D80: 900.95 | E80: 889.23 | F80: 872.82 | G80: 844.68 | H80: 828.27 | I80: 917.37 | J80: 933.78 | K80: 961.92 | L80: 905.65 | M80: 861.1 | N80: 18053900 | O80: 7.65%
A81: 71 | B81: Telecom | C81: INFRATEL | D81: 215.40 | E81: 216.73 | F81: 210.47 | G81: 205.53 | H81: 199.27 | I81: 221.67 | J81: 227.93 | K81: 232.87 | L81: 223 | M81: 211.8 | N81: 10934000 | O81: 2.87%
A82: 72 | B82: Technology | C82: INFY | D82: 1140.60 | E82: 1131.37 | F82: 1120.23 | G82: 1099.87 | H82: 1088.73 | I82: 1151.73 | J82: 1162.87 | K82: 1183.23 | L82: 1142.5 | M82: 1111 | N82: 35209200 | O82: -5.60%
A83: 73 | B83: Oil_Gas | C83: IOC | D83: 86.25 | E83: 85.62 | F83: 84.88 | G83: 83.52 | H83: 82.78 | I83: 86.98 | J83: 87.72 | K83: 89.08 | L83: 86.35 | M83: 84.25 | N83: 49731300 | O83: -4.26%
A84: 74 | B84: FMCG | C84: ITC | D84: 195.50 | E84: 195.33 | F84: 193.47 | G84: 191.43 | H84: 189.57 | I84: 197.37 | J84: 199.23 | K84: 201.27 | L84: 197.2 | M84: 193.3 | N84: 90764800 | O84: -1.76%
A85: 75 | B85: Metals | C85: JINDALSTEL | D85: 254.00 | E85: 252.32 | F85: 245.88 | G85: 237.77 | H85: 231.33 | I85: 260.43 | J85: 266.87 | K85: 274.98 | L85: 258.75 | M85: 244.2 | N85: 24945000 | O85: 3.27%
A86: 76 | B86: Metals | C86: JSWSTEEL | D86: 359.60 | E86: 357.83 | F86: 354.92 | G86: 350.23 | H86: 347.32 | I86: 362.52 | J86: 365.43 | K86: 370.12 | L86: 360.75 | M86: 353.15 | N86: 36239400 | O86: -1.33%
A87: 77 | B87: Others | C87: JUBLFOOD | D87: 2517.75 | E87: 2525.13 | F87: 2469.72 | G87: 2421.68 | H87: 2366.27 | I87: 2573.17 | J87: 2628.58 | K87: 2676.62 | L87: 2580.55 | M87: 2477.1 | N87: 1824750 | O87: -1.46%
A88: 78 | B88: Banking | C88: KOTAKBANK | D88: 1865.05 | E88: 1877.60 | F88: 1840.40 | G88: 1815.75 | H88: 1778.55 | I88: 1902.25 | J88: 1939.45 | K88: 1964.10 | L88: 1914.8 | M88: 1852.95 | N88: 27178000 | O88: 4.00%
A89: 79 | B89: Finance | C89: L&TFH | D89: 86.25 | E89: 85.73 | F89: 83.77 | G89: 81.28 | H89: 79.32 | I89: 88.22 | J89: 90.18 | K89: 92.67 | L89: 87.7 | M89: 83.25 | N89: 24638900 | O89: -3.86%
A90: 80 | B90: Finance | C90: LICHSGFIN | D90: 339.55 | E90: 337.13 | F90: 330.52 | G90: 321.48 | H90: 314.87 | I90: 346.17 | J90: 352.78 | K90: 361.82 | L90: 343.75 | M90: 328.1 | N90: 16960000 | O90: -8.91%
A91: 81 | B91: Capital_Goods | C91: LT | D91: 1122.50 | E91: 1125.53 | F91: 1113.17 | G91: 1103.83 | H91: 1091.47 | I91: 1134.87 | J91: 1147.23 | K91: 1156.57 | L91: 1137.9 | M91: 1116.2 | N91: 15200625 | O91: 1.91%
A92: 82 | B92: Pharma | C92: LUPIN | D92: 915.30 | E92: 910.25 | F92: 900.80 | G92: 886.30 | H92: 876.85 | I92: 924.75 | J92: 934.20 | K92: 948.70 | L92: 919.7 | M92: 895.75 | N92: 9242900 | O92: -1.22%
A93: 83 | B93: Automobile | C93: M&M | D93: 736.05 | E93: 728.27 | F93: 718.18 | G93: 700.32 | H93: 690.23 | I93: 746.13 | J93: 756.22 | K93: 774.08 | L93: 738.35 | M93: 710.4 | N93: 14649600 | O93: -1.03%
A94: 84 | B94: Finance | C94: M&MFIN | D94: 168.05 | E94: 168.35 | F94: 164.65 | G94: 161.25 | H94: 157.55 | I94: 171.75 | J94: 175.45 | K94: 178.85 | L94: 172.05 | M94: 164.95 | N94: 18045820 | O94: 3.72%
A95: 85 | B95: Finance | C95: MANAPPURAM | D95: 174.70 | E95: 176.15 | F95: 171.70 | G95: 168.70 | H95: 164.25 | I95: 179.15 | J95: 183.60 | K95: 186.60 | L95: 180.6 | M95: 173.15 | N95: 18594000 | O95: 3.09%
A96: 86 | B96: FMCG | C96: MARICO | D96: 374.65 | E96: 371.60 | F96: 367.35 | G96: 360.05 | H96: 355.80 | I96: 378.90 | J96: 383.15 | K96: 390.45 | L96: 375.85 | M96: 364.3 | N96: 9784000 | O96: -3.91%
A97: 87 | B97: Automobile | C97: MARUTI | D97: 7133.30 | E97: 7093.42 | F97: 7026.93 | G97: 6920.57 | H97: 6854.08 | I97: 7199.78 | J97: 7266.27 | K97: 7372.63 | L97: 7159.9 | M97: 6987.05 | N97: 2997400 | O97: -3.39%
A98: 88 | B98: FMCG | C98: MCDOWELL-N | D98: 568.75 | E98: 563.37 | F98: 554.98 | G98: 541.22 | H98: 532.83 | I98: 577.13 | J98: 585.52 | K98: 599.28 | L98: 571.75 | M98: 549.6 | N98: 11040000 | O98: -1.19%
A99: 89 | B99: Finance | C99: MFSL | D99: 642.90 | E99: 645.18 | F99: 631.97 | G99: 621.03 | H99: 607.82 | I99: 656.12 | J99: 669.33 | K99: 680.27 | L99: 658.4 | M99: 634.25 | N99: 4659200 | O99: -2.02%
A100: 90 | B100: Oil_Gas | C100: MGL | D100: 1062.35 | E100: 1065.77 | F100: 1047.18 | G100: 1032.02 | H100: 1013.43 | I100: 1080.93 | J100: 1099.52 | K100: 1114.68 | L100: 1084.35 | M100: 1050.6 | N100: 1215000 | O100: -13.57%
A101: 91 | B101: Technology | C101: MINDTREE | D101: 1419.10 | E101: 1413.67 | F101: 1402.58 | G101: 1386.07 | H101: 1374.98 | I101: 1430.18 | J101: 1441.27 | K101: 1457.78 | L101: 1424.75 | M101: 1397.15 | N101: 1439200 | O101: 4.05%
A102: 92 | B102: Automobile | C102: MOTHERSUMI | D102: 156.60 | E102: 153.55 | F102: 149.20 | G102: 141.80 | H102: 137.45 | I102: 160.95 | J102: 165.30 | K102: 172.70 | L102: 157.9 | M102: 146.15 | N102: 23506000 | O102: 16.68%
A103: 93 | B103: Automobile | C103: MRF | D103: 78773.95 | E103: 78087.75 | F103: 77058.65 | G103: 75343.35 | H103: 74314.25 | I103: 79803.05 | J103: 80832.15 | K103: 82547.45 | L103: 79116.85 | M103: 76372.45 | N103: 63040 | O103: 1.83%
A104: 94 | B104: Finance | C104: MUTHOOTFIN | D104: 1152.50 | E104: 1148.85 | F104: 1139.75 | G104: 1127.00 | H104: 1117.90 | I104: 1161.60 | J104: 1170.70 | K104: 1183.45 | L104: 1157.95 | M104: 1136.1 | N104: 6078000 | O104: 5.01%
A105: 95 | B105: Metals | C105: NATIONALUM | D105: 39.90 | E105: 39.62 | F105: 39.08 | G105: 38.27 | H105: 37.73 | I105: 40.43 | J105: 40.97 | K105: 41.78 | L105: 40.15 | M105: 38.8 | N105: 37162000 | O105: 0.74%
A106: 96 | B106: Others | C106: NAUKRI | D106: 4228.65 | E106: 4276.82 | F106: 4159.48 | G106: 4090.32 | H106: 3972.98 | I106: 4345.98 | J106: 4463.32 | K106: 4532.48 | L106: 4394.15 | M106: 4207.65 | N106: 828250 | O106: 0.85%
A107: 97 | B107: FMCG | C107: NESTLEIND | D107: 17479.35 | E107: 17633.00 | F107: 17216.00 | G107: 16952.65 | H107: 16535.65 | I107: 17896.35 | J107: 18313.35 | K107: 18576.70 | L107: 18050 | M107: 17369.65 | N107: 324250 | O107: -1.41%
A108: 98 | B108: Metals | C108: NMDC | D108: 99.60 | E108: 98.77 | F108: 97.03 | G108: 94.47 | H108: 92.73 | I108: 101.33 | J108: 103.07 | K108: 105.63 | L108: 100.5 | M108: 96.2 | N108: 32508400 | O108: -1.90%
A109: 99 | B109: Power | C109: NTPC | D109: 94.30 | E109: 94.88 | F109: 93.42 | G109: 92.53 | H109: 91.07 | I109: 95.77 | J109: 97.23 | K109: 98.12 | L109: 96.35 | M109: 94 | N109: 60425700 | O109: 4.92%
A110: 100 | B110: Oil_Gas | C110: ONGC | D110: 81.95 | E110: 80.53 | F110: 78.52 | G110: 75.08 | H110: 73.07 | I110: 83.97 | J110: 85.98 | K110: 89.42 | L110: 82.55 | M110: 77.1 | N110: 47293400 | O110: 7.28%
A111: 101 | B111: Textile | C111: PAGEIND | D111: 22976.65 | E111: 23108.57 | F111: 22727.13 | G111: 22477.62 | H111: 22096.18 | I111: 23358.08 | J111: 23739.52 | K111: 23989.03 | L111: 23490 | M111: 22859.05 | N111: 87000 | O111: -2.65%
A112: 102 | B112: Pharma | C112: PEL | D112: 1421.90 | E112: 1421.23 | F112: 1397.42 | G112: 1372.93 | H112: 1349.12 | I112: 1445.72 | J112: 1469.53 | K112: 1494.02 | L112: 1445.05 | M112: 1396.75 | N112: 3136650 | O112: 2.46%
A113: 103 | B113: Oil_Gas | C113: PETRONET | D113: 255.10 | E113: 254.60 | F113: 252.20 | G113: 249.30 | H113: 246.90 | I113: 257.50 | J113: 259.90 | K113: 262.80 | L113: 257 | M113: 251.7 | N113: 12051000 | O113: -1.90%
A114: 104 | B114: Finance | C114: PFC | D114: 109.35 | E114: 108.92 | F114: 107.98 | G114: 106.62 | H114: 105.68 | I114: 110.28 | J114: 111.22 | K114: 112.58 | L114: 109.85 | M114: 107.55 | N114: 32680200 | O114: -0.17%
A115: 105 | B115: FMCG | C115: PIDILITIND | D115: 1556.80 | E115: 1552.72 | F115: 1538.43 | G115: 1520.07 | H115: 1505.78 | I115: 1571.08 | J115: 1585.37 | K115: 1603.73 | L115: 1567 | M115: 1534.35 | N115: 3148000 | O115: -1.72%
A116: 106 | B116: Banking | C116: PNB | D116: 34.65 | E116: 34.32 | F116: 33.78 | G116: 32.92 | H116: 32.38 | I116: 35.18 | J116: 35.72 | K116: 36.58 | L116: 34.85 | M116: 33.45 | N116: 69930000 | O116: 2.30%
A117: 107 | B117: Power | C117: POWERGRID | D117: 192.10 | E117: 193.07 | F117: 190.38 | G117: 188.67 | H117: 185.98 | I117: 194.78 | J117: 197.47 | K117: 199.18 | L117: 195.75 | M117: 191.35 | N117: 14148000 | O117: -0.95%
A118: 108 | B118: Media | C118: PVR | D118: 1323.65 | E118: 1316.97 | F118: 1299.78 | G118: 1275.92 | H118: 1258.73 | I118: 1340.83 | J118: 1358.02 | K118: 1381.88 | L118: 1334.15 | M118: 1293.1 | N118: 1324378 | O118: 4.76%
A119: 109 | B119: Cement | C119: RAMCOCEM | D119: 894.45 | E119: 891.80 | F119: 883.65 | G119: 872.85 | H119: 864.70 | I119: 902.60 | J119: 910.75 | K119: 921.55 | L119: 899.95 | M119: 881 | N119: 1397400 | O119: 7.66%
A120: 110 | B120: Banking | C120: RBLBANK | D120: 226.20 | E120: 225.13 | F120: 221.32 | G120: 216.43 | H120: 212.62 | I120: 230.02 | J120: 233.83 | K120: 238.72 | L120: 228.95 | M120: 220.25 | N120: 19072200 | O120: 0.63%
A121: 111 | B121: Power | C121: RECLTD | D121: 121.45 | E121: 120.92 | F121: 119.93 | G121: 118.42 | H121: 117.43 | I121: 122.43 | J121: 123.42 | K121: 124.93 | L121: 121.9 | M121: 119.4 | N121: 24390000 | O121: 1.83%
A122: 112 | B122: Oil_Gas | C122: RELIANCE | D122: 1962.25 | E122: 1958.23 | F122: 1939.07 | G122: 1915.88 | H122: 1896.72 | I122: 1981.42 | J122: 2000.58 | K122: 2023.77 | L122: 1977.4 | M122: 1935.05 | N122: 35314185 | O122: 0.24%
A123: 113 | B123: Metals | C123: SAIL | D123: 50.25 | E123: 49.78 | F123: 48.57 | G123: 46.88 | H123: 45.67 | I123: 51.47 | J123: 52.68 | K123: 54.37 | L123: 51 | M123: 48.1 | N123: 67089000 | O123: 18.49%
A124: 114 | B124: Finance | C124: SBILIFE | D124: 854.10 | E124: 852.42 | F124: 846.48 | G124: 838.87 | H124: 832.93 | I124: 860.03 | J124: 865.97 | K124: 873.58 | L124: 858.35 | M124: 844.8 | N124: 5203500 | O124: 0.12%
A125: 115 | B125: Banking | C125: SBIN | D125: 249.45 | E125: 248.37 | F125: 246.28 | G125: 243.12 | H125: 241.03 | I125: 251.53 | J125: 253.62 | K125: 256.78 | L125: 250.45 | M125: 245.2 | N125: 86970000 | O125: 0.95%
A126: 116 | B126: Cement | C126: SHREECEM | D126: 24977.85 | E126: 24986.98 | F126: 24418.97 | G126: 23860.08 | H126: 23292.07 | I126: 25545.87 | J126: 26113.88 | K126: 26672.77 | L126: 25555 | M126: 24428.1 | N126: 145150 | O126: 0.45%
A127: 117 | B127: Capital_Goods | C127: SIEMENS | D127: 1522.75 | E127: 1522.78 | F127: 1496.57 | G127: 1470.38 | H127: 1444.17 | I127: 1548.97 | J127: 1575.18 | K127: 1601.37 | L127: 1549 | M127: 1496.6 | N127: 1524050 | O127: -1.46%
A128: 118 | B128: Textile | C128: SRF | D128: 5122.90 | E128: 5129.75 | F128: 5074.90 | G128: 5026.90 | H128: 4972.05 | I128: 5177.75 | J128: 5232.60 | K128: 5280.60 | L128: 5184.6 | M128: 5081.75 | N128: 442000 | O128: -0.45%
A129: 119 | B129: Finance | C129: SRTRANSFIN | D129: 1025.15 | E129: 1036.57 | F129: 1009.63 | G129: 994.12 | H129: 967.18 | I129: 1052.08 | J129: 1079.02 | K129: 1094.53 | L129: 1063.5 | M129: 1021.05 | N129: 4608553 | O129: -0.41%
A130: 120 | B130: Pharma | C130: SUNPHARMA | D130: 541.70 | E130: 534.22 | F130: 523.03 | G130: 504.37 | H130: 493.18 | I130: 552.88 | J130: 564.07 | K130: 582.73 | L130: 545.4 | M130: 515.55 | N130: 42050400 | O130: -0.16%
A131: 121 | B131: Media | C131: SUNTV | D131: 447.35 | E131: 446.82 | F131: 440.63 | G131: 433.92 | H131: 427.73 | I131: 453.53 | J131: 459.72 | K131: 466.43 | L131: 453 | M131: 440.1 | N131: 6006000 | O131: -4.07%
A132: 122 | B132: Fertilisers | C132: TATACHEM | D132: 406.25 | E132: 400.17 | F132: 392.53 | G132: 378.82 | H132: 371.18 | I132: 413.88 | J132: 421.52 | K132: 435.23 | L132: 407.8 | M132: 386.45 | N132: 3786000 | O132: 7.56%
A133: 123 | B133: Others | C133: TATACONSUM | D133: 532.15 | E133: 536.75 | F133: 521.65 | G133: 511.15 | H133: 496.05 | I133: 547.25 | J133: 562.35 | K133: 572.85 | L133: 551.85 | M133: 526.25 | N133: 14156100 | O133: 1.91%
A134: 124 | B134: Automobile | C134: TATAMOTORS | D134: 180.75 | E134: 180.80 | F134: 178.65 | G134: 176.55 | H134: 174.40 | I134: 182.90 | J134: 185.05 | K134: 187.15 | L134: 182.95 | M134: 178.7 | N134: 66786900 | O134: -3.54%
A135: 125 | B135: Power | C135: TATAPOWER | D135: 69.00 | E135: 67.80 | F135: 66.10 | G135: 63.20 | H135: 61.50 | I135: 70.70 | J135: 72.40 | K135: 75.30 | L135: 69.5 | M135: 64.9 | N135: 95998500 | O135: -1.55%
A136: 126 | B136: Metals | C136: TATASTEEL | D136: 587.10 | E136: 585.37 | F136: 578.38 | G136: 569.67 | H136: 562.68 | I136: 594.08 | J136: 601.07 | K136: 609.78 | L136: 592.35 | M136: 576.65 | N136: 36004300 | O136: -0.99%
A137: 127 | B137: Technology | C137: TCS | D137: 2740.25 | E137: 2708.53 | F137: 2672.07 | G137: 2603.88 | H137: 2567.42 | I137: 2776.72 | J137: 2813.18 | K137: 2881.37 | L137: 2745 | M137: 2640.35 | N137: 5949000 | O137: -1.95%
A138: 128 | B138: Technology | C138: TECHM | D138: 911.10 | E138: 900.05 | F138: 883.95 | G138: 856.80 | H138: 840.70 | I138: 927.20 | J138: 943.30 | K138: 970.45 | L138: 916.15 | M138: 872.9 | N138: 10957200 | O138: -0.25%
A139: 129 | B139: FMCG | C139: TITAN | D139: 1344.75 | E139: 1355.67 | F139: 1326.63 | G139: 1308.52 | H139: 1279.48 | I139: 1373.78 | J139: 1402.82 | K139: 1420.93 | L139: 1384.7 | M139: 1337.55 | N139: 6338250 | O139: 0.98%
A140: 130 | B140: Pharma | C140: TORNTPHARM | D140: 2664.95 | E140: 2656.70 | F140: 2628.50 | G140: 2592.05 | H140: 2563.85 | I140: 2693.15 | J140: 2721.35 | K140: 2757.80 | L140: 2684.9 | M140: 2620.25 | N140: 843250 | O140: -1.40%
A141: 131 | B141: Power | C141: TORNTPOWER | D141: 318.75 | E141: 319.05 | F141: 315.85 | G141: 312.95 | H141: 309.75 | I141: 321.95 | J141: 325.15 | K141: 328.05 | L141: 322.25 | M141: 316.15 | N141: 3813000 | O141: 7.62%
A142: 132 | B142: Automobile | C142: TVSMOTOR | D142: 502.35 | E142: 501.45 | F142: 494.60 | G142: 486.85 | H142: 480.00 | I142: 509.20 | J142: 516.05 | K142: 523.80 | L142: 508.3 | M142: 493.7 | N142: 5558000 | O142: -2.84%
A143: 133 | B143: FMCG | C143: UBL | D143: 1090.45 | E143: 1075.07 | F143: 1056.13 | G143: 1021.82 | H143: 1002.88 | I143: 1109.38 | J143: 1128.32 | K143: 1162.63 | L143: 1094 | M143: 1040.75 | N143: 1257200 | O143: -3.65%
A144: 134 | B144: Cement | C144: ULTRACEMCO | D144: 4921.75 | E144: 4903.95 | F144: 4843.50 | G144: 4765.25 | H144: 4704.80 | I144: 4982.20 | J144: 5042.65 | K144: 5120.90 | L144: 4964.4 | M144: 4825.7 | N144: 1690200 | O144: -1.26%
A145: 135 | B145: Fertilisers | C145: UPL | D145: 435.60 | E145: 430.08 | F145: 423.52 | G145: 411.43 | H145: 404.87 | I145: 442.17 | J145: 448.73 | K145: 460.82 | L145: 436.65 | M145: 418 | N145: 27606800 | O145: 13.70%
A146: 136 | B146: Metals | C146: VEDL | D146: 122.35 | E146: 121.92 | F146: 120.93 | G146: 119.52 | H146: 118.53 | I146: 123.33 | J146: 124.32 | K146: 125.73 | L146: 122.9 | M146: 120.5 | N146: 118792000 | O146: 1.38%
A147: 137 | B147: Capital_Goods | C147: VOLTAS | D147: 795.30 | E147: 800.57 | F147: 788.18 | G147: 781.07 | H147: 768.68 | I147: 807.68 | J147: 820.07 | K147: 827.18 | L147: 812.95 | M147: 793.45 | N147: 2458000 | O147: -3.11%
A148: 138 | B148: Technology | C148: WIPRO | D148: 353.80 | E148: 352.02 | F148: 349.53 | G148: 345.27 | H148: 342.78 | I148: 356.28 | J148: 358.77 | K148: 363.03 | L148: 354.5 | M148: 347.75 | N148: 24966400 | O148: 0.93%
A149: 139 | B149: Media | C149: ZEEL | D149: 196.20 | E149: 195.18 | F149: 191.22 | G149: 186.23 | H149: 182.27 | I149: 200.17 | J149: 204.13 | K149: 209.12 | L149: 199.15 | M149: 190.2 | N149: 33588000 | O149: -0.88%
A150: 140
A151: 141
A152: 142
A153: 143
A154: 144
A155: 145
A156: 146
A157: 147
A175: Pivot Point: This is trigger point for intra day buy/sell based on the price range of the previous day
A176: As per the tool,the trader should take BUY position just above Pivot and keep the stop loss of pivot point and the first target would be Resistance 1(R1)
A177: If R1 is crossed then R2 becomes the next target with stop loss of at R1
A178: Similarly if price goes below pivot point then the trader should sell and keep a stop loss of pivot point and the first target would be S1
A179: If S1 is crossed then S2 becomes the next target with stop loss of at S1
A181: Disclaimer:
A182: This document has been prepared by the Retail Research Desk of Asit C Mehta
A183: Investment Intermediates Ltd. and is meant for use of the recipient only
A184: and is not for circulation. This document is not to be reported or
A185: copied or made available to others. It should not be considered to be
A186: taken as an offer to sell or a solicitation to buy any security. The
A187: information contained herein is from sources believed reliable. We do
A188: not represent that it is accurate or complete and it should not be
A189: relied upon as such. We may from time to time have positions in and buy
A190: and sell securities referred to herein

Sheet Cash Intra
M5: Back to Main Page
A6: FOR INTRA DAY TRADING | K6: =Main!B10 -> 2020-12-02
A8: Sr.no | B8: Scrip | C8: CLOSE RATE | D8: Pivot Point | E8: Supports | H8: Resistances
C9: Point | E9: S1 | F9: S2 | G9: S3 | H9: R1 | I9: R2 | J9: R3 | K9: HIGH | L9: LOW | M9: Total Trade Quanity in Lakhs
A10: 1 | B10: Nifty 50 | C10: 13109.05 | D10: 13066.75 | E10: 13005.10 | F10: 12901.15 | G10: 12839.50 | H10: 13170.70 | I10: 13232.35 | J10: 13336.30 | K10: 13128.4 | L10: 12962.8
A11: 2 | B11: Nifty Bank | C11: 29817.85 | D11: 29749.53 | E11: 29579.32 | F11: 29340.78 | G11: 29170.57 | H11: 29988.07 | I11: 30158.28 | J11: 30396.82 | K11: 29919.75 | L11: 29511
A12: 3 | B12: Nifty CPSE | C12: 1525.8 | D12: 1522.67 | E12: 1509.28 | F12: 1492.77 | G12: 1479.38 | H12: 1539.18 | I12: 1552.57 | J12: 1569.08 | K12: 1536.05 | L12: 1506.15
A13: 4 | B13: Nifty Infra | C13: 3476.85 | D13: 3464.12 | E13: 3447.78 | F13: 3418.72 | G13: 3402.38 | H13: 3493.18 | I13: 3509.52 | J13: 3538.58 | K13: 3480.45 | L13: 3435.05
A14: 5 | B14: Nifty IT | C14: 22170.85 | D14: 22067.23 | E14: 21918.02 | F14: 21665.18 | G14: 21515.97 | H14: 22320.07 | I14: 22469.28 | J14: 22722.12 | K14: 22216.45 | L14: 21814.4
A15: 6 | B15: Nifty PSE | C15: 2634.25 | D15: 2625.62 | E15: 2606.03 | F15: 2577.82 | G15: 2558.23 | H15: 2653.83 | I15: 2673.42 | J15: 2701.63 | K15: 2645.2 | L15: 2597.4
A16: 7 | B16: Nifty Midcap 50 | C16: 5590.8 | D16: 5579.43 | E16: 5554.52 | F16: 5518.23 | G16: 5493.32 | H16: 5615.72 | I16: 5640.63 | J16: 5676.92 | K16: 5604.35 | L16: 5543.15
A17: 8 | B17: AARTIIND | C17: 1156.95 | D17: 1156.98 | E17: 1143.97 | F17: 1130.98 | G17: 1117.97 | H17: 1169.97 | I17: 1182.98 | J17: 1195.97 | K17: 1170 | L17: 1144 | M17: 2.70398
A18: 9 | B18: ABBOTINDIA | C18: 15398.6 | D18: 15417.85 | E18: 15330.75 | F18: 15262.90 | G18: 15175.80 | H18: 15485.70 | I18: 15572.80 | J18: 15640.65 | K18: 15504.95 | L18: 15350 | M18: 0.11889
A19: 10 | B19: ABCAPITAL | C19: 93.6 | D19: 92.33 | E19: 90.17 | F19: 86.73 | G19: 84.57 | H19: 95.77 | I19: 97.93 | J19: 101.37 | K19: 94.5 | L19: 88.9 | M19: 74.32377
A20: 11 | B20: ABFRL | C20: 161.35 | D20: 162.62 | E20: 159.28 | F20: 157.22 | G20: 153.88 | H20: 164.68 | I20: 168.02 | J20: 170.08 | K20: 165.95 | L20: 160.55 | M20: 29.84535
A21: 12 | B21: ACC | C21: 1747.9 | D21: 1746.27 | E21: 1707.53 | F21: 1667.17 | G21: 1628.43 | H21: 1786.63 | I21: 1825.37 | J21: 1865.73 | K21: 1785 | L21: 1705.9 | M21: 32.42401
A22: 13 | B22: ADANIGAS | C22: 360.95 | D22: 360.92 | E22: 350.03 | F22: 339.12 | G22: 328.23 | H22: 371.83 | I22: 382.72 | J22: 393.63 | K22: 371.8 | L22: 350 | M22: 87.99937
A23: 14 | B23: ADANIPORTS | C23: 423.8 | D23: 420.60 | E23: 415.20 | F23: 406.60 | G23: 401.20 | H23: 429.20 | I23: 434.60 | J23: 443.20 | K23: 426 | L23: 412 | M23: 91.70159
A24: 15 | B24: ADANIPOWER | C24: 41.05 | D24: 40.50 | E24: 39.20 | F24: 37.35 | G24: 36.05 | H24: 42.35 | I24: 43.65 | J24: 45.50 | K24: 41.8 | L24: 38.65 | M24: 277.63237
A25: 16 | B25: ADANITRANS | C25: 378.95 | D25: 378.00 | E25: 373.00 | F25: 367.05 | G25: 362.05 | H25: 383.95 | I25: 388.95 | J25: 394.90 | K25: 383 | L25: 372.05 | M25: 5.33772
A26: 17 | B26: AJANTPHARM | C26: 1534.75 | D26: 1541.42 | E26: 1523.33 | F26: 1511.92 | G26: 1493.83 | H26: 1552.83 | I26: 1570.92 | J26: 1582.33 | K26: 1559.5 | L26: 1530 | M26: 1.56043
A27: 18 | B27: ALKEM | C27: 2789.05 | D27: 2811.17 | E27: 2755.33 | F27: 2721.62 | G27: 2665.78 | H27: 2844.88 | I27: 2900.72 | J27: 2934.43 | K27: 2867 | L27: 2777.45 | M27: 0.98367
A28: 19 | B28: AMARAJABAT | C28: 922.15 | D28: 927.98 | E28: 909.17 | F28: 896.18 | G28: 877.37 | H28: 940.97 | I28: 959.78 | J28: 972.77 | K28: 946.8 | L28: 915 | M28: 9.89384
A29: 20 | B29: AMBUJACEM | C29: 262 | D29: 264.15 | E29: 258.75 | F29: 255.50 | G29: 250.10 | H29: 267.40 | I29: 272.80 | J29: 276.05 | K29: 269.55 | L29: 260.9 | M29: 62.62243
A30: 21 | B30: APOLLOHOSP | C30: 2463 | D30: 2440.30 | E30: 2371.75 | F30: 2280.50 | G30: 2211.95 | H30: 2531.55 | I30: 2600.10 | J30: 2691.35 | K30: 2508.85 | L30: 2349.05 | M30: 20.01392
A31: 22 | B31: APOLLOTYRE | C31: 187 | D31: 185.93 | E31: 183.87 | F31: 180.73 | G31: 178.67 | H31: 189.07 | I31: 191.13 | J31: 194.27 | K31: 188 | L31: 182.8 | M31: 62.64103
A32: 23 | B32: ASHOKLEY | C32: 92.65 | D32: 92.62 | E32: 91.38 | F32: 90.12 | G32: 88.88 | H32: 93.88 | I32: 95.12 | J32: 96.38 | K32: 93.85 | L32: 91.35 | M32: 274.52587
A33: 24 | B33: ASIANPAINT | C33: 2230.05 | D33: 2237.08 | E33: 2199.17 | F33: 2168.28 | G33: 2130.37 | H33: 2267.97 | I33: 2305.88 | J33: 2336.77 | K33: 2275 | L33: 2206.2 | M33: 22.35498
A34: 25 | B34: AUBANK | C34: 872.9 | D34: 862.63 | E34: 850.27 | F34: 827.63 | G34: 815.27 | H34: 885.27 | I34: 897.63 | J34: 920.27 | K34: 875 | L34: 840 | M34: 6.10117
A35: 26 | B35: AUROPHARMA | C35: 897.15 | D35: 888.48 | E35: 877.87 | F35: 858.58 | G35: 847.97 | H35: 907.77 | I35: 918.38 | J35: 937.67 | K35: 899.1 | L35: 869.2 | M35: 33.53447
A36: 27 | B36: AXISBANK | C36: 603.65 | D36: 604.95 | E36: 594.90 | F36: 586.15 | G36: 576.10 | H36: 613.70 | I36: 623.75 | J36: 632.50 | K36: 615 | L36: 596.2 | M36: 212.85697
A37: 28 | B37: BAJAJ-AUTO | C37: 3243.65 | D37: 3217.87 | E37: 3186.78 | F37: 3129.92 | G37: 3098.83 | H37: 3274.73 | I37: 3305.82 | J37: 3362.68 | K37: 3248.95 | L37: 3161 | M37: 14.00851
A38: 29 | B38: BAJAJFINSV | C38: 8746.55 | D38: 8762.68 | E38: 8696.52 | F38: 8646.48 | G38: 8580.32 | H38: 8812.72 | I38: 8878.88 | J38: 8928.92 | K38: 8828.85 | L38: 8712.65 | M38: 6.94283
A39: 30 | B39: BAJAJHLDNG | C39: 3094.3 | D39: 3089.93 | E39: 3064.37 | F39: 3034.43 | G39: 3008.87 | H39: 3119.87 | I39: 3145.43 | J39: 3175.37 | K39: 3115.5 | L39: 3060 | M39: 0.79083
A40: 31 | B40: BAJFINANCE | C40: 4861.1 | D40: 4879.58 | E40: 4806.77 | F40: 4752.43 | G40: 4679.62 | H40: 4933.92 | I40: 5006.73 | J40: 5061.07 | K40: 4952.4 | L40: 4825.25 | M40: 40.17427
A41: 32 | B41: BALKRISIND | C41: 1654.75 | D41: 1670.58 | E41: 1621.17 | F41: 1587.58 | G41: 1538.17 | H41: 1704.17 | I41: 1753.58 | J41: 1787.17 | K41: 1720 | L41: 1637 | M41: 14.72529
A42: 33 | B42: BANDHANBNK | C42: 377.2 | D42: 375.32 | E42: 368.88 | F42: 360.57 | G42: 354.13 | H42: 383.63 | I42: 390.07 | J42: 398.38 | K42: 381.75 | L42: 367 | M42: 97.55182
A43: 34 | B43: BANKBARODA | C43: 53.75 | D43: 53.03 | E43: 51.87 | F43: 49.98 | G43: 48.82 | H43: 54.92 | I43: 56.08 | J43: 57.97 | K43: 54.2 | L43: 51.15 | M43: 583.16841
A44: 35 | B44: BANKINDIA | C44: 46.6 | D44: 46.30 | E44: 45.40 | F44: 44.20 | G44: 43.30 | H44: 47.50 | I44: 48.40 | J44: 49.60 | K44: 47.2 | L44: 45.1 | M44: 57.25794
A45: 36 | B45: BATAINDIA | C45: 1544.2 | D45: 1551.73 | E45: 1524.52 | F45: 1504.83 | G45: 1477.62 | H45: 1571.42 | I45: 1598.63 | J45: 1618.32 | K45: 1578.95 | L45: 1532.05 | M45: 8.99562
A46: 37 | B46: BBTC | C46: 1302.55 | D46: 1309.72 | E46: 1290.83 | F46: 1279.12 | G46: 1260.23 | H46: 1321.43 | I46: 1340.32 | J46: 1352.03 | K46: 1328.6 | L46: 1298 | M46: 0.45376
A47: 38 | B47: BEL | C47: 111.8 | D47: 111.63 | E47: 110.47 | F47: 109.13 | G47: 107.97 | H47: 112.97 | I47: 114.13 | J47: 115.47 | K47: 112.8 | L47: 110.3 | M47: 107.83871
A48: 39 | B48: BERGEPAINT | C48: 655.5 | D48: 653.48 | E48: 649.12 | F48: 642.73 | G48: 638.37 | H48: 659.87 | I48: 664.23 | J48: 670.62 | K48: 657.85 | L48: 647.1 | M48: 11.11928
A49: 40 | B49: BHARATFORG | C49: 509 | D49: 507.37 | E49: 500.93 | F49: 492.87 | G49: 486.43 | H49: 515.43 | I49: 521.87 | J49: 529.93 | K49: 513.8 | L49: 499.3 | M49: 16.90088
A50: 41 | B50: BHARTIARTL | C50: 479.45 | D50: 474.15 | E50: 465.80 | F50: 452.15 | G50: 443.80 | H50: 487.80 | I50: 496.15 | J50: 509.80 | K50: 482.5 | L50: 460.5 | M50: 181.93356
A51: 42 | B51: BHEL | C51: 34.05 | D51: 33.77 | E51: 33.13 | F51: 32.22 | G51: 31.58 | H51: 34.68 | I51: 35.32 | J51: 36.23 | K51: 34.4 | L51: 32.85 | M51: 496.80395
A52: 43 | B52: BIOCON | C52: 433.3 | D52: 433.73 | E52: 429.12 | F52: 424.93 | G52: 420.32 | H52: 437.92 | I52: 442.53 | J52: 446.72 | K52: 438.35 | L52: 429.55 | M52: 30.2874
A53: 44 | B53: BOSCHLTD | C53: 13255.95 | D53: 13075.97 | E53: 12829.98 | F53: 12404.02 | G53: 12158.03 | H53: 13501.93 | I53: 13747.92 | J53: 14173.88 | K53: 13321.95 | L53: 12650 | M53: 1.86863
A54: 45 | B54: BPCL | C54: 379.3 | D54: 377.25 | E54: 373.05 | F54: 366.80 | G54: 362.60 | H54: 383.50 | I54: 387.70 | J54: 393.95 | K54: 381.45 | L54: 371 | M54: 49.03586
A55: 46 | B55: BRITANNIA | C55: 3629.35 | D55: 3642.47 | E55: 3582.43 | F55: 3535.52 | G55: 3475.48 | H55: 3689.38 | I55: 3749.42 | J55: 3796.33 | K55: 3702.5 | L55: 3595.55 | M55: 10.42234
A56: 47 | B56: CADILAHC | C56: 453.65 | D56: 451.78 | E56: 444.17 | F56: 434.68 | G56: 427.07 | H56: 461.27 | I56: 468.88 | J56: 478.37 | K56: 459.4 | L56: 442.3 | M56: 68.67503
A57: 48 | B57: CANBK | C57: 109.9 | D57: 108.10 | E57: 105.65 | F57: 101.40 | G57: 98.95 | H57: 112.35 | I57: 114.80 | J57: 119.05 | K57: 110.55 | L57: 103.85 | M57: 261.57407
A58: 49 | B58: CASTROLIND | C58: 128.55 | D58: 128.37 | E58: 126.73 | F58: 124.92 | G58: 123.28 | H58: 130.18 | I58: 131.82 | J58: 133.63 | K58: 130 | L58: 126.55 | M58: 12.61386
A59: 50 | B59: CESC | C59: 592.1 | D59: 588.20 | E59: 582.00 | F59: 571.90 | G59: 565.70 | H59: 598.30 | I59: 604.50 | J59: 614.60 | K59: 594.4 | L59: 578.1 | M59: 4.57758
A60: 51 | B60: CHOLAFIN | C60: 374.8 | D60: 378.60 | E60: 367.55 | F60: 360.30 | G60: 349.25 | H60: 385.85 | I60: 396.90 | J60: 404.15 | K60: 389.65 | L60: 371.35 | M60: 75.3164
A61: 52 | B61: CIPLA | C61: 755.6 | D61: 753.92 | E61: 747.83 | F61: 740.07 | G61: 733.98 | H61: 761.68 | I61: 767.77 | J61: 775.53 | K61: 760 | L61: 746.15 | M61: 62.41872
A62: 53 | B62: COALINDIA | C62: 126.4 | D62: 126.03 | E62: 125.07 | F62: 123.73 | G62: 122.77 | H62: 127.37 | I62: 128.33 | J62: 129.67 | K62: 127 | L62: 124.7 | M62: 89.27107
A63: 54 | B63: COFORGE | C63: 2455.4 | D63: 2438.87 | E63: 2401.53 | F63: 2347.67 | G63: 2310.33 | H63: 2492.73 | I63: 2530.07 | J63: 2583.93 | K63: 2476.2 | L63: 2385 | M63: 3.15214
A64: 55 | B64: COLPAL | C64: 1504 | D64: 1512.42 | E64: 1484.58 | F64: 1465.17 | G64: 1437.33 | H64: 1531.83 | I64: 1559.67 | J64: 1579.08 | K64: 1540.25 | L64: 1493 | M64: 9.9632
A65: 56 | B65: CONCOR | C65: 409.65 | D65: 406.68 | E65: 400.37 | F65: 391.08 | G65: 384.77 | H65: 415.97 | I65: 422.28 | J65: 431.57 | K65: 413 | L65: 397.4 | M65: 31.64488
A66: 57 | B66: COROMANDEL | C66: 823.05 | D66: 823.07 | E66: 810.18 | F66: 797.32 | G66: 784.43 | H66: 835.93 | I66: 848.82 | J66: 861.68 | K66: 835.95 | L66: 810.2 | M66: 4.30006
A67: 58 | B67: CROMPTON | C67: 321.25 | D67: 316.62 | E67: 306.88 | F67: 292.52 | G67: 282.78 | H67: 330.98 | I67: 340.72 | J67: 355.08 | K67: 326.35 | L67: 302.25 | M67: 27.78543
A68: 59 | B68: CUB | C68: 182.1 | D68: 183.37 | E68: 179.23 | F68: 176.37 | G68: 172.23 | H68: 186.23 | I68: 190.37 | J68: 193.23 | K68: 187.5 | L68: 180.5 | M68: 15.93673
A69: 60 | B69: CUMMINSIND | C69: 578.45 | D69: 577.83 | E69: 569.62 | F69: 560.78 | G69: 552.57 | H69: 586.67 | I69: 594.88 | J69: 603.72 | K69: 586.05 | L69: 569 | M69: 10.03872
A70: 61 | B70: DABUR | C70: 506 | D70: 504.53 | E70: 502.07 | F70: 498.13 | G70: 495.67 | H70: 508.47 | I70: 510.93 | J70: 514.87 | K70: 507 | L70: 500.6 | M70: 21.77754
A71: 62 | B71: DALBHARAT | C71: 1151.6 | D71: 1148.62 | E71: 1099.23 | F71: 1046.87 | G71: 997.48 | H71: 1200.98 | I71: 1250.37 | J71: 1302.73 | K71: 1198 | L71: 1096.25 | M71: 3.09388
A72: 63 | B72: DIVISLAB | C72: 3620.75 | D72: 3662.45 | E72: 3554.90 | F72: 3489.05 | G72: 3381.50 | H72: 3728.30 | I72: 3835.85 | J72: 3901.70 | K72: 3770 | L72: 3596.6 | M72: 20.77864
A73: 64 | B73: DLF | C73: 195.1 | D73: 194.07 | E73: 190.63 | F73: 186.17 | G73: 182.73 | H73: 198.53 | I73: 201.97 | J73: 206.43 | K73: 197.5 | L73: 189.6 | M73: 192.25092
A74: 65 | B74: DMART | C74: 2426.7 | D74: 2397.23 | E74: 2344.47 | F74: 2262.23 | G74: 2209.47 | H74: 2479.47 | I74: 2532.23 | J74: 2614.47 | K74: 2450 | L74: 2315 | M74: 9.12165
A75: 66 | B75: DRREDDY | C75: 4830.4 | D75: 4835.47 | E75: 4800.93 | F75: 4771.47 | G75: 4736.93 | H75: 4864.93 | I75: 4899.47 | J75: 4928.93 | K75: 4870 | L75: 4806 | M75: 11.1719
A76: 67 | B76: EDELWEISS | C76: 73.5 | D76: 72.43 | E76: 71.37 | F76: 69.23 | G76: 68.17 | H76: 74.57 | I76: 75.63 | J76: 77.77 | K76: 73.5 | L76: 70.3 | M76: 23.26132
A77: 68 | B77: EICHERMOT | C77: 2532.7 | D77: 2547.53 | E77: 2510.17 | F77: 2487.63 | G77: 2450.27 | H77: 2570.07 | I77: 2607.43 | J77: 2629.97 | K77: 2584.9 | L77: 2525 | M77: 12.27343
A78: 69 | B78: EMAMILTD | C78: 442.8 | D78: 447.73 | E78: 434.07 | F78: 425.33 | G78: 411.67 | H78: 456.47 | I78: 470.13 | J78: 478.87 | K78: 461.4 | L78: 439 | M78: 9.52633
A79: 70 | B79: ENDURANCE | C79: 1141 | D79: 1137.77 | E79: 1110.58 | F79: 1080.17 | G79: 1052.98 | H79: 1168.18 | I79: 1195.37 | J79: 1225.78 | K79: 1164.95 | L79: 1107.35 | M79: 1.58278
A80: 71 | B80: ESCORTS | C80: 1373.7 | D80: 1382.93 | E80: 1353.87 | F80: 1334.03 | G80: 1304.97 | H80: 1402.77 | I80: 1431.83 | J80: 1451.67 | K80: 1412 | L80: 1363.1 | M80: 19.61246
A81: 72 | B81: EXIDEIND | C81: 183.85 | D81: 183.82 | E81: 181.03 | F81: 178.22 | G81: 175.43 | H81: 186.63 | I81: 189.42 | J81: 192.23 | K81: 186.6 | L81: 181 | M81: 45.05182
A82: 73 | B82: FEDERALBNK | C82: 65.6 | D82: 64.58 | E82: 63.32 | F82: 61.03 | G82: 59.77 | H82: 66.87 | I82: 68.13 | J82: 70.42 | K82: 65.85 | L82: 62.3 | M82: 540.97063
A83: 74 | B83: FORTIS | C83: 152.95 | D83: 152.30 | E83: 148.70 | F83: 144.45 | G83: 140.85 | H83: 156.55 | I83: 160.15 | J83: 164.40 | K83: 155.9 | L83: 148.05 | M83: 79.81013
A84: 75 | B84: FRETAIL | C84: 78.55 | D84: 78.55 | E84: 78.55 | F84: 78.55 | G84: 78.55 | H84: 78.55 | I84: 78.55 | J84: 78.55 | K84: 78.55 | L84: 78.55 | M84: 19.2964
A85: 76 | B85: GAIL | C85: 110.7 | D85: 108.60 | E85: 105.20 | F85: 99.70 | G85: 96.30 | H85: 114.10 | I85: 117.50 | J85: 123.00 | K85: 112 | L85: 103.1 | M85: 856.84453
A86: 77 | B86: GICRE | C86: 140 | D86: 140.50 | E86: 139.00 | F86: 138.00 | G86: 136.50 | H86: 141.50 | I86: 143.00 | J86: 144.00 | K86: 142 | L86: 139.5 | M86: 4.22401
A87: 78 | B87: GLENMARK | C87: 477.1 | D87: 477.03 | E87: 473.17 | F87: 469.23 | G87: 465.37 | H87: 480.97 | I87: 484.83 | J87: 488.77 | K87: 480.9 | L87: 473.1 | M87: 21.8566
A88: 79 | B88: GMRINFRA | C88: 26.2 | D88: 26.40 | E88: 25.80 | F88: 25.40 | G88: 24.80 | H88: 26.80 | I88: 27.40 | J88: 27.80 | K88: 27 | L88: 26 | M88: 102.67533
A89: 80 | B89: GODREJAGRO | C89: 509.2 | D89: 507.80 | E89: 503.60 | F89: 498.00 | G89: 493.80 | H89: 513.40 | I89: 517.60 | J89: 523.20 | K89: 512 | L89: 502.2 | M89: 1.01769
A90: 81 | B90: GODREJCP | C90: 705.6 | D90: 707.90 | E90: 700.25 | F90: 694.90 | G90: 687.25 | H90: 713.25 | I90: 720.90 | J90: 726.25 | K90: 715.55 | L90: 702.55 | M90: 13.28512
A91: 82 | B91: GODREJIND | C91: 408.15 | D91: 408.38 | E91: 405.82 | F91: 403.48 | G91: 400.92 | H91: 410.72 | I91: 413.28 | J91: 415.62 | K91: 410.95 | L91: 406.05 | M91: 0.73683
A92: 83 | B92: GODREJPROP | C92: 1187.1 | D92: 1187.07 | E92: 1164.13 | F92: 1141.17 | G92: 1118.23 | H92: 1210.03 | I92: 1232.97 | J92: 1255.93 | K92: 1210 | L92: 1164.1 | M92: 16.16577
A93: 84 | B93: GRASIM | C93: 907.8 | D93: 893.55 | E93: 876.40 | F93: 845.00 | G93: 827.85 | H93: 924.95 | I93: 942.10 | J93: 973.50 | K93: 910.7 | L93: 862.15 | M93: 41.10405
A94: 85 | B94: GSPL | C94: 227.85 | D94: 226.78 | E94: 221.07 | F94: 214.28 | G94: 208.57 | H94: 233.57 | I94: 239.28 | J94: 246.07 | K94: 232.5 | L94: 220 | M94: 16.66443
A95: 86 | B95: GUJGASLTD | C95: 340.8 | D95: 344.95 | E95: 335.85 | F95: 330.90 | G95: 321.80 | H95: 349.90 | I95: 359.00 | J95: 363.95 | K95: 354.05 | L95: 340 | M95: 17.43119
A96: 87 | B96: HAVELLS | C96: 823.4 | D96: 820.48 | E96: 801.02 | F96: 778.63 | G96: 759.17 | H96: 842.87 | I96: 862.33 | J96: 884.72 | K96: 839.95 | L96: 798.1 | M96: 37.6622
A97: 88 | B97: HCLTECH | C97: 834.1 | D97: 828.30 | E97: 820.90 | F97: 807.70 | G97: 800.30 | H97: 841.50 | I97: 848.90 | J97: 862.10 | K97: 835.7 | L97: 815.1 | M97: 80.78785
A98: 89 | B98: HDFC | C98: 2306.95 | D98: 2282.87 | E98: 2241.73 | F98: 2176.52 | G98: 2135.38 | H98: 2348.08 | I98: 2389.22 | J98: 2454.43 | K98: 2324 | L98: 2217.65 | M98: 70.3167
A99: 90 | B99: HDFCAMC | C99: 2511.45 | D99: 2520.27 | E99: 2491.18 | F99: 2470.92 | G99: 2441.83 | H99: 2540.53 | I99: 2569.62 | J99: 2589.88 | K99: 2549.35 | L99: 2500 | M99: 3.73724
A100: 91 | B100: HDFCBANK | C100: 1433.3 | D100: 1435.93 | E100: 1422.87 | F100: 1412.43 | G100: 1399.37 | H100: 1446.37 | I100: 1459.43 | J100: 1469.87 | K100: 1449 | L100: 1425.5 | M100: 85.73787
A101: 92 | B101: HDFCLIFE | C101: 641.9 | D101: 645.80 | E101: 635.60 | F101: 629.30 | G101: 619.10 | H101: 652.10 | I101: 662.30 | J101: 668.60 | K101: 656 | L101: 639.5 | M101: 45.69057
A102: 93 | B102: HEROMOTOCO | C102: 3110.25 | D102: 3105.07 | E102: 3080.23 | F102: 3050.22 | G102: 3025.38 | H102: 3135.08 | I102: 3159.92 | J102: 3189.93 | K102: 3129.9 | L102: 3075.05 | M102: 15.03427
A103: 94 | B103: HINDALCO | C103: 229.3 | D103: 227.77 | E103: 224.03 | F103: 218.77 | G103: 215.03 | H103: 233.03 | I103: 236.77 | J103: 242.03 | K103: 231.5 | L103: 222.5 | M103: 168.69243
A104: 95 | B104: HINDPETRO | C104: 211.6 | D104: 210.97 | E104: 209.43 | F104: 207.27 | G104: 205.73 | H104: 213.13 | I104: 214.67 | J104: 216.83 | K104: 212.5 | L104: 208.8 | M104: 40.18504
A105: 96 | B105: HINDUNILVR | C105: 2133.05 | D105: 2140.55 | E105: 2122.10 | F105: 2111.15 | G105: 2092.70 | H105: 2151.50 | I105: 2169.95 | J105: 2180.90 | K105: 2159 | L105: 2129.6 | M105: 22.26742
A106: 97 | B106: HINDZINC | C106: 227.6 | D106: 229.87 | E106: 224.73 | F106: 221.87 | G106: 216.73 | H106: 232.73 | I106: 237.87 | J106: 240.73 | K106: 235 | L106: 227 | M106: 10.10004
A107: 98 | B107: HUDCO | C107: 37.25 | D107: 36.72 | E107: 35.73 | F107: 34.22 | G107: 33.23 | H107: 38.23 | I107: 39.22 | J107: 40.73 | K107: 37.7 | L107: 35.2 | M107: 47.89882
A108: 99 | B108: IBULHSGFIN | C108: 188.85 | D108: 189.45 | E108: 184.80 | F108: 180.75 | G108: 176.10 | H108: 193.50 | I108: 198.15 | J108: 202.20 | K108: 194.1 | L108: 185.4 | M108: 140.75121
A109: 100 | B109: ICICIBANK | C109: 485.1 | D109: 482.63 | E109: 476.77 | F109: 468.43 | G109: 462.57 | H109: 490.97 | I109: 496.83 | J109: 505.17 | K109: 488.5 | L109: 474.3 | M109: 201.20049
A110: 101 | B110: ICICIGI | C110: 1471.15 | D110: 1476.70 | E110: 1453.50 | F110: 1435.85 | G110: 1412.65 | H110: 1494.35 | I110: 1517.55 | J110: 1535.20 | K110: 1499.9 | L110: 1459.05 | M110: 11.0245
A111: 102 | B111: ICICIPRULI | C111: 457.35 | D111: 453.03 | E111: 447.07 | F111: 436.78 | G111: 430.82 | H111: 463.32 | I111: 469.28 | J111: 479.57 | K111: 459 | L111: 442.75 | M111: 23.68793
A112: 103 | B112: IDBI | C112: 38.45 | D112: 38.57 | E112: 37.88 | F112: 37.32 | G112: 36.63 | H112: 39.13 | I112: 39.82 | J112: 40.38 | K112: 39.25 | L112: 38 | M112: 21.15891
A113: 104 | B113: IDEA | C113: 10 | D113: 9.98 | E113: 9.62 | F113: 9.23 | G113: 8.87 | H113: 10.37 | I113: 10.73 | J113: 11.12 | K113: 10.35 | L113: 9.6 | M113: 3543.20484
A114: 105 | B114: IDFCFIRSTB | C114: 37.1 | D114: 36.98 | E114: 36.67 | F114: 36.23 | G114: 35.92 | H114: 37.42 | I114: 37.73 | J114: 38.17 | K114: 37.3 | L114: 36.55 | M114: 232.24844
A115: 106 | B115: IGL | C115: 482.4 | D115: 489.08 | E115: 474.32 | F115: 466.23 | G115: 451.47 | H115: 497.17 | I115: 511.93 | J115: 520.02 | K115: 503.85 | L115: 481 | M115: 50.63995
A116: 107 | B116: INDHOTEL | C116: 120.1 | D116: 120.22 | E116: 118.48 | F116: 116.87 | G116: 115.13 | H116: 121.83 | I116: 123.57 | J116: 125.18 | K116: 121.95 | L116: 118.6 | M116: 25.5013
A117: 108 | B117: INDIGO | C117: 1559.75 | D117: 1548.90 | E117: 1526.35 | F117: 1492.95 | G117: 1470.40 | H117: 1582.30 | I117: 1604.85 | J117: 1638.25 | K117: 1571.45 | L117: 1515.5 | M117: 15.81554
A118: 109 | B118: INDUSINDBK | C118: 895.5 | D118: 884.53 | E118: 869.07 | F118: 842.63 | G118: 827.17 | H118: 910.97 | I118: 926.43 | J118: 952.87 | K118: 900 | L118: 858.1 | M118: 146.90547
A119: 110 | B119: INFRATEL | C119: 216 | D119: 218.73 | E119: 212.27 | F119: 208.53 | G119: 202.07 | H119: 222.47 | I119: 228.93 | J119: 232.67 | K119: 225.2 | L119: 215 | M119: 175.77449
A120: 111 | B120: INFY | C120: 1137.85 | D120: 1127.72 | E120: 1115.18 | F120: 1092.52 | G120: 1079.98 | H120: 1150.38 | I120: 1162.92 | J120: 1185.58 | K120: 1140.25 | L120: 1105.05 | M120: 89.33802
A121: 112 | B121: IOC | C121: 85.85 | D121: 85.32 | E121: 84.63 | F121: 83.42 | G121: 82.73 | H121: 86.53 | I121: 87.22 | J121: 88.43 | K121: 86 | L121: 84.1 | M121: 143.86967
A122: 113 | B122: IPCALAB | C122: 2273.8 | D122: 2261.00 | E122: 2223.00 | F122: 2172.20 | G122: 2134.20 | H122: 2311.80 | I122: 2349.80 | J122: 2400.60 | K122: 2299 | L122: 2210.2 | M122: 9.42717
A123: 114 | B123: IRCTC | C123: 1358.1 | D123: 1359.87 | E123: 1351.73 | F123: 1345.37 | G123: 1337.23 | H123: 1366.23 | I123: 1374.37 | J123: 1380.73 | K123: 1368 | L123: 1353.5 | M123: 1.89344
A124: 115 | B124: ITC | C124: 194.4 | D124: 194.38 | E124: 192.42 | F124: 190.43 | G124: 188.47 | H124: 196.37 | I124: 198.33 | J124: 200.32 | K124: 196.35 | L124: 192.4 | M124: 158.93346
A125: 116 | B125: JINDALSTEL | C125: 253.15 | D125: 251.40 | E125: 245.35 | F125: 237.55 | G125: 231.50 | H125: 259.20 | I125: 265.25 | J125: 273.05 | K125: 257.45 | L125: 243.6 | M125: 97.34697
A126: 117 | B126: JSWENERGY | C126: 63.1 | D126: 63.30 | E126: 62.05 | F126: 61.00 | G126: 59.75 | H126: 64.35 | I126: 65.60 | J126: 66.65 | K126: 64.55 | L126: 62.25 | M126: 21.91376
A127: 118 | B127: JSWSTEEL | C127: 358.15 | D127: 356.33 | E127: 353.67 | F127: 349.18 | G127: 346.52 | H127: 360.82 | I127: 363.48 | J127: 367.97 | K127: 359 | L127: 351.85 | M127: 64.75456
A128: 119 | B128: JUBILANT | C128: 727.1 | D128: 724.88 | E128: 714.97 | F128: 702.83 | G128: 692.92 | H128: 737.02 | I128: 746.93 | J128: 759.07 | K128: 734.8 | L128: 712.75 | M128: 2.2163
A129: 120 | B129: JUBLFOOD | C129: 2511.95 | D129: 2509.35 | E129: 2468.70 | F129: 2425.45 | G129: 2384.80 | H129: 2552.60 | I129: 2593.25 | J129: 2636.50 | K129: 2550 | L129: 2466.1 | M129: 6.69366
A130: 121 | B130: KOTAKBANK | C130: 1875.85 | D130: 1890.13 | E130: 1850.27 | F130: 1824.68 | G130: 1784.82 | H130: 1915.72 | I130: 1955.58 | J130: 1981.17 | K130: 1930 | L130: 1864.55 | M130: 79.55798
A131: 122 | B131: L&TFH | C131: 87.75 | D131: 86.92 | E131: 84.83 | F131: 81.92 | G131: 79.83 | H131: 89.83 | I131: 91.92 | J131: 94.83 | K131: 89 | L131: 84 | M131: 310.20865
A132: 123 | B132: LALPATHLAB | C132: 2278.6 | D132: 2280.68 | E132: 2259.12 | F132: 2239.63 | G132: 2218.07 | H132: 2300.17 | I132: 2321.73 | J132: 2341.22 | K132: 2302.25 | L132: 2261.2 | M132: 1.04402
A133: 124 | B133: LICHSGFIN | C133: 339.3 | D133: 335.83 | E133: 329.17 | F133: 319.03 | G133: 312.37 | H133: 345.97 | I133: 352.63 | J133: 362.77 | K133: 342.5 | L133: 325.7 | M133: 105.316
A134: 125 | B134: LT | C134: 1115.95 | D134: 1122.38 | E134: 1104.77 | F134: 1093.58 | G134: 1075.97 | H134: 1133.57 | I134: 1151.18 | J134: 1162.37 | K134: 1140 | L134: 1111.2 | M134: 35.51604
A135: 126 | B135: LTI | C135: 3353.45 | D135: 3342.28 | E135: 3213.22 | F135: 3072.98 | G135: 2943.92 | H135: 3482.52 | I135: 3611.58 | J135: 3751.82 | K135: 3471.35 | L135: 3202.05 | M135: 8.65205
A136: 127 | B136: LTTS | C136: 1770.3 | D136: 1754.22 | E136: 1734.43 | F136: 1698.57 | G136: 1678.78 | H136: 1790.08 | I136: 1809.87 | J136: 1845.73 | K136: 1774 | L136: 1718.35 | M136: 2.12886
A137: 128 | B137: LUPIN | C137: 909.8 | D137: 905.43 | E137: 896.52 | F137: 883.23 | G137: 874.32 | H137: 918.72 | I137: 927.63 | J137: 940.92 | K137: 914.35 | L137: 892.15 | M137: 29.1566
A138: 129 | B138: M&M | C138: 734.55 | D138: 726.37 | E138: 716.23 | F138: 697.92 | G138: 687.78 | H138: 744.68 | I138: 754.82 | J138: 773.13 | K138: 736.5 | L138: 708.05 | M138: 57.10611
A139: 130 | B139: M&MFIN | C139: 167.7 | D139: 168.45 | E139: 164.50 | F139: 161.30 | G139: 157.35 | H139: 171.65 | I139: 175.60 | J139: 178.80 | K139: 172.4 | L139: 165.25 | M139: 89.52373
A140: 131 | B140: MANAPPURAM | C140: 173.55 | D140: 175.25 | E140: 171.00 | F140: 168.45 | G140: 164.20 | H140: 177.80 | I140: 182.05 | J140: 184.60 | K140: 179.5 | L140: 172.7 | M140: 83.40791
A141: 132 | B141: MARICO | C141: 373.8 | D141: 370.53 | E141: 365.77 | F141: 357.73 | G141: 352.97 | H141: 378.57 | I141: 383.33 | J141: 391.37 | K141: 375.3 | L141: 362.5 | M141: 35.30432
A142: 133 | B142: MARUTI | C142: 7101.7 | D142: 7072.90 | E142: 7004.00 | F142: 6906.30 | G142: 6837.40 | H142: 7170.60 | I142: 7239.50 | J142: 7337.20 | K142: 7141.8 | L142: 6975.2 | M142: 10.76695
A143: 134 | B143: MCDOWELL-N | C143: 566.95 | D143: 561.03 | E143: 552.92 | F143: 538.88 | G143: 530.77 | H143: 575.07 | I143: 583.18 | J143: 597.22 | K143: 569.15 | L143: 547 | M143: 23.08974
A144: 135 | B144: MFSL | C144: 640.1 | D144: 642.10 | E144: 630.80 | F144: 621.50 | G144: 610.20 | H144: 651.40 | I144: 662.70 | J144: 672.00 | K144: 653.4 | L144: 632.8 | M144: 18.04684
A145: 136 | B145: MGL | C145: 1059.35 | D145: 1063.82 | E145: 1043.13 | F145: 1026.92 | G145: 1006.23 | H145: 1080.03 | I145: 1100.72 | J145: 1116.93 | K145: 1084.5 | L145: 1047.6 | M145: 22.69915
A146: 137 | B146: MINDTREE | C146: 1411.6 | D146: 1408.85 | E146: 1393.75 | F146: 1375.90 | G146: 1360.80 | H146: 1426.70 | I146: 1441.80 | J146: 1459.65 | K146: 1423.95 | L146: 1391 | M146: 7.12194
A147: 138 | B147: MOTHERSUMI | C147: 157.2 | D147: 154.05 | E147: 149.45 | F147: 141.70 | G147: 137.10 | H147: 161.80 | I147: 166.40 | J147: 174.15 | K147: 158.65 | L147: 146.3 | M147: 280.2154
A148: 139 | B148: MPHASIS | C148: 1310.65 | D148: 1313.57 | E148: 1297.13 | F148: 1283.62 | G148: 1267.18 | H148: 1327.08 | I148: 1343.52 | J148: 1357.03 | K148: 1330 | L148: 1300.05 | M148: 3.20457
A149: 140 | B149: MRF | C149: 79564.3 | D149: 79148.05 | E149: 78193.75 | F149: 76823.20 | G149: 75868.90 | H149: 80518.60 | I149: 81472.90 | J149: 82843.45 | K149: 80102.35 | L149: 77777.5 | M149: 0.57627
A150: 141 | B150: MRPL | C150: 31.95 | D150: 31.27 | E150: 29.93 | F150: 27.92 | G150: 26.58 | H150: 33.28 | I150: 34.62 | J150: 36.63 | K150: 32.6 | L150: 29.25 | M150: 77.12697
A151: 142 | B151: MUTHOOTFIN | C151: 1153.65 | D151: 1155.20 | E151: 1138.45 | F151: 1123.25 | G151: 1106.50 | H151: 1170.40 | I151: 1187.15 | J151: 1202.35 | K151: 1171.95 | L151: 1140 | M151: 24.93653
A152: 143 | B152: NAM-INDIA | C152: 290.4 | D152: 291.13 | E152: 287.87 | F152: 285.33 | G152: 282.07 | H152: 293.67 | I152: 296.93 | J152: 299.47 | K152: 294.4 | L152: 288.6 | M152: 4.53106
A153: 144 | B153: NATCOPHARM | C153: 914 | D153: 920.18 | E153: 901.42 | F153: 888.83 | G153: 870.07 | H153: 932.77 | I153: 951.53 | J153: 964.12 | K153: 938.95 | L153: 907.6 | M153: 3.16391
A154: 145 | B154: NATIONALUM | C154: 39.75 | D154: 39.47 | E154: 38.93 | F154: 38.12 | G154: 37.58 | H154: 40.28 | I154: 40.82 | J154: 41.63 | K154: 40 | L154: 38.65 | M154: 202.80722
A155: 146 | B155: NAUKRI | C155: 4206.8 | D155: 4271.10 | E155: 4115.70 | F155: 4024.60 | G155: 3869.20 | H155: 4362.20 | I155: 4517.60 | J155: 4608.70 | K155: 4426.5 | L155: 4180 | M155: 4.68632
A156: 147 | B156: NESTLEIND | C156: 17418.15 | D156: 17605.87 | E156: 17143.83 | F156: 16869.52 | G156: 16407.48 | H156: 17880.18 | I156: 18342.22 | J156: 18616.53 | K156: 18067.9 | L156: 17331.55 | M156: 2.35086
A157: 148 | B157: NHPC | C157: 21.75 | D157: 21.72 | E157: 21.53 | F157: 21.32 | G157: 21.13 | H157: 21.93 | I157: 22.12 | J157: 22.33 | K157: 21.9 | L157: 21.5 | M157: 61.46228
A158: 149 | B158: NMDC | C158: 99.25 | D158: 98.37 | E158: 96.78 | F158: 94.32 | G158: 92.73 | H158: 100.83 | I158: 102.42 | J158: 104.88 | K158: 99.95 | L158: 95.9 | M158: 103.2694
A159: 150 | B159: NTPC | C159: 93.75 | D159: 94.47 | E159: 92.73 | F159: 91.72 | G159: 89.98 | H159: 95.48 | I159: 97.22 | J159: 98.23 | K159: 96.2 | L159: 93.45 | M159: 353.30973
A160: 151 | B160: OBEROIRLTY | C160: 480.7 | D160: 476.42 | E160: 467.88 | F160: 455.07 | G160: 446.53 | H160: 489.23 | I160: 497.77 | J160: 510.58 | K160: 484.95 | L160: 463.6 | M160: 4.97434
A161: 152 | B161: OFSS | C161: 3018 | D161: 3031.35 | E161: 2997.70 | F161: 2977.40 | G161: 2943.75 | H161: 3051.65 | I161: 3085.30 | J161: 3105.60 | K161: 3065 | L161: 3011.05 | M161: 0.52116
A162: 153 | B162: OIL | C162: 99.95 | D162: 98.87 | E162: 95.83 | F162: 91.72 | G162: 88.68 | H162: 102.98 | I162: 106.02 | J162: 110.13 | K162: 101.9 | L162: 94.75 | M162: 31.625
A163: 154 | B163: ONGC | C163: 81.55 | D163: 80.20 | E163: 78.40 | F163: 75.25 | G163: 73.45 | H163: 83.35 | I163: 85.15 | J163: 88.30 | K163: 82 | L163: 77.05 | M163: 429.23229
A164: 155 | B164: PAGEIND | C164: 22928.05 | D164: 23072.68 | E164: 22685.37 | F164: 22442.68 | G164: 22055.37 | H164: 23315.37 | I164: 23702.68 | J164: 23945.37 | K164: 23460 | L164: 22830 | M164: 0.35123
A165: 156 | B165: PEL | C165: 1414.45 | D165: 1413.23 | E165: 1391.47 | F165: 1368.48 | G165: 1346.72 | H165: 1436.22 | I165: 1457.98 | J165: 1480.97 | K165: 1435 | L165: 1390.25 | M165: 10.2926
A166: 157 | B166: PETRONET | C166: 254.25 | D166: 253.70 | E166: 251.55 | F166: 248.85 | G166: 246.70 | H166: 256.40 | I166: 258.55 | J166: 261.25 | K166: 255.85 | L166: 251 | M166: 36.28018
A167: 158 | B167: PFC | C167: 108.85 | D167: 108.38 | E167: 107.42 | F167: 105.98 | G167: 105.02 | H167: 109.82 | I167: 110.78 | J167: 112.22 | K167: 109.35 | L167: 106.95 | M167: 44.3903
A168: 159 | B168: PFIZER | C168: 5107.65 | D168: 5115.57 | E168: 5077.08 | F168: 5046.52 | G168: 5008.03 | H168: 5146.13 | I168: 5184.62 | J168: 5215.18 | K168: 5154.05 | L168: 5085 | M168: 0.40414
A169: 160 | B169: PGHH | C169: 10659.95 | D169: 10642.58 | E169: 10565.67 | F169: 10471.38 | G169: 10394.47 | H169: 10736.87 | I169: 10813.78 | J169: 10908.07 | K169: 10719.5 | L169: 10548.3 | M169: 0.08053
A170: 161 | B170: PIDILITIND | C170: 1551.05 | D170: 1549.30 | E170: 1536.05 | F170: 1521.05 | G170: 1507.80 | H170: 1564.30 | I170: 1577.55 | J170: 1592.55 | K170: 1562.55 | L170: 1534.3 | M170: 6.42065
A171: 162 | B171: PIIND | C171: 2332.8 | D171: 2311.13 | E171: 2274.27 | F171: 2215.73 | G171: 2178.87 | H171: 2369.67 | I171: 2406.53 | J171: 2465.07 | K171: 2348 | L171: 2252.6 | M171: 8.52245
A172: 163 | B172: PNB | C172: 34.45 | D172: 34.13 | E172: 33.62 | F172: 32.78 | G172: 32.27 | H172: 34.97 | I172: 35.48 | J172: 36.32 | K172: 34.65 | L172: 33.3 | M172: 584.87858
A173: 164 | B173: PNBHOUSING | C173: 376.65 | D173: 378.13 | E173: 374.42 | F173: 372.18 | G173: 368.47 | H173: 380.37 | I173: 384.08 | J173: 386.32 | K173: 381.85 | L173: 375.9 | M173: 1.49889
A174: 165 | B174: POLYCAB | C174: 960.45 | D174: 959.20 | E174: 951.90 | F174: 943.35 | G174: 936.05 | H174: 967.75 | I174: 975.05 | J174: 983.60 | K174: 966.5 | L174: 950.65 | M174: 9.26604
A175: 166 | B175: POWERGRID | C175: 192.35 | D175: 193.48 | E175: 190.52 | F175: 188.68 | G175: 185.72 | H175: 195.32 | I175: 198.28 | J175: 200.12 | K175: 196.45 | L175: 191.65 | M175: 102.34084
A176: 167 | B176: PRESTIGE | C176: 289.45 | D176: 282.32 | E176: 273.63 | F176: 257.82 | G176: 249.13 | H176: 298.13 | I176: 306.82 | J176: 322.63 | K176: 291 | L176: 266.5 | M176: 14.93498
A177: 168 | B177: QUESS | C177: 518.8 | D177: 512.32 | E177: 499.08 | F177: 479.37 | G177: 466.13 | H177: 532.03 | I177: 545.27 | J177: 564.98 | K177: 525.55 | L177: 492.6 | M177: 1.75735
A178: 169 | B178: RAJESHEXPO | C178: 453.45 | D178: 453.35 | E178: 450.70 | F178: 447.95 | G178: 445.30 | H178: 456.10 | I178: 458.75 | J178: 461.50 | K178: 456 | L178: 450.6 | M178: 1.30251
A179: 170 | B179: RAMCOCEM | C179: 889.55 | D179: 889.45 | E179: 878.90 | F179: 868.25 | G179: 857.70 | H179: 900.10 | I179: 910.65 | J179: 921.30 | K179: 900 | L179: 878.8 | M179: 9.96428
A180: 171 | B180: RBLBANK | C180: 225.7 | D180: 224.53 | E180: 221.27 | F180: 216.83 | G180: 213.57 | H180: 228.97 | I180: 232.23 | J180: 236.67 | K180: 227.8 | L180: 220.1 | M180: 120.95583
A181: 172 | B181: RECLTD | C181: 120.8 | D181: 120.58 | E181: 119.22 | F181: 117.63 | G181: 116.27 | H181: 122.17 | I181: 123.53 | J181: 125.12 | K181: 121.95 | L181: 119 | M181: 79.18092
A182: 173 | B182: RELIANCE | C182: 1954.9 | D182: 1950.40 | E182: 1934.55 | F182: 1914.20 | G182: 1898.35 | H182: 1970.75 | I182: 1986.60 | J182: 2006.95 | K182: 1966.25 | L182: 1930.05 | M182: 91.14939
A183: 174 | B183: SAIL | C183: 49.95 | D183: 49.52 | E183: 48.33 | F183: 46.72 | G183: 45.53 | H183: 51.13 | I183: 52.32 | J183: 53.93 | K183: 50.7 | L183: 47.9 | M183: 464.40917
A184: 175 | B184: SBICARD | C184: 799.95 | D184: 801.30 | E184: 795.60 | F184: 791.25 | G184: 785.55 | H184: 805.65 | I184: 811.35 | J184: 815.70 | K184: 807 | L184: 796.95 | M184: 9.51069
A185: 176 | B185: SBILIFE | C185: 851.35 | D185: 848.85 | E185: 842.70 | F185: 834.05 | G185: 827.90 | H185: 857.50 | I185: 863.65 | J185: 872.30 | K185: 855 | L185: 840.2 | M185: 10.27637
A186: 177 | B186: SBIN | C186: 248.05 | D186: 247.08 | E186: 245.22 | F186: 242.38 | G186: 240.52 | H186: 249.92 | I186: 251.78 | J186: 254.62 | K186: 248.95 | L186: 244.25 | M186: 370.03272
A187: 178 | B187: SHREECEM | C187: 24908.4 | D187: 25037.77 | E187: 24420.03 | F187: 23931.67 | G187: 23313.93 | H187: 25526.13 | I187: 26143.87 | J187: 26632.23 | K187: 25655.5 | L187: 24549.4 | M187: 0.95268
A188: 179 | B188: SIEMENS | C188: 1517.55 | D188: 1517.57 | E188: 1490.13 | F188: 1462.72 | G188: 1435.28 | H188: 1544.98 | I188: 1572.42 | J188: 1599.83 | K188: 1545 | L188: 1490.15 | M188: 10.01758
A189: 180 | B189: SRF | C189: 5098 | D189: 5114.62 | E189: 5049.73 | F189: 5001.47 | G189: 4936.58 | H189: 5162.88 | I189: 5227.77 | J189: 5276.03 | K189: 5179.5 | L189: 5066.35 | M189: 1.16811
A190: 181 | B190: SRTRANSFIN | C190: 1023.55 | D190: 1040.75 | E190: 1001.50 | F190: 979.45 | G190: 940.20 | H190: 1062.80 | I190: 1102.05 | J190: 1124.10 | K190: 1080 | L190: 1018.7 | M190: 39.71538
A191: 182 | B191: SUNPHARMA | C191: 539.35 | D191: 531.58 | E191: 520.42 | F191: 501.48 | G191: 490.32 | H191: 550.52 | I191: 561.68 | J191: 580.62 | K191: 542.75 | L191: 512.65 | M191: 253.88623
A192: 183 | B192: SUNTV | C192: 445.05 | D192: 445.07 | E192: 438.83 | F192: 432.62 | G192: 426.38 | H192: 451.28 | I192: 457.52 | J192: 463.73 | K192: 451.3 | L192: 438.85 | M192: 25.0911
A193: 184 | B193: SYNGENE | C193: 568.7 | D193: 570.25 | E193: 558.50 | F193: 548.30 | G193: 536.55 | H193: 580.45 | I193: 592.20 | J193: 602.40 | K193: 582 | L193: 560.05 | M193: 5.27981
A194: 185 | B194: TATACONSUM | C194: 529.3 | D194: 536.20 | E194: 518.40 | F194: 507.50 | G194: 489.70 | H194: 547.10 | I194: 564.90 | J194: 575.80 | K194: 554 | L194: 525.3 | M194: 51.05352
A195: 186 | B195: TATAMOTORS | C195: 179.75 | D195: 180.08 | E195: 177.77 | F195: 175.78 | G195: 173.47 | H195: 182.07 | I195: 184.38 | J195: 186.37 | K195: 182.4 | L195: 178.1 | M195: 488.8125
A196: 187 | B196: TATAPOWER | C196: 68.85 | D196: 67.77 | E196: 66.08 | F196: 63.32 | G196: 61.63 | H196: 70.53 | I196: 72.22 | J196: 74.98 | K196: 69.45 | L196: 65 | M196: 707.04403
A197: 188 | B197: TATASTEEL | C197: 585.8 | D197: 584.92 | E197: 577.83 | F197: 569.87 | G197: 562.78 | H197: 592.88 | I197: 599.97 | J197: 607.93 | K197: 592 | L197: 576.95 | M197: 147.39109
A198: 189 | B198: TCS | C198: 2726.8 | D198: 2695.72 | E198: 2655.53 | F198: 2584.27 | G198: 2544.08 | H198: 2766.98 | I198: 2807.17 | J198: 2878.43 | K198: 2735.9 | L198: 2624.45 | M198: 36.05017
A199: 190 | B199: TECHM | C199: 907.3 | D199: 897.70 | E199: 881.25 | F199: 855.20 | G199: 838.75 | H199: 923.75 | I199: 940.20 | J199: 966.25 | K199: 914.15 | L199: 871.65 | M199: 58.21698
A200: 191 | B200: TITAN | C200: 1341.1 | D200: 1354.17 | E200: 1321.93 | F200: 1302.77 | G200: 1270.53 | H200: 1373.33 | I200: 1405.57 | J200: 1424.73 | K200: 1386.4 | L200: 1335 | M200: 28.81906
A201: 192 | B201: TORNTPHARM | C201: 2653.6 | D201: 2644.60 | E201: 2618.70 | F201: 2583.80 | G201: 2557.90 | H201: 2679.50 | I201: 2705.40 | J201: 2740.30 | K201: 2670.5 | L201: 2609.7 | M201: 2.79813
A202: 193 | B202: TORNTPOWER | C202: 317.2 | D202: 318.07 | E202: 314.63 | F202: 312.07 | G202: 308.63 | H202: 320.63 | I202: 324.07 | J202: 326.63 | K202: 321.5 | L202: 315.5 | M202: 17.03292
A203: 194 | B203: TRENT | C203: 715.5 | D203: 721.98 | E203: 698.87 | F203: 682.23 | G203: 659.12 | H203: 738.62 | I203: 761.73 | J203: 778.37 | K203: 745.1 | L203: 705.35 | M203: 17.54561
A204: 195 | B204: TVSMOTOR | C204: 500.35 | D204: 499.90 | E204: 493.00 | F204: 485.65 | G204: 478.75 | H204: 507.25 | I204: 514.15 | J204: 521.50 | K204: 506.8 | L204: 492.55 | M204: 33.81249
A205: 196 | B205: UBL | C205: 1088.4 | D205: 1071.50 | E205: 1052.00 | F205: 1015.60 | G205: 996.10 | H205: 1107.90 | I205: 1127.40 | J205: 1163.80 | K205: 1091 | L205: 1035.1 | M205: 7.27712
... 27 more rows

Sheet MidCap Intra
L5: Back To Main Page
A6: FOR INTRA DAY TRADING | K6: =Main!B10 -> 2020-12-02
A9: Sr.no | B9: Scrip | C9: CLOSE RATE | D9: Pivot Point | E9: Supports | H9: Resistances
C10: Point | E10: S1 | F10: S2 | G10: S3 | H10: R1 | I10: R2 | J10: R3 | K10: HIGH | L10: LOW | M10: Total Trade Quanity in Lakhs
A11: 1 | B11: 3MINDIA | C11: 21945.45 | D11: 22042.77 | E11: 21330.53 | F11: 20715.62 | G11: 20003.38 | H11: 22657.68 | I11: 23369.92 | J11: 23984.83 | K11: 22755 | L11: 21427.85 | M11: 0.10241
A12: 2 | B12: AARTIIND | C12: 1156.95 | D12: 1156.98 | E12: 1143.97 | F12: 1130.98 | G12: 1117.97 | H12: 1169.97 | I12: 1182.98 | J12: 1195.97 | K12: 1170 | L12: 1144 | M12: 2.70398
A13: 3 | B13: AAVAS | C13: 1638.4 | D13: 1629.53 | E13: 1610.87 | F13: 1583.33 | G13: 1564.67 | H13: 1657.07 | I13: 1675.73 | J13: 1703.27 | K13: 1648.2 | L13: 1602 | M13: 2.42059
A14: 4 | B14: ABB | C14: 1138.05 | D14: 1118.97 | E14: 1092.93 | F14: 1047.82 | G14: 1021.78 | H14: 1164.08 | I14: 1190.12 | J14: 1235.23 | K14: 1145 | L14: 1073.85 | M14: 2.80795
A15: 5 | B15: ABBOTINDIA | C15: 15398.6 | D15: 15417.85 | E15: 15330.75 | F15: 15262.90 | G15: 15175.80 | H15: 15485.70 | I15: 15572.80 | J15: 15640.65 | K15: 15504.95 | L15: 15350 | M15: 0.11889
A16: 6 | B16: ABCAPITAL | C16: 93.6 | D16: 92.33 | E16: 90.17 | F16: 86.73 | G16: 84.57 | H16: 95.77 | I16: 97.93 | J16: 101.37 | K16: 94.5 | L16: 88.9 | M16: 74.32377
A17: 7 | B17: ABFRL | C17: 161.35 | D17: 162.62 | E17: 159.28 | F17: 157.22 | G17: 153.88 | H17: 164.68 | I17: 168.02 | J17: 170.08 | K17: 165.95 | L17: 160.55 | M17: 29.84535
A18: 8 | B18: ACC | C18: 1747.9 | D18: 1746.27 | E18: 1707.53 | F18: 1667.17 | G18: 1628.43 | H18: 1786.63 | I18: 1825.37 | J18: 1865.73 | K18: 1785 | L18: 1705.9 | M18: 32.42401
A19: 9 | B19: ADANIGAS | C19: 360.95 | D19: 360.92 | E19: 350.03 | F19: 339.12 | G19: 328.23 | H19: 371.83 | I19: 382.72 | J19: 393.63 | K19: 371.8 | L19: 350 | M19: 87.99937
A20: 10 | B20: ADANIGREEN | C20: 1134.7 | D20: 1124.35 | E20: 1092.70 | F20: 1050.70 | G20: 1019.05 | H20: 1166.35 | I20: 1198.00 | J20: 1240.00 | K20: 1156 | L20: 1082.35 | M20: 25.99117
A21: 11 | B21: ADANIPORTS | C21: 423.8 | D21: 420.60 | E21: 415.20 | F21: 406.60 | G21: 401.20 | H21: 429.20 | I21: 434.60 | J21: 443.20 | K21: 426 | L21: 412 | M21: 91.70159
A22: 12 | B22: ADANIPOWER | C22: 41.05 | D22: 40.50 | E22: 39.20 | F22: 37.35 | G22: 36.05 | H22: 42.35 | I22: 43.65 | J22: 45.50 | K22: 41.8 | L22: 38.65 | M22: 277.63237
A23: 13 | B23: ADANITRANS | C23: 378.95 | D23: 378.00 | E23: 373.00 | F23: 367.05 | G23: 362.05 | H23: 383.95 | I23: 388.95 | J23: 394.90 | K23: 383 | L23: 372.05 | M23: 5.33772
A24: 14 | B24: ADVENZYMES | C24: 360.35 | D24: 360.42 | E24: 352.83 | F24: 345.32 | G24: 337.73 | H24: 367.93 | I24: 375.52 | J24: 383.03 | K24: 368 | L24: 352.9 | M24: 4.25057
A25: 15 | B25: AEGISCHEM | C25: 261.55 | D25: 258.77 | E25: 248.38 | F25: 235.22 | G25: 224.83 | H25: 271.93 | I25: 282.32 | J25: 295.48 | K25: 269.15 | L25: 245.6 | M25: 11.40682
A26: 16 | B26: AFFLE | C26: 3589.4 | D26: 3566.62 | E26: 3543.83 | F26: 3498.27 | G26: 3475.48 | H26: 3612.18 | I26: 3634.97 | J26: 3680.53 | K26: 3589.4 | L26: 3521.05 | M26: 0.91844
A27: 17 | B27: AIAENG | C27: 1883.8 | D27: 1873.23 | E27: 1832.57 | F27: 1781.33 | G27: 1740.67 | H27: 1924.47 | I27: 1965.13 | J27: 2016.37 | K27: 1913.9 | L27: 1822 | M27: 0.23324
A28: 18 | B28: AJANTPHARM | C28: 1534.75 | D28: 1541.42 | E28: 1523.33 | F28: 1511.92 | G28: 1493.83 | H28: 1552.83 | I28: 1570.92 | J28: 1582.33 | K28: 1559.5 | L28: 1530 | M28: 1.56043
A29: 19 | B29: AKZOINDIA | C29: 2130.9 | D29: 2148.08 | E29: 2103.82 | F29: 2076.73 | G29: 2032.47 | H29: 2175.17 | I29: 2219.43 | J29: 2246.52 | K29: 2192.35 | L29: 2121 | M29: 0.11607
A30: 20 | B30: ALKEM | C30: 2789.05 | D30: 2811.17 | E30: 2755.33 | F30: 2721.62 | G30: 2665.78 | H30: 2844.88 | I30: 2900.72 | J30: 2934.43 | K30: 2867 | L30: 2777.45 | M30: 0.98367
A31: 21 | B31: ALKYLAMINE | C31: 3967.1 | D31: 3975.72 | E31: 3901.43 | F31: 3835.77 | G31: 3761.48 | H31: 4041.38 | I31: 4115.67 | J31: 4181.33 | K31: 4050 | L31: 3910.05 | M31: 0.50004
A32: 22 | B32: ALLCARGO | C32: 125.65 | D32: 126.02 | E32: 124.13 | F32: 122.62 | G32: 120.73 | H32: 127.53 | I32: 129.42 | J32: 130.93 | K32: 127.9 | L32: 124.5 | M32: 3.16899
A33: 23 | B33: AMARAJABAT | C33: 922.15 | D33: 927.98 | E33: 909.17 | F33: 896.18 | G33: 877.37 | H33: 940.97 | I33: 959.78 | J33: 972.77 | K33: 946.8 | L33: 915 | M33: 9.89384
A34: 24 | B34: AMBER | C34: 2439.1 | D34: 2455.35 | E34: 2385.75 | F34: 2332.40 | G34: 2262.80 | H34: 2508.70 | I34: 2578.30 | J34: 2631.65 | K34: 2524.95 | L34: 2402 | M34: 2.53296
A35: 25 | B35: AMBUJACEM | C35: 262 | D35: 264.15 | E35: 258.75 | F35: 255.50 | G35: 250.10 | H35: 267.40 | I35: 272.80 | J35: 276.05 | K35: 269.55 | L35: 260.9 | M35: 62.62243
A36: 26 | B36: APLAPOLLO | C36: 3446.85 | D36: 3443.62 | E36: 3389.23 | F36: 3331.62 | G36: 3277.23 | H36: 3501.23 | I36: 3555.62 | J36: 3613.23 | K36: 3498 | L36: 3386 | M36: 0.58713
A37: 27 | B37: APLLTD | C37: 983.75 | D37: 984.28 | E37: 970.57 | F37: 957.38 | G37: 943.67 | H37: 997.47 | I37: 1011.18 | J37: 1024.37 | K37: 998 | L37: 971.1 | M37: 2.32479
A38: 28 | B38: APOLLOHOSP | C38: 2463 | D38: 2440.30 | E38: 2371.75 | F38: 2280.50 | G38: 2211.95 | H38: 2531.55 | I38: 2600.10 | J38: 2691.35 | K38: 2508.85 | L38: 2349.05 | M38: 20.01392
A39: 29 | B39: APOLLOTYRE | C39: 187 | D39: 185.93 | E39: 183.87 | F39: 180.73 | G39: 178.67 | H39: 189.07 | I39: 191.13 | J39: 194.27 | K39: 188 | L39: 182.8 | M39: 62.64103
A40: 30 | B40: ARVINDFASN | C40: 134.05 | D40: 133.60 | E40: 132.00 | F40: 129.95 | G40: 128.35 | H40: 135.65 | I40: 137.25 | J40: 139.30 | K40: 135.2 | L40: 131.55 | M40: 6.03426
A41: 31 | B41: ASAHIINDIA | C41: 256.7 | D41: 256.22 | E41: 246.13 | F41: 235.57 | G41: 225.48 | H41: 266.78 | I41: 276.87 | J41: 287.43 | K41: 266.3 | L41: 245.65 | M41: 0.652
A42: 32 | B42: ASHOKA | C42: 79.35 | D42: 79.05 | E42: 78.10 | F42: 76.85 | G42: 75.90 | H42: 80.30 | I42: 81.25 | J42: 82.50 | K42: 80 | L42: 77.8 | M42: 37.4919
A43: 33 | B43: ASHOKLEY | C43: 92.65 | D43: 92.62 | E43: 91.38 | F43: 90.12 | G43: 88.88 | H43: 93.88 | I43: 95.12 | J43: 96.38 | K43: 93.85 | L43: 91.35 | M43: 274.52587
A44: 34 | B44: ASIANPAINT | C44: 2230.05 | D44: 2237.08 | E44: 2199.17 | F44: 2168.28 | G44: 2130.37 | H44: 2267.97 | I44: 2305.88 | J44: 2336.77 | K44: 2275 | L44: 2206.2 | M44: 22.35498
A45: 35 | B45: ASTERDM | C45: 172.25 | D45: 171.68 | E45: 169.37 | F45: 166.48 | G45: 164.17 | H45: 174.57 | I45: 176.88 | J45: 179.77 | K45: 174 | L45: 168.8 | M45: 3.20378
A46: 36 | B46: ASTRAL | C46: 1427.95 | D46: 1440.23 | E46: 1403.72 | F46: 1379.48 | G46: 1342.97 | H46: 1464.47 | I46: 1500.98 | J46: 1525.22 | K46: 1476.75 | L46: 1416 | M46: 1.67859
A47: 37 | B47: ASTRAZEN | C47: 4528.45 | D47: 4537.22 | E47: 4496.43 | F47: 4464.42 | G47: 4423.63 | H47: 4569.23 | I47: 4610.02 | J47: 4642.03 | K47: 4578 | L47: 4505.2 | M47: 0.37577
A48: 38 | B48: ATUL | C48: 6202.55 | D48: 6240.85 | E48: 6136.70 | F48: 6070.85 | G48: 5966.70 | H48: 6306.70 | I48: 6410.85 | J48: 6476.70 | K48: 6345 | L48: 6175 | M48: 0.2054
A49: 39 | B49: AUBANK | C49: 872.9 | D49: 862.63 | E49: 850.27 | F49: 827.63 | G49: 815.27 | H49: 885.27 | I49: 897.63 | J49: 920.27 | K49: 875 | L49: 840 | M49: 6.10117
A50: 40 | B50: AUROPHARMA | C50: 897.15 | D50: 888.48 | E50: 877.87 | F50: 858.58 | G50: 847.97 | H50: 907.77 | I50: 918.38 | J50: 937.67 | K50: 899.1 | L50: 869.2 | M50: 33.53447
A51: 41 | B51: AVANTIFEED | C51: 536.3 | D51: 533.70 | E51: 527.60 | F51: 518.90 | G51: 512.80 | H51: 542.40 | I51: 548.50 | J51: 557.20 | K51: 539.8 | L51: 525 | M51: 7.37787
A52: 42 | B52: AXISBANK | C52: 603.65 | D52: 604.95 | E52: 594.90 | F52: 586.15 | G52: 576.10 | H52: 613.70 | I52: 623.75 | J52: 632.50 | K52: 615 | L52: 596.2 | M52: 212.85697
A53: 43 | B53: BAJAJ-AUTO | C53: 3243.65 | D53: 3217.87 | E53: 3186.78 | F53: 3129.92 | G53: 3098.83 | H53: 3274.73 | I53: 3305.82 | J53: 3362.68 | K53: 3248.95 | L53: 3161 | M53: 14.00851
A54: 44 | B54: BAJAJCON | C54: 207.3 | D54: 206.55 | E54: 203.40 | F54: 199.50 | G54: 196.35 | H54: 210.45 | I54: 213.60 | J54: 217.50 | K54: 209.7 | L54: 202.65 | M54: 14.9224
A55: 45 | B55: BAJAJELEC | C55: 590.7 | D55: 586.17 | E55: 577.33 | F55: 563.97 | G55: 555.13 | H55: 599.53 | I55: 608.37 | J55: 621.73 | K55: 595 | L55: 572.8 | M55: 3.00345
A56: 46 | B56: BAJAJFINSV | C56: 8746.55 | D56: 8762.68 | E56: 8696.52 | F56: 8646.48 | G56: 8580.32 | H56: 8812.72 | I56: 8878.88 | J56: 8928.92 | K56: 8828.85 | L56: 8712.65 | M56: 6.94283
A57: 47 | B57: BAJAJHLDNG | C57: 3094.3 | D57: 3089.93 | E57: 3064.37 | F57: 3034.43 | G57: 3008.87 | H57: 3119.87 | I57: 3145.43 | J57: 3175.37 | K57: 3115.5 | L57: 3060 | M57: 0.79083
A58: 48 | B58: BAJFINANCE | C58: 4861.1 | D58: 4879.58 | E58: 4806.77 | F58: 4752.43 | G58: 4679.62 | H58: 4933.92 | I58: 5006.73 | J58: 5061.07 | K58: 4952.4 | L58: 4825.25 | M58: 40.17427
A59: 49 | B59: BALKRISIND | C59: 1654.75 | D59: 1670.58 | E59: 1621.17 | F59: 1587.58 | G59: 1538.17 | H59: 1704.17 | I59: 1753.58 | J59: 1787.17 | K59: 1720 | L59: 1637 | M59: 14.72529
A60: 50 | B60: BALMLAWRIE | C60: 108.3 | D60: 107.90 | E60: 106.40 | F60: 104.50 | G60: 103.00 | H60: 109.80 | I60: 111.30 | J60: 113.20 | K60: 109.4 | L60: 106 | M60: 3.99082
A61: 51 | B61: BALRAMCHIN | C61: 174.15 | D61: 171.52 | E61: 168.38 | F61: 162.62 | G61: 159.48 | H61: 177.28 | I61: 180.42 | J61: 186.18 | K61: 174.65 | L61: 165.75 | M61: 33.82134
A62: 52 | B62: BANDHANBNK | C62: 377.2 | D62: 375.32 | E62: 368.88 | F62: 360.57 | G62: 354.13 | H62: 383.63 | I62: 390.07 | J62: 398.38 | K62: 381.75 | L62: 367 | M62: 97.55182
A63: 53 | B63: BANKBARODA | C63: 53.75 | D63: 53.03 | E63: 51.87 | F63: 49.98 | G63: 48.82 | H63: 54.92 | I63: 56.08 | J63: 57.97 | K63: 54.2 | L63: 51.15 | M63: 583.16841
A64: 54 | B64: BANKINDIA | C64: 46.6 | D64: 46.30 | E64: 45.40 | F64: 44.20 | G64: 43.30 | H64: 47.50 | I64: 48.40 | J64: 49.60 | K64: 47.2 | L64: 45.1 | M64: 57.25794
A65: 55 | B65: BASF | C65: 1668.5 | D65: 1663.17 | E65: 1631.33 | F65: 1594.17 | G65: 1562.33 | H65: 1700.33 | I65: 1732.17 | J65: 1769.33 | K65: 1695 | L65: 1626 | M65: 0.40539
A66: 56 | B66: BATAINDIA | C66: 1544.2 | D66: 1551.73 | E66: 1524.52 | F66: 1504.83 | G66: 1477.62 | H66: 1571.42 | I66: 1598.63 | J66: 1618.32 | K66: 1578.95 | L66: 1532.05 | M66: 8.99562
A67: 57 | B67: BAYERCROP | C67: 5029.45 | D67: 5044.52 | E67: 4995.03 | F67: 4960.62 | G67: 4911.13 | H67: 5078.93 | I67: 5128.42 | J67: 5162.83 | K67: 5094 | L67: 5010.1 | M67: 0.47185
A68: 58 | B68: BBTC | C68: 1302.55 | D68: 1309.72 | E68: 1290.83 | F68: 1279.12 | G68: 1260.23 | H68: 1321.43 | I68: 1340.32 | J68: 1352.03 | K68: 1328.6 | L68: 1298 | M68: 0.45376
A69: 59 | B69: BDL | C69: 325.4 | D69: 325.95 | E69: 322.45 | F69: 319.50 | G69: 316.00 | H69: 328.90 | I69: 332.40 | J69: 335.35 | K69: 329.45 | L69: 323 | M69: 2.09495
A70: 60 | B70: BEL | C70: 111.8 | D70: 111.63 | E70: 110.47 | F70: 109.13 | G70: 107.97 | H70: 112.97 | I70: 114.13 | J70: 115.47 | K70: 112.8 | L70: 110.3 | M70: 107.83871
A71: 61 | B71: BEML | C71: 727.55 | D71: 731.02 | E71: 718.03 | F71: 708.52 | G71: 695.53 | H71: 740.53 | I71: 753.52 | J71: 763.03 | K71: 744 | L71: 721.5 | M71: 9.10065
A72: 62 | B72: BERGEPAINT | C72: 655.5 | D72: 653.48 | E72: 649.12 | F72: 642.73 | G72: 638.37 | H72: 659.87 | I72: 664.23 | J72: 670.62 | K72: 657.85 | L72: 647.1 | M72: 11.11928
A73: 63 | B73: BHARATFORG | C73: 509 | D73: 507.37 | E73: 500.93 | F73: 492.87 | G73: 486.43 | H73: 515.43 | I73: 521.87 | J73: 529.93 | K73: 513.8 | L73: 499.3 | M73: 16.90088
A74: 64 | B74: BHARATRAS | C74: 9408.5 | D74: 9441.75 | E74: 9294.15 | F74: 9179.80 | G74: 9032.20 | H74: 9556.10 | I74: 9703.70 | J74: 9818.05 | K74: 9589.35 | L74: 9327.4 | M74: 0.03885
A75: 65 | B75: BHARTIARTL | C75: 479.45 | D75: 474.15 | E75: 465.80 | F75: 452.15 | G75: 443.80 | H75: 487.80 | I75: 496.15 | J75: 509.80 | K75: 482.5 | L75: 460.5 | M75: 181.93356
A76: 66 | B76: BHEL | C76: 34.05 | D76: 33.77 | E76: 33.13 | F76: 32.22 | G76: 31.58 | H76: 34.68 | I76: 35.32 | J76: 36.23 | K76: 34.4 | L76: 32.85 | M76: 496.80395
A77: 67 | B77: BIOCON | C77: 433.3 | D77: 433.73 | E77: 429.12 | F77: 424.93 | G77: 420.32 | H77: 437.92 | I77: 442.53 | J77: 446.72 | K77: 438.35 | L77: 429.55 | M77: 30.2874
A78: 68 | B78: BIRLACORPN | C78: 734.5 | D78: 728.15 | E78: 717.40 | F78: 700.30 | G78: 689.55 | H78: 745.25 | I78: 756.00 | J78: 773.10 | K78: 738.9 | L78: 711.05 | M78: 3.18598
A79: 69 | B79: BLISSGVS | C79: 169.8 | D79: 172.52 | E79: 166.28 | F79: 162.77 | G79: 156.53 | H79: 176.03 | I79: 182.27 | J79: 185.78 | K79: 178.75 | L79: 169 | M79: 11.53947
A80: 70 | B80: BLUEDART | C80: 3930.35 | D80: 3936.77 | E80: 3893.58 | F80: 3856.82 | G80: 3813.63 | H80: 3973.53 | I80: 4016.72 | J80: 4053.48 | K80: 3979.95 | L80: 3900 | M80: 0.39589
A81: 71 | B81: BLUESTARCO | C81: 783.15 | D81: 792.70 | E81: 769.45 | F81: 755.75 | G81: 732.50 | H81: 806.40 | I81: 829.65 | J81: 843.35 | K81: 815.95 | L81: 779 | M81: 1.52491
A82: 72 | B82: BOMDYEING | C82: 71.2 | D82: 71.33 | E82: 70.42 | F82: 69.63 | G82: 68.72 | H82: 72.12 | I82: 73.03 | J82: 73.82 | K82: 72.25 | L82: 70.55 | M82: 16.78788
A83: 73 | B83: BOSCHLTD | C83: 13255.95 | D83: 13075.97 | E83: 12829.98 | F83: 12404.02 | G83: 12158.03 | H83: 13501.93 | I83: 13747.92 | J83: 14173.88 | K83: 13321.95 | L83: 12650 | M83: 1.86863
A84: 74 | B84: BPCL | C84: 379.3 | D84: 377.25 | E84: 373.05 | F84: 366.80 | G84: 362.60 | H84: 383.50 | I84: 387.70 | J84: 393.95 | K84: 381.45 | L84: 371 | M84: 49.03586
A85: 75 | B85: BRIGADE | C85: 220.1 | D85: 219.82 | E85: 217.68 | F85: 215.27 | G85: 213.13 | H85: 222.23 | I85: 224.37 | J85: 226.78 | K85: 221.95 | L85: 217.4 | M85: 1.1826
A86: 76 | B86: BRITANNIA | C86: 3629.35 | D86: 3642.47 | E86: 3582.43 | F86: 3535.52 | G86: 3475.48 | H86: 3689.38 | I86: 3749.42 | J86: 3796.33 | K86: 3702.5 | L86: 3595.55 | M86: 10.42234
A87: 77 | B87: BSE | C87: 548.45 | D87: 551.67 | E87: 541.33 | F87: 534.22 | G87: 523.88 | H87: 558.78 | I87: 569.12 | J87: 576.23 | K87: 562 | L87: 544.55 | M87: 2.54148
A88: 78 | B88: BSOFT | C88: 193.25 | D88: 195.40 | E88: 190.85 | F88: 188.45 | G88: 183.90 | H88: 197.80 | I88: 202.35 | J88: 204.75 | K88: 199.95 | L88: 193 | M88: 7.11634
A89: 79 | B89: CADILAHC | C89: 453.65 | D89: 451.78 | E89: 444.17 | F89: 434.68 | G89: 427.07 | H89: 461.27 | I89: 468.88 | J89: 478.37 | K89: 459.4 | L89: 442.3 | M89: 68.67503
A90: 80 | B90: CANBK | C90: 109.9 | D90: 108.10 | E90: 105.65 | F90: 101.40 | G90: 98.95 | H90: 112.35 | I90: 114.80 | J90: 119.05 | K90: 110.55 | L90: 103.85 | M90: 261.57407
A91: 81 | B91: CANFINHOME | C91: 489.15 | D91: 487.53 | E91: 480.07 | F91: 470.98 | G91: 463.52 | H91: 496.62 | I91: 504.08 | J91: 513.17 | K91: 495 | L91: 478.45 | M91: 6.04921
A92: 82 | B92: CAPLIPOINT | C92: 484.7 | D92: 487.77 | E92: 480.83 | F92: 476.97 | G92: 470.03 | H92: 491.63 | I92: 498.57 | J92: 502.43 | K92: 494.7 | L92: 483.9 | M92: 1.06707
A93: 83 | B93: CARBORUNIV | C93: 385.8 | D93: 369.53 | E93: 349.07 | F93: 312.33 | G93: 291.87 | H93: 406.27 | I93: 426.73 | J93: 463.47 | K93: 390 | L93: 332.8 | M93: 17.31906
A94: 84 | B94: CARERATING | C94: 560.3 | D94: 548.65 | E94: 517.60 | F94: 474.90 | G94: 443.85 | H94: 591.35 | I94: 622.40 | J94: 665.10 | K94: 579.7 | L94: 505.95 | M94: 15.06033
A95: 85 | B95: CASTROLIND | C95: 128.55 | D95: 128.37 | E95: 126.73 | F95: 124.92 | G95: 123.28 | H95: 130.18 | I95: 131.82 | J95: 133.63 | K95: 130 | L95: 126.55 | M95: 12.61386
A96: 86 | B96: CCL | C96: 266.15 | D96: 265.38 | E96: 262.77 | F96: 259.38 | G96: 256.77 | H96: 268.77 | I96: 271.38 | J96: 274.77 | K96: 268 | L96: 262 | M96: 1.07672
A97: 87 | B97: CDSL | C97: 494.3 | D97: 493.82 | E97: 487.68 | F97: 481.07 | G97: 474.93 | H97: 500.43 | I97: 506.57 | J97: 513.18 | K97: 499.95 | L97: 487.2 | M97: 8.78829
A98: 88 | B98: CEATLTD | C98: 1170.3 | D98: 1177.80 | E98: 1147.60 | F98: 1124.90 | G98: 1094.70 | H98: 1200.50 | I98: 1230.70 | J98: 1253.40 | K98: 1208 | L98: 1155.1 | M98: 5.01097
A99: 89 | B99: CENTRALBK | C99: 13 | D99: 12.93 | E99: 12.72 | F99: 12.43 | G99: 12.22 | H99: 13.22 | I99: 13.43 | J99: 13.72 | K99: 13.15 | L99: 12.65 | M99: 85.03372
A100: 90 | B100: CENTURYPLY | C100: 208.95 | D100: 207.05 | E100: 201.90 | F100: 194.85 | G100: 189.70 | H100: 214.10 | I100: 219.25 | J100: 226.30 | K100: 212.2 | L100: 200 | M100: 4.86933
A101: 91 | B101: CENTURYTEX | C101: 354.8 | D101: 353.52 | E101: 349.53 | F101: 344.27 | G101: 340.28 | H101: 358.78 | I101: 362.77 | J101: 368.03 | K101: 357.5 | L101: 348.25 | M101: 5.95719
A102: 92 | B102: CERA | C102: 3304.5 | D102: 3226.17 | E102: 3128.33 | F102: 2952.17 | G102: 2854.33 | H102: 3402.33 | I102: 3500.17 | J102: 3676.33 | K102: 3324 | L102: 3050 | M102: 0.2147
A103: 93 | B103: CESC | C103: 592.1 | D103: 588.20 | E103: 582.00 | F103: 571.90 | G103: 565.70 | H103: 598.30 | I103: 604.50 | J103: 614.60 | K103: 594.4 | L103: 578.1 | M103: 4.57758
A104: 94 | B104: CGCL | C104: 296.65 | D104: 294.32 | E104: 288.63 | F104: 280.62 | G104: 274.93 | H104: 302.33 | I104: 308.02 | J104: 316.03 | K104: 300 | L104: 286.3 | M104: 0.89288
A105: 95 | B105: CHAMBLFERT | C105: 199.8 | D105: 201.88 | E105: 196.02 | F105: 192.23 | G105: 186.37 | H105: 205.67 | I105: 211.53 | J105: 215.32 | K105: 207.75 | L105: 198.1 | M105: 8.83837
A106: 96 | B106: CHENNPETRO | C106: 87.75 | D106: 87.08 | E106: 85.67 | F106: 83.58 | G106: 82.17 | H106: 89.17 | I106: 90.58 | J106: 92.67 | K106: 88.5 | L106: 85 | M106: 10.14921
A107: 97 | B107: CHOLAFIN | C107: 374.8 | D107: 378.60 | E107: 367.55 | F107: 360.30 | G107: 349.25 | H107: 385.85 | I107: 396.90 | J107: 404.15 | K107: 389.65 | L107: 371.35 | M107: 75.3164
A108: 98 | B108: CHOLAHLDNG | C108: 526.6 | D108: 531.70 | E108: 503.90 | F108: 481.20 | G108: 453.40 | H108: 554.40 | I108: 582.20 | J108: 604.90 | K108: 559.5 | L108: 509 | M108: 2.00615
A109: 99 | B109: CIPLA | C109: 755.6 | D109: 753.92 | E109: 747.83 | F109: 740.07 | G109: 733.98 | H109: 761.68 | I109: 767.77 | J109: 775.53 | K109: 760 | L109: 746.15 | M109: 62.41872
A110: 100 | B110: COALINDIA | C110: 126.4 | D110: 126.03 | E110: 125.07 | F110: 123.73 | G110: 122.77 | H110: 127.37 | I110: 128.33 | J110: 129.67 | K110: 127 | L110: 124.7 | M110: 89.27107
A111: 101 | B111: COCHINSHIP | C111: 369.5 | D111: 370.15 | E111: 365.65 | F111: 361.80 | G111: 357.30 | H111: 374.00 | I111: 378.50 | J111: 382.35 | K111: 374.65 | L111: 366.3 | M111: 4.40416
A112: 102 | B112: COFORGE | C112: 2455.4 | D112: 2438.87 | E112: 2401.53 | F112: 2347.67 | G112: 2310.33 | H112: 2492.73 | I112: 2530.07 | J112: 2583.93 | K112: 2476.2 | L112: 2385 | M112: 3.15214
A113: 103 | B113: COLPAL | C113: 1504 | D113: 1512.42 | E113: 1484.58 | F113: 1465.17 | G113: 1437.33 | H113: 1531.83 | I113: 1559.67 | J113: 1579.08 | K113: 1540.25 | L113: 1493 | M113: 9.9632
A114: 104 | B114: CONCOR | C114: 409.65 | D114: 406.68 | E114: 400.37 | F114: 391.08 | G114: 384.77 | H114: 415.97 | I114: 422.28 | J114: 431.57 | K114: 413 | L114: 397.4 | M114: 31.64488
A115: 105 | B115: COROMANDEL | C115: 823.05 | D115: 823.07 | E115: 810.18 | F115: 797.32 | G115: 784.43 | H115: 835.93 | I115: 848.82 | J115: 861.68 | K115: 835.95 | L115: 810.2 | M115: 4.30006
A116: 106 | B116: CREDITACC | C116: 809.25 | D116: 814.82 | E116: 789.68 | F116: 770.12 | G116: 744.98 | H116: 834.38 | I116: 859.52 | J116: 879.08 | K116: 839.95 | L116: 795.25 | M116: 2.68853
A117: 107 | B117: CRISIL | C117: 2000.35 | D117: 1990.50 | E117: 1971.00 | F117: 1941.65 | G117: 1922.15 | H117: 2019.85 | I117: 2039.35 | J117: 2068.70 | K117: 2010 | L117: 1961.15 | M117: 0.33907
A118: 108 | B118: CROMPTON | C118: 321.25 | D118: 316.62 | E118: 306.88 | F118: 292.52 | G118: 282.78 | H118: 330.98 | I118: 340.72 | J118: 355.08 | K118: 326.35 | L118: 302.25 | M118: 27.78543
A119: 109 | B119: CSBBANK | C119: 247.5 | D119: 245.15 | E119: 240.40 | F119: 233.30 | G119: 228.55 | H119: 252.25 | I119: 257.00 | J119: 264.10 | K119: 249.9 | L119: 238.05 | M119: 1.89184
A120: 110 | B120: CUB | C120: 182.1 | D120: 183.37 | E120: 179.23 | F120: 176.37 | G120: 172.23 | H120: 186.23 | I120: 190.37 | J120: 193.23 | K120: 187.5 | L120: 180.5 | M120: 15.93673
A121: 111 | B121: CUMMINSIND | C121: 578.45 | D121: 577.83 | E121: 569.62 | F121: 560.78 | G121: 552.57 | H121: 586.67 | I121: 594.88 | J121: 603.72 | K121: 586.05 | L121: 569 | M121: 10.03872
A122: 112 | B122: CYIENT | C122: 480.2 | D122: 484.32 | E122: 471.63 | F122: 463.07 | G122: 450.38 | H122: 492.88 | I122: 505.57 | J122: 514.13 | K122: 497 | L122: 475.75 | M122: 5.17615
A123: 113 | B123: DABUR | C123: 506 | D123: 504.53 | E123: 502.07 | F123: 498.13 | G123: 495.67 | H123: 508.47 | I123: 510.93 | J123: 514.87 | K123: 507 | L123: 500.6 | M123: 21.77754
A124: 114 | B124: DALBHARAT | C124: 1151.6 | D124: 1148.62 | E124: 1099.23 | F124: 1046.87 | G124: 997.48 | H124: 1200.98 | I124: 1250.37 | J124: 1302.73 | K124: 1198 | L124: 1096.25 | M124: 3.09388
A125: 115 | B125: DBCORP | C125: 82.5 | D125: 81.95 | E125: 80.65 | F125: 78.80 | G125: 77.50 | H125: 83.80 | I125: 85.10 | J125: 86.95 | K125: 83.25 | L125: 80.1 | M125: 2.82376
A126: 116 | B126: DBL | C126: 362.45 | D126: 361.63 | E126: 357.87 | F126: 353.28 | G126: 349.52 | H126: 366.22 | I126: 369.98 | J126: 374.57 | K126: 365.4 | L126: 357.05 | M126: 1.34623
A127: 117 | B127: DCAL | C127: 139.9 | D127: 141.73 | E127: 136.67 | F127: 133.43 | G127: 128.37 | H127: 144.97 | I127: 150.03 | J127: 153.27 | K127: 146.8 | L127: 138.5 | M127: 4.40723
A128: 118 | B128: DCBBANK | C128: 112.25 | D128: 112.32 | E128: 108.78 | F128: 105.32 | G128: 101.78 | H128: 115.78 | I128: 119.32 | J128: 122.78 | K128: 115.85 | L128: 108.85 | M128: 50.69259
A129: 119 | B129: DCMSHRIRAM | C129: 378.9 | D129: 377.45 | E129: 372.45 | F129: 366.00 | G129: 361.00 | H129: 383.90 | I129: 388.90 | J129: 395.35 | K129: 382.45 | L129: 371 | M129: 0.86944
A130: 120 | B130: DEEPAKNTR | C130: 864.25 | D130: 871.23 | E130: 847.47 | F130: 830.68 | G130: 806.92 | H130: 888.02 | I130: 911.78 | J130: 928.57 | K130: 895 | L130: 854.45 | M130: 13.53163
A131: 121 | B131: DELTACORP | C131: 131.75 | D131: 131.80 | E131: 129.20 | F131: 126.65 | G131: 124.05 | H131: 134.35 | I131: 136.95 | J131: 139.50 | K131: 134.4 | L131: 129.25 | M131: 22.36317
A132: 122 | B132: DHANUKA | C132: 778.2 | D132: 771.72 | E132: 763.43 | F132: 748.67 | G132: 740.38 | H132: 786.48 | I132: 794.77 | J132: 809.53 | K132: 780 | L132: 756.95 | M132: 1.23106
A133: 123 | B133: DISHTV | C133: 10.1 | D133: 10.17 | E133: 9.98 | F133: 9.87 | G133: 9.68 | H133: 10.28 | I133: 10.47 | J133: 10.58 | K133: 10.35 | L133: 10.05 | M133: 170.25577
A134: 124 | B134: DIVISLAB | C134: 3620.75 | D134: 3662.45 | E134: 3554.90 | F134: 3489.05 | G134: 3381.50 | H134: 3728.30 | I134: 3835.85 | J134: 3901.70 | K134: 3770 | L134: 3596.6 | M134: 20.77864
A135: 125 | B135: DIXON | C135: 11534.45 | D135: 11641.48 | E135: 11292.97 | F135: 11051.48 | G135: 10702.97 | H135: 11882.97 | I135: 12231.48 | J135: 12472.97 | K135: 11990 | L135: 11400 | M135: 0.47854
A136: 126 | B136: DLF | C136: 195.1 | D136: 194.07 | E136: 190.63 | F136: 186.17 | G136: 182.73 | H136: 198.53 | I136: 201.97 | J136: 206.43 | K136: 197.5 | L136: 189.6 | M136: 192.25092
A137: 127 | B137: DMART | C137: 2426.7 | D137: 2397.23 | E137: 2344.47 | F137: 2262.23 | G137: 2209.47 | H137: 2479.47 | I137: 2532.23 | J137: 2614.47 | K137: 2450 | L137: 2315 | M137: 9.12165
A138: 128 | B138: DRREDDY | C138: 4830.4 | D138: 4835.47 | E138: 4800.93 | F138: 4771.47 | G138: 4736.93 | H138: 4864.93 | I138: 4899.47 | J138: 4928.93 | K138: 4870 | L138: 4806 | M138: 11.1719
A139: 129 | B139: ECLERX | C139: 728.9 | D139: 728.57 | E139: 722.33 | F139: 715.77 | G139: 709.53 | H139: 735.13 | I139: 741.37 | J139: 747.93 | K139: 734.8 | L139: 722 | M139: 0.5402
A140: 130 | B140: EDELWEISS | C140: 73.5 | D140: 72.43 | E140: 71.37 | F140: 69.23 | G140: 68.17 | H140: 74.57 | I140: 75.63 | J140: 77.77 | K140: 73.5 | L140: 70.3 | M140: 23.26132
A141: 131 | B141: EICHERMOT | C141: 2532.7 | D141: 2547.53 | E141: 2510.17 | F141: 2487.63 | G141: 2450.27 | H141: 2570.07 | I141: 2607.43 | J141: 2629.97 | K141: 2584.9 | L141: 2525 | M141: 12.27343
A142: 132 | B142: EIDPARRY | C142: 343.95 | D142: 345.48 | E142: 340.97 | F142: 337.98 | G142: 333.47 | H142: 348.47 | I142: 352.98 | J142: 355.97 | K142: 350 | L142: 342.5 | M142: 2.41156
A143: 133 | B143: EIHOTEL | C143: 91.7 | D143: 91.73 | E143: 88.57 | F143: 85.43 | G143: 82.27 | H143: 94.87 | I143: 98.03 | J143: 101.17 | K143: 94.9 | L143: 88.6 | M143: 22.28975
A144: 134 | B144: ELGIEQUIP | C144: 135.1 | D144: 134.88 | E144: 134.27 | F144: 133.43 | G144: 132.82 | H144: 135.72 | I144: 136.33 | J144: 137.17 | K144: 135.5 | L144: 134.05 | M144: 0.62419
A145: 135 | B145: EMAMILTD | C145: 442.8 | D145: 447.73 | E145: 434.07 | F145: 425.33 | G145: 411.67 | H145: 456.47 | I145: 470.13 | J145: 478.87 | K145: 461.4 | L145: 439 | M145: 9.52633
A146: 136 | B146: ENDURANCE | C146: 1141 | D146: 1137.77 | E146: 1110.58 | F146: 1080.17 | G146: 1052.98 | H146: 1168.18 | I146: 1195.37 | J146: 1225.78 | K146: 1164.95 | L146: 1107.35 | M146: 1.58278
A147: 137 | B147: ENGINERSIN | C147: 74.8 | D147: 74.95 | E147: 74.40 | F147: 74.00 | G147: 73.45 | H147: 75.35 | I147: 75.90 | J147: 76.30 | K147: 75.5 | L147: 74.55 | M147: 25.62108
A148: 138 | B148: EQUITAS | C148: 70.2 | D148: 70.25 | E148: 69.75 | F148: 69.30 | G148: 68.80 | H148: 70.70 | I148: 71.20 | J148: 71.65 | K148: 70.75 | L148: 69.8 | M148: 29.10446
A149: 139 | B149: ERIS | C149: 520.05 | D149: 520.95 | E149: 515.90 | F149: 511.75 | G149: 506.70 | H149: 525.10 | I149: 530.15 | J149: 534.30 | K149: 526 | L149: 516.8 | M149: 2.22604
A150: 140 | B150: ESABINDIA | C150: 1469 | D150: 1466.47 | E150: 1432.93 | F150: 1396.87 | G150: 1363.33 | H150: 1502.53 | I150: 1536.07 | J150: 1572.13 | K150: 1500 | L150: 1430.4 | M150: 0.13956
A151: 141 | B151: ESCORTS | C151: 1373.7 | D151: 1382.93 | E151: 1353.87 | F151: 1334.03 | G151: 1304.97 | H151: 1402.77 | I151: 1431.83 | J151: 1451.67 | K151: 1412 | L151: 1363.1 | M151: 19.61246
A152: 143 | B152: EXIDEIND | C152: 183.85 | D152: 183.82 | E152: 181.03 | F152: 178.22 | G152: 175.43 | H152: 186.63 | I152: 189.42 | J152: 192.23 | K152: 186.6 | L152: 181 | M152: 45.05182
A153: 144 | B153: FCONSUMER | C153: 8.45 | D153: 8.28 | E153: 7.97 | F153: 7.48 | G153: 7.17 | H153: 8.77 | I153: 9.08 | J153: 9.57 | K153: 8.6 | L153: 7.8 | M153: 164.09081
A154: 145 | B154: FDC | C154: 344 | D154: 346.40 | E154: 340.00 | F154: 336.00 | G154: 329.60 | H154: 350.40 | I154: 356.80 | J154: 360.80 | K154: 352.8 | L154: 342.4 | M154: 2.27932
A155: 146 | B155: FEDERALBNK | C155: 65.6 | D155: 64.58 | E155: 63.32 | F155: 61.03 | G155: 59.77 | H155: 66.87 | I155: 68.13 | J155: 70.42 | K155: 65.85 | L155: 62.3 | M155: 540.97063
A156: 147 | B156: FINCABLES | C156: 330.55 | D156: 325.30 | E156: 314.30 | F156: 298.05 | G156: 287.05 | H156: 341.55 | I156: 352.55 | J156: 368.80 | K156: 336.3 | L156: 309.05 | M156: 13.42983
A157: 148 | B157: FINEORG | C157: 2638.9 | D157: 2635.17 | E157: 2603.33 | F157: 2567.77 | G157: 2535.93 | H157: 2670.73 | I157: 2702.57 | J157: 2738.13 | K157: 2667 | L157: 2599.6 | M157: 0.4026
A158: 149 | B158: FINPIPE | C158: 622.35 | D158: 625.28 | E158: 615.57 | F158: 608.78 | G158: 599.07 | H158: 632.07 | I158: 641.78 | J158: 648.57 | K158: 635 | L158: 618.5 | M158: 1.1092
A159: 150 | B159: FLUOROCHEM | C159: 590.55 | D159: 598.67 | E159: 574.03 | F159: 557.52 | G159: 532.88 | H159: 615.18 | I159: 639.82 | J159: 656.33 | K159: 623.3 | L159: 582.15 | M159: 4.39748
A160: 151 | B160: FORTIS | C160: 152.95 | D160: 152.30 | E160: 148.70 | F160: 144.45 | G160: 140.85 | H160: 156.55 | I160: 160.15 | J160: 164.40 | K160: 155.9 | L160: 148.05 | M160: 79.81013
A161: 152 | B161: FRETAIL | C161: 78.55 | D161: 78.55 | E161: 78.55 | F161: 78.55 | G161: 78.55 | H161: 78.55 | I161: 78.55 | J161: 78.55 | K161: 78.55 | L161: 78.55 | M161: 19.2964
A162: 153 | B162: FSL | C162: 78 | D162: 78.73 | E162: 76.77 | F162: 75.53 | G162: 73.57 | H162: 79.97 | I162: 81.93 | J162: 83.17 | K162: 80.7 | L162: 77.5 | M162: 22.76718
A163: 154 | B163: GAIL | C163: 110.7 | D163: 108.60 | E163: 105.20 | F163: 99.70 | G163: 96.30 | H163: 114.10 | I163: 117.50 | J163: 123.00 | K163: 112 | L163: 103.1 | M163: 856.84453
A164: 155 | B164: GALAXYSURF | C164: 1914 | D164: 1931.30 | E164: 1885.65 | F164: 1857.30 | G164: 1811.65 | H164: 1959.65 | I164: 2005.30 | J164: 2033.65 | K164: 1976.95 | L164: 1902.95 | M164: 0.35225
A165: 156 | B165: GARFIBRES | C165: 2202.85 | D165: 2200.48 | E165: 2159.97 | F165: 2117.08 | G165: 2076.57 | H165: 2243.37 | I165: 2283.88 | J165: 2326.77 | K165: 2241 | L165: 2157.6 | M165: 0.30657
A166: 157 | B166: GEPIL | C166: 273.5 | D166: 272.83 | E166: 265.67 | F166: 257.83 | G166: 250.67 | H166: 280.67 | I166: 287.83 | J166: 295.67 | K166: 280 | L166: 265 | M166: 3.63931
A167: 158 | B167: GESHIP | C167: 261.4 | D167: 261.35 | E167: 256.70 | F167: 252.00 | G167: 247.35 | H167: 266.05 | I167: 270.70 | J167: 275.40 | K167: 266 | L167: 256.65 | M167: 4.68917
A168: 159 | B168: GET&D | C168: 101.85 | D168: 101.23 | E168: 99.47 | F168: 97.08 | G168: 95.32 | H168: 103.62 | I168: 105.38 | J168: 107.77 | K168: 103 | L168: 98.85 | M168: 0.91784
A169: 160 | B169: GHCL | C169: 178.35 | D169: 176.43 | E169: 171.87 | F169: 165.38 | G169: 160.82 | H169: 182.92 | I169: 187.48 | J169: 193.97 | K169: 181 | L169: 169.95 | M169: 7.27098
A170: 161 | B170: GICRE | C170: 140 | D170: 140.50 | E170: 139.00 | F170: 138.00 | G170: 136.50 | H170: 141.50 | I170: 143.00 | J170: 144.00 | K170: 142 | L170: 139.5 | M170: 4.22401
A171: 162 | B171: GILLETTE | C171: 5794.25 | D171: 5821.42 | E171: 5742.83 | F171: 5691.42 | G171: 5612.83 | H171: 5872.83 | I171: 5951.42 | J171: 6002.83 | K171: 5900 | L171: 5770 | M171: 0.09262
A172: 163 | B172: GLAXO | C172: 1550.95 | D172: 1555.67 | E172: 1537.83 | F172: 1524.72 | G172: 1506.88 | H172: 1568.78 | I172: 1586.62 | J172: 1599.73 | K172: 1573.5 | L172: 1542.55 | M172: 0.22096
A173: 164 | B173: GLENMARK | C173: 477.1 | D173: 477.03 | E173: 473.17 | F173: 469.23 | G173: 465.37 | H173: 480.97 | I173: 484.83 | J173: 488.77 | K173: 480.9 | L173: 473.1 | M173: 21.8566
A174: 165 | B174: GMDCLTD | C174: 47.25 | D174: 47.42 | E174: 46.58 | F174: 45.92 | G174: 45.08 | H174: 48.08 | I174: 48.92 | J174: 49.58 | K174: 48.25 | L174: 46.75 | M174: 7.28056
A175: 166 | B175: GMMPFAUDLR | C175: 3803.85 | D175: 3827.95 | E175: 3756.90 | F175: 3709.95 | G175: 3638.90 | H175: 3874.90 | I175: 3945.95 | J175: 3992.90 | K175: 3899 | L175: 3781 | M175: 0.4275
A176: 167 | B176: GMRINFRA | C176: 26.2 | D176: 26.40 | E176: 25.80 | F176: 25.40 | G176: 24.80 | H176: 26.80 | I176: 27.40 | J176: 27.80 | K176: 27 | L176: 26 | M176: 102.67533
A177: 168 | B177: GNFC | C177: 211.45 | D177: 211.62 | E177: 207.98 | F177: 204.52 | G177: 200.88 | H177: 215.08 | I177: 218.72 | J177: 222.18 | K177: 215.25 | L177: 208.15 | M177: 7.61126
A178: 169 | B178: GODFRYPHLP | C178: 900.25 | D178: 904.93 | E178: 892.87 | F178: 885.48 | G178: 873.42 | H178: 912.32 | I178: 924.38 | J178: 931.77 | K178: 917 | L178: 897.55 | M178: 1.04463
A179: 170 | B179: GODREJAGRO | C179: 509.2 | D179: 507.80 | E179: 503.60 | F179: 498.00 | G179: 493.80 | H179: 513.40 | I179: 517.60 | J179: 523.20 | K179: 512 | L179: 502.2 | M179: 1.01769
A180: 171 | B180: GODREJCP | C180: 705.6 | D180: 707.90 | E180: 700.25 | F180: 694.90 | G180: 687.25 | H180: 713.25 | I180: 720.90 | J180: 726.25 | K180: 715.55 | L180: 702.55 | M180: 13.28512
A181: 172 | B181: GODREJIND | C181: 408.15 | D181: 408.38 | E181: 405.82 | F181: 403.48 | G181: 400.92 | H181: 410.72 | I181: 413.28 | J181: 415.62 | K181: 410.95 | L181: 406.05 | M181: 0.73683
A182: 173 | B182: GODREJPROP | C182: 1187.1 | D182: 1187.07 | E182: 1164.13 | F182: 1141.17 | G182: 1118.23 | H182: 1210.03 | I182: 1232.97 | J182: 1255.93 | K182: 1210 | L182: 1164.1 | M182: 16.16577
A183: 174 | B183: GPPL | C183: 94.85 | D183: 95.50 | E183: 93.40 | F183: 91.95 | G183: 89.85 | H183: 96.95 | I183: 99.05 | J183: 100.50 | K183: 97.6 | L183: 94.05 | M183: 2.91158
A184: 175 | B184: GRANULES | C184: 428 | D184: 430.32 | E184: 422.68 | F184: 417.37 | G184: 409.73 | H184: 435.63 | I184: 443.27 | J184: 448.58 | K184: 437.95 | L184: 425 | M184: 28.60548
A185: 176 | B185: GRAPHITE | C185: 241.7 | D185: 241.80 | E185: 237.90 | F185: 234.10 | G185: 230.20 | H185: 245.60 | I185: 249.50 | J185: 253.30 | K185: 245.7 | L185: 238 | M185: 10.6576
A186: 177 | B186: GRASIM | C186: 907.8 | D186: 893.55 | E186: 876.40 | F186: 845.00 | G186: 827.85 | H186: 924.95 | I186: 942.10 | J186: 973.50 | K186: 910.7 | L186: 862.15 | M186: 41.10405
A187: 178 | B187: GREAVESCOT | C187: 87.7 | D187: 86.72 | E187: 84.98 | F187: 82.27 | G187: 80.53 | H187: 89.43 | I187: 91.17 | J187: 93.88 | K187: 88.45 | L187: 84 | M187: 47.76749
A188: 179 | B188: GRINDWELL | C188: 602.75 | D188: 601.80 | E188: 593.95 | F188: 585.15 | G188: 577.30 | H188: 610.60 | I188: 618.45 | J188: 627.25 | K188: 609.65 | L188: 593 | M188: 0.38021
A189: 180 | B189: GRSE | C189: 194.25 | D189: 194.45 | E189: 193.10 | F189: 191.95 | G189: 190.60 | H189: 195.60 | I189: 196.95 | J189: 198.10 | K189: 195.8 | L189: 193.3 | M189: 0.39558
A190: 181 | B190: GSFC | C190: 70.7 | D190: 70.98 | E190: 70.17 | F190: 69.63 | G190: 68.82 | H190: 71.52 | I190: 72.33 | J190: 72.87 | K190: 71.8 | L190: 70.45 | M190: 10.99407
A191: 182 | B191: GSPL | C191: 227.85 | D191: 226.78 | E191: 221.07 | F191: 214.28 | G191: 208.57 | H191: 233.57 | I191: 239.28 | J191: 246.07 | K191: 232.5 | L191: 220 | M191: 16.66443
A192: 183 | B192: GUJALKALI | C192: 330.35 | D192: 329.28 | E192: 324.07 | F192: 317.78 | G192: 312.57 | H192: 335.57 | I192: 340.78 | J192: 347.07 | K192: 334.5 | L192: 323 | M192: 2.34154
A193: 184 | B193: GUJGASLTD | C193: 340.8 | D193: 344.95 | E193: 335.85 | F193: 330.90 | G193: 321.80 | H193: 349.90 | I193: 359.00 | J193: 363.95 | K193: 354.05 | L193: 340 | M193: 17.43119
A194: 185 | B194: GULFOILLUB | C194: 790.55 | D194: 790.88 | E194: 781.77 | F194: 772.98 | G194: 763.87 | H194: 799.67 | I194: 808.78 | J194: 817.57 | K194: 800 | L194: 782.1 | M194: 0.13831
A195: 186 | B195: HAL | C195: 829.8 | D195: 827.53 | E195: 820.27 | F195: 810.73 | G195: 803.47 | H195: 837.07 | I195: 844.33 | J195: 853.87 | K195: 834.8 | L195: 818 | M195: 4.16015
A196: 187 | B196: HATHWAY | C196: 31.45 | D196: 31.32 | E196: 30.83 | F196: 30.22 | G196: 29.73 | H196: 31.93 | I196: 32.42 | J196: 33.03 | K196: 31.8 | L196: 30.7 | M196: 5.46525
A197: 188 | B197: HATSUN | C197: 989.8 | D197: 982.60 | E197: 970.20 | F197: 950.60 | G197: 938.20 | H197: 1002.20 | I197: 1014.60 | J197: 1034.20 | K197: 995 | L197: 963 | M197: 0.93825
A198: 189 | B198: HAVELLS | C198: 823.4 | D198: 820.48 | E198: 801.02 | F198: 778.63 | G198: 759.17 | H198: 842.87 | I198: 862.33 | J198: 884.72 | K198: 839.95 | L198: 798.1 | M198: 37.6622
A199: 190 | B199: HCLTECH | C199: 834.1 | D199: 828.30 | E199: 820.90 | F199: 807.70 | G199: 800.30 | H199: 841.50 | I199: 848.90 | J199: 862.10 | K199: 835.7 | L199: 815.1 | M199: 80.78785
A200: 191 | B200: HDFC | C200: 2306.95 | D200: 2282.87 | E200: 2241.73 | F200: 2176.52 | G200: 2135.38 | H200: 2348.08 | I200: 2389.22 | J200: 2454.43 | K200: 2324 | L200: 2217.65 | M200: 70.3167
A201: 192 | B201: HDFCAMC | C201: 2511.45 | D201: 2520.27 | E201: 2491.18 | F201: 2470.92 | G201: 2441.83 | H201: 2540.53 | I201: 2569.62 | J201: 2589.88 | K201: 2549.35 | L201: 2500 | M201: 3.73724
A202: 193 | B202: HDFCBANK | C202: 1433.3 | D202: 1435.93 | E202: 1422.87 | F202: 1412.43 | G202: 1399.37 | H202: 1446.37 | I202: 1459.43 | J202: 1469.87 | K202: 1449 | L202: 1425.5 | M202: 85.73787
A203: 194 | B203: HDFCLIFE | C203: 641.9 | D203: 645.80 | E203: 635.60 | F203: 629.30 | G203: 619.10 | H203: 652.10 | I203: 662.30 | J203: 668.60 | K203: 656 | L203: 639.5 | M203: 45.69057
A204: 195 | B204: HEG | C204: 803.1 | D204: 804.13 | E204: 797.07 | F204: 791.03 | G204: 783.97 | H204: 810.17 | I204: 817.23 | J204: 823.27 | K204: 811.2 | L204: 798.1 | M204: 3.14207
A205: 196 | B205: HEIDELBERG | C205: 209.85 | D205: 211.25 | E205: 207.05 | F205: 204.25 | G205: 200.05 | H205: 214.05 | I205: 218.25 | J205: 221.05 | K205: 215.45 | L205: 208.45 | M205: 9.11305
A206: 197 | B206: HERITGFOOD | C206: 291.3 | D206: 292.33 | E206: 288.97 | F206: 286.63 | G206: 283.27 | H206: 294.67 | I206: 298.03 | J206: 300.37 | K206: 295.7 | L206: 290 | M206: 0.45502
... 317 more rows

Sheet Bulk Deals
E6: Back To Main Page
A7: Subject : | B7: BULK DEAL | D7: =Main!B10 -> 2020-12-02
A9: Date | B9: Scrip code | C9: Scrip Name | D9: Client Name | E9: Buy / Sell | F9: Quantity Traded | G9: Trade Price / Wt.Avg.trade price | H9: Exchange
A10: 2020-12-01 | B10: 517356 | C10: ACIIN | D10: PUJYA GURUWAR SOLAR INDIA PRIVATE LIMITED | E10: BUY | F10: 700,000 | G10: 0.3 | H10: BSE
A11: 2020-12-01 | B11: 538778 | C11: AKASHDEEP | D11: SUNIL KUMAR MALIK | E11: BUY | F11: 70,000 | G11: 36.42 | H11: BSE
A12: 2020-12-01 | B12: 538778 | C12: AKASHDEEP | D12: PARVEEN GUPTA | E12: SELL | F12: 65,000 | G12: 36.42 | H12: BSE
A13: 2020-12-01 | B13: 511463 | C13: ALEXANDER | D13: KAHAR NIKLESH KANAIYABHAI | E13: SELL | F13: 61,196 | G13: 11.27 | H13: BSE
A14: 2020-12-01 | B14: 530973 | C14: ALFAICA | D14: RAKESH RAMESHCHANDRA GUPTA | E14: BUY | F14: 29,515 | G14: 24.9 | H14: BSE
A15: 2020-12-01 | B15: 530973 | C15: ALFAICA | D15: SANJAY H SARAWAGI | E15: SELL | F15: 49,514 | G15: 24.9 | H15: BSE
A16: 2020-12-01 | B16: 540697 | C16: AMFL | D16: NOORUL AHAD MUBASHIR | E16: SELL | F16: 69,225 | G16: 2.17 | H16: BSE
A17: 2020-12-01 | B17: 539265 | C17: AMRAFIN | D17: CHIRAG YASHWANTBHAI THAKKAR | E17: BUY | F17: 595,200 | G17: 13 | H17: BSE
A18: 2020-12-01 | B18: 539265 | C18: AMRAFIN | D18: DILJIT BROKING& INFRA | E18: SELL | F18: 595,200 | G18: 13 | H18: BSE
A19: 2020-12-01 | B19: 530171 | C19: DAULAT | D19: ARYAN KOCHAR | E19: BUY | F19: 31,639 | G19: 3 | H19: BSE
A20: 2020-12-01 | B20: 530171 | C20: DAULAT | D20: TUSHAR KARMAKAR | E20: SELL | F20: 31,639 | G20: 3 | H20: BSE
A21: 2020-12-01 | B21: 540614 | C21: GGENG | D21: RAMESH SAWALRAM SARAOGI | E21: BUY | F21: 120,000 | G21: 85.16 | H21: BSE
A22: 2020-12-01 | B22: 513337 | C22: GUJTLRM | D22: PRAVEEN PRAVEEN RATHI | E22: BUY | F22: 3,544 | G22: 5.47 | H22: BSE
A23: 2020-12-01 | B23: 533302 | C23: KICL | D23: GOENKA BUSINESS & FINANCE LIMITED | E23: BUY | F23: 71,482 | G23: 1275.59 | H23: BSE
A24: 2020-12-01 | B24: 533302 | C24: KICL | D24: GOENKA BUSINESS & FINANCE LIMITED | E24: SELL | F24: 72,087 | G24: 1389.08 | H24: BSE
A25: 2020-12-01 | B25: 533302 | C25: KICL | D25: HOSDRUG VISHWANATH KAMATH | E25: BUY | F25: 35,000 | G25: 1390 | H25: BSE
A26: 2020-12-01 | B26: 533302 | C26: KICL | D26: HOSDRUG VISHWANATH KAMATH | E26: SELL | F26: 35,000 | G26: 1265.27 | H26: BSE
A27: 2020-12-01 | B27: 503669 | C27: KKFIN | D27: ACQUITOR FINANCIAL SERVICES PVT.LTD. | E27: BUY | F27: 45,000 | G27: 5.7 | H27: BSE
A28: 2020-12-01 | B28: 539762 | C28: MODCL | D28: HARSH HEMANT DOSHI | E28: BUY | F28: 25,000 | G28: 10 | H28: BSE
A29: 2020-12-01 | B29: 539291 | C29: OZONEWORLD | D29: DILIP RAMANLAL DOSHI | E29: BUY | F29: 21,000 | G29: 80.75 | H29: BSE
A30: 2020-12-01 | B30: 539291 | C30: OZONEWORLD | D30: PATEL JAYESH | E30: SELL | F30: 40,000 | G30: 80.5 | H30: BSE
A31: 2020-12-01 | B31: 539673 | C31: RCL | D31: PANIPRASADKURCHETI | E31: BUY | F31: 64,928 | G31: 15.58 | H31: BSE
A32: 2020-12-01 | B32: 539673 | C32: RCL | D32: SHREYANS EMBROIDERY MACHINE PRIVATE LIMITED | E32: SELL | F32: 11,500 | G32: 15.83 | H32: BSE
A33: 2020-12-01 | B33: 539673 | C33: RCL | D33: PRIMARY IRON TRADERS PVT LTD | E33: SELL | F33: 18,065 | G33: 15.87 | H33: BSE
A34: 2020-12-01 | B34: 539673 | C34: RCL | D34: WONDERLAND PAPER SUPPLIERS PRIVATE LIMITED | E34: SELL | F34: 21,700 | G34: 15.68 | H34: BSE
A35: 2020-12-01 | B35: 539673 | C35: RCL | D35: ANURODH INFRASTRUCTURE LIMITED | E35: SELL | F35: 23,974 | G35: 15.79 | H35: BSE
A36: 2020-12-01 | B36: 539673 | C36: RCL | D36: JAGUAR INFRA DEVELOPERS LIMITED | E36: SELL | F36: 50,000 | G36: 15.6 | H36: BSE
A37: 2020-12-01 | B37: 539673 | C37: RCL | D37: KUMAR ROHTASH | E37: BUY | F37: 10,000 | G37: 15.8 | H37: BSE
A38: 2020-12-01 | B38: 539673 | C38: RCL | D38: SUBHASH CHAND AGGARWAL | E38: BUY | F38: 12,660 | G38: 15.78 | H38: BSE
A39: 2020-12-01 | B39: 539673 | C39: RCL | D39: SHANKAR LAL JALAN | E39: BUY | F39: 15,000 | G39: 15.86 | H39: BSE
A40: 2020-12-01 | B40: 539673 | C40: RCL | D40: VASANT KUMAR ARUMUGAM THEVAR | E40: BUY | F40: 10,000 | G40: 15.85 | H40: BSE
A41: 2020-12-01 | B41: 531952 | C41: RIBATEX | D41: SITA RAM | E41: BUY | F41: 50,600 | G41: 34.62 | H41: BSE
A42: 2020-12-01 | B42: 531952 | C42: RIBATEX | D42: DEEPAK KUMAR | E42: BUY | F42: 38,260 | G42: 34.51 | H42: BSE
A43: 2020-12-01 | B43: 531952 | C43: RIBATEX | D43: DEEPAK KUMAR | E43: SELL | F43: 55,110 | G43: 34.58 | H43: BSE
A44: 2020-12-01 | B44: 540843 | C44: RITHWIKFMS | D44: RUDRADEV RAVI RAMAN | E44: BUY | F44: 18,000 | G44: 42.2 | H44: BSE
A45: 2020-12-01 | B45: 539526 | C45: SCTL | D45: SOHAM ASHOKKUMAR SHAH | E45: SELL | F45: 1,512,000 | G45: 0.74 | H45: BSE
A46: 2020-12-01 | B46: 539026 | C46: SSPNFIN | D46: ASHOK KUMAR SINGH | E46: BUY | F46: 20,000 | G46: 31.4 | H46: BSE
A47: 2020-12-01 | B47: 539026 | C47: SSPNFIN | D47: HIMANSHU ANEJA | E47: SELL | F47: 20,000 | G47: 31.4 | H47: BSE
A48: 2020-12-01 | B48: 524717 | C48: TITANBIO | D48: AVB SHARES TRADING PRIVATE LIMITED | E48: SELL | F48: 47,550 | G48: 126.82 | H48: BSE
A49: 2020-12-01 | B49: 542655 | C49: VIKASMCORP | D49: ALBULA INVESTMENT FUND LTD | E49: BUY | F49: 7,200,000 | G49: 7.6 | H49: BSE
A50: 2020-12-01 | B50: 539222 | C50: VMV | D50: ASHOK KUMAR SINGH | E50: BUY | F50: 32,500 | G50: 38.85 | H50: BSE
A51: 2020-12-01 | B51: 539222 | C51: VMV | D51: ASHOK KUMAR SINGH | E51: SELL | F51: 17,500 | G51: 37.93 | H51: BSE
A52: 2020-12-01 | B52: 542654 | C52: VRFILMS | D52: SHRENI SHARES PRIVATE LIMITED | E52: BUY | F52: 1,000 | G52: 120 | H52: BSE
A53: 2020-12-01 | B53: 542654 | C53: VRFILMS | D53: SHRENI SHARES PRIVATE LIMITED | E53: SELL | F53: 7,000 | G53: 112 | H53: BSE
A54: 2020-12-01 | B54: BFUTILITIE | C54: BF Utilities Limited | D54: URMILA DOSHI | E54: BUY | F54: 251,477 | G54: 273.9 | H54: NSE
A55: 2020-12-01 | B55: GSS | C55: GSS Infotech Limited | D55: PALLAS FINCAP PRIVATE LIMITED | E55: BUY | F55: 136,070 | G55: 44.64 | H55: NSE
A56: 2020-12-01 | B56: HARRMALAYA | C56: Harrisons Malayalam Ltd | D56: VIJETA STOCK & SHARES SERVICES PRIVATE LIMITED VIJETA STOCK | E56: BUY | F56: 106,869 | G56: 109.66 | H56: NSE
A57: 2020-12-01 | B57: PROLIFE | C57: Prolife Industries Ltd | D57: GYANENDRA KUMAR | E57: BUY | F57: 21,000 | G57: 41.3 | H57: NSE
A58: 2020-12-01 | B58: SITINET | C58: Siti Networks Limited | D58: TOPGAIN FINANCE PRIVATE LIMITED | E58: BUY | F58: 15,400,913 | G58: 0.76 | H58: NSE
A59: 2020-12-01 | B59: SITINET | C59: Siti Networks Limited | D59: CHANDARANA SHARES & STOCKS PRIVATE LIMITED | E59: BUY | F59: 3,000,000 | G59: 0.8 | H59: NSE
A60: 2020-12-01 | B60: TPLPLASTEH | C60: TPL Plastech Limited | D60: PINAKINI ARUNKUMAR SOLANKI | E60: BUY | F60: 45,009 | G60: 152.73 | H60: NSE
A61: 2020-12-01 | B61: BFUTILITIE | C61: BF Utilities Limited | D61: URMILA DOSHI | E61: SELL | F61: 251,427 | G61: 273.18 | H61: NSE
A62: 2020-12-01 | B62: BIOFILCHEM | C62: Biofil Chemicals & Pharm | D62: TEJAL KEYUR SHAH | E62: SELL | F62: 95,000 | G62: 229.65 | H62: NSE
A63: 2020-12-01 | B63: HARRMALAYA | C63: Harrisons Malayalam Ltd | D63: VIJETA STOCK & SHARES SERVICES PRIVATE LIMITED VIJETA STOCK | E63: SELL | F63: 75,015 | G63: 109.8 | H63: NSE
A64: 2020-12-01 | B64: HEMIPROP | C64: Hemisphere Prop Ind Ltd | D64: AMANSA HOLDING PRIVATE LTD. | E64: SELL | F64: 1,727,961 | G64: 64.5 | H64: NSE
A65: 2020-12-01 | B65: PRAJIND | C65: Praj Industries Ltd | D65: TATACAPITALFINANCIALSERVICESLIMITED | E65: SELL | F65: 1,164,614 | G65: 91.16 | H65: NSE
A66: 2020-12-01 | B66: PROLIFE | C66: Prolife Industries Ltd | D66: EKTA KINJAL SHAH | E66: SELL | F66: 24,000 | G66: 41.3 | H66: NSE
A67: 2020-12-01 | B67: SITINET | C67: Siti Networks Limited | D67: CHANDARANA SHARES & STOCKS PRIVATE LIMITED | E67: SELL | F67: 6,000,000 | G67: 0.83 | H67: NSE
A68: 2020-12-01 | B68: SITINET | C68: Siti Networks Limited | D68: TOPGAIN FINANCE PRIVATE LIMITED | E68: SELL | F68: 13,405,904 | G68: 0.83 | H68: NSE
A69: 2020-12-01 | B69: SNOWMAN | C69: Snowman Logistics Ltd. | D69: ADANI LOGISTICS LIMITED | E69: SELL | F69: 1,156,147 | G69: 56.73 | H69: NSE
A70: 2020-12-01 | B70: SUBEXLTD | C70: Subex Ltd | D70: ALTRUIST CUSTOMER MANEGEMENT INDIA PRIVATE LIMITED | E70: SELL | F70: 3,300,000 | G70: 26.42 | H70: NSE
A71: 2020-12-01 | B71: TAKE | C71: Take Solutions Limited | D71: SVL LIMITED | E71: SELL | F71: 1,600,000 | G71: 43.95 | H71: NSE
A72: 2020-12-01 | B72: TAKE | C72: Take Solutions Limited | D72: FIRST STATE INVESTMENTS ICVC-FIRST STATE ASIA ALL-CAP FUND | E72: SELL | F72: 802,504 | G72: 43.22 | H72: NSE
A73: 2020-12-01 | B73: TATACOFFEE | C73: Tata Coffee Limited | D73: F BORN A G | E73: SELL | F73: 2,221,734 | G73: 105.16 | H73: NSE
A74: 2020-12-01 | B74: TPLPLASTEH | C74: TPL Plastech Limited | D74: PINAKINI ARUNKUMAR SOLANKI | E74: SELL | F74: 45,009 | G74: 154.2 | H74: NSE

Sheet Call Tracker (Equity & F&O)
M5: Back To Main Page
A6: Retail Research Technical Calls & Fundamental Performance Report for the month of December-2020
M7: =Main!B10 -> 2020-12-02
B8: Positional Call
A9: Sr.no | B9: Date | D9: Company | E9: Rec | F9: Rec Price | G9: Stop Loss*** | H9: Call Closed At | I9: Target | J9: Remark | K9: Profit / Loss per Share | L9: All charges | M9: Net Gain / Loss % | N9: Status | O9: Closed Date
A10: 1 | B10: 2020-10-06 | D10: MARUTI | E10: Buy | F10: 6890 | G10: 6,600.00 | H10: 7,170.00 | I10: 7450 | J10: Part Profit of Rs.280/- | K10: =H10-F10 -> 280 | L10: =(F10*-0.8)/100 -> -55.12 | M10: =(K10+L10)/F10 -> 3.26% | N10: Successful | O10: 2020-10-27 | R10: A
A11: 2 | B11: 2020-11-18 | D11: HINDUNILVR | E11: Buy | F11: 2130-2145 | G11: 2000 | I11: 2350-2400 | J11: Open | R11: H
A12: 3 | B12: 2020-11-19 | D12: MCX | E12: Buy | F12: 1625-1635 | G12: 1515 | I12: 1800-1850 | J12: Open | R12: H
A13: 4 | B13: 2020-11-19 | D13: HDFCAMC | E13: Buy | F13: 2450 | G13: 2,300.00 | H13: 2,550.00 | I13: 2750 | J13: Part Profit of Rs.100/- | K13: =H13-F13 -> 100 | L13: =(F13*-0.8)/100 -> -19.60 | M13: =(K13+L13)/F13 -> 3.28% | N13: Successful | O13: 2020-11-25 | R13: N
A19: CLBS = Closing Basis ***
A20: Dividend adjusted <> | F20: Reinitiated $
A21: Part book {} | F21: Revised stoploss #
B23: Momentum Call
A24: Sr.no | B24: Date | D24: Company | E24: Rec | F24: Rec Price | G24: Stop Loss | H24: Call Closed At | I24: Target | J24: Remark | K24: Profit / Loss per Share/Lot | L24: All charges | M24: Net Gain / Loss % | N24: Status | O24: Closed Date
A25: 1 | B25: 2020-11-18 | D25: MARICO | E25: Buy | F25: 375-377 | G25: 367 | I25: 396 | J25: Open | R25: H
A26: 2 | B26: 2020-11-26 | D26: KOTAKBANK | E26: Sell | F26: 1874-1880 | G26: 1925 | I26: 1800 | J26: Open | R26: H
A27: 3 | B27: 2020-12-01 | D27: HDFCLIFE | E27: Buy | F27: 640-643 | G27: 619 | I27: 680 | J27: Open | R27: H
A28: 4 | B28: 2020-12-01 | D28: ASTRAMICRO | E28: Buy | F28: 115-116 | G28: 112 | I28: 122 | J28: Open | R28: N
A31: CLBS = Closing Basis *** | H31: *
A32: Dividend adjusted <> | F32: Reinitiated $
F33: Revised stoploss #
A35: Master Trade High Risk
A36: Sr.no | B36: Date | D36: Company | E36: Rec | F36: Rec Price | G36: Stop Loss | H36: Call Closed At | I36: Target | J36: Remark | K36: Profit / Loss per share | L36: All charges | M36: Gain / Loss per Lot | N36: Lot | O36: Status | P36: Closed Date
A37: 1 | B37: 2020-11-26 | D37: HDFCBANK DEC FUT | E37: Sell | F37: 1411-1413 | G37: 1452 | I37: 1350 | J37: Open | R37: H
D38: HDFCBANK 1360 PE DEC | E38: Sell | F38: 28-30 | R38: H
A39: 2 | B39: 2020-11-27 | D39: NIFTY DEC FUT | E39: Sell | F39: 13030-13050 | G39: 13200 | I39: 12700 | J39: Open | R39: H
A40: 3 | B40: 2020-11-27 | D40: BHARATFORG DEC FUT | E40: Buy | F40: 511-512 | G40: 502 | I40: 530 | J40: Open | R40: N
A45: Master Trade Medium Risk
A46: Sr.no | B46: Date | D46: Company | E46: Rec | F46: Rec Price | G46: Stop Loss | H46: Call Closed At | I46: Target | J46: Remark | K46: Profit/ Loss per lot | L46: All charges | M46: Gain / Loss per Lot | N46: Lot | O46: Status | P46: Closed Date
A47: 1 | B47: 2020-12-01 | D47: HAVELLS 780 PE DEC | E47: Buy | F47: 13-14 | G47: 8 | I47: 22-24 | J47: Open | R47: N
A48: 2 | B48: 2020-12-01 | D48: BANKNIFTY 29000 PE 10-DEC | E48: Buy | F48: 380-400 | G48: 190 | I48: 700 | J48: Open | R48: H
A55: Techno -Funda (positional)
A56: Sr.no | B56: Date | D56: Company | E56: Rec | F56: Rec Price | G56: Stop Loss*** | H56: Call Closed At | I56: Target | J56: Remark | K56: Profit / Loss per Share/Lot | L56: All charges | M56: Net Gain / Loss % | N56: Status | O56: Closed Date
A59: CLBS = Closing Basis *** | F59: Reinitiated $
A60: Dividend adjusted <> | F60: Revised stoploss #
B62: Intrday Call
A63: Sr.no | B63: Date | D63: Company | E63: Rec | F63: Rec Price | G63: Stop Loss | H63: Call Closed At | I63: Target | J63: Remark | K63: Profit / Loss per Share/Lot | L63: Gain / Loss per Lot | M63: Lot | N63: All charges | O63: Net Gain / Loss % | P63: Status | Q63: Closed Date
B76: Investment Idea
A77: Sr.no | B77: Date | D77: Company | E77: Rec | F77: Rec Price | G77: Point of Review | H77: Close Rate | I77: Target | J77: Remark | K77: Profit / Loss per Share | L77: Gain / Loss % | M77: Status | N77: Closed Date
A78: 1 | B78: 2013-11-01 | D78: L&T Finance Holding | E78: Accu | F78: 82.00 | G78: - | H78: 100 | I78: 100.00 | J78: Target Achieved | K78: =H78-F78 -> 18.00 | L78: =K78/F78 -> 21.95% | M78: Successful | N78: 2016-10-14
A79: 2 | B79: 2014-06-04 | D79: Finolex Inds | E79: Buy | F79: 257.00 | G79: - | H79: 300 | I79: 300.00 | J79: Target Achieved | K79: 43.00 | L79: 16.73% | M79: Successful | N79: 2014-07-02
A80: 3 | B80: 2014-07-08 | D80: JK Cement | E80: Buy | F80: 393.00 | G80: - | H80: 468 | I80: 468.00 | J80: Target Achieved | K80: 75.00 | L80: 19.08% | M80: Successful | N80: 2014-08-12
A81: 4 | B81: 2014-08-06 | D81: Finolex Cables | E81: Buy | F81: 205.00 | G81: - | H81: 275 | I81: 250.00 | J81: Target Achieved | K81: 70.00 | L81: 34.15% | M81: Successful | N81: 2014-11-19
A82: 5 | B82: 2014-09-04 | D82: Exide Inds | E82: Buy | F82: 162.00 | G82: - | H82: 190 | I82: 190.00 | J82: Target Achieved | K82: 28.00 | L82: 17.28% | M82: Successful | N82: 2015-01-02
A83: 6 | B83: 2014-09-04 | D83: Deepak Nitrite | E83: Buy | F83: 75.00 | G83: - | H83: 91.5 | I83: 95-100 | J83: Profit of Rs.16.50/- | K83: 16.50 | L83: 22.00% | M83: Successful | N83: 2014-11-11
A84: 7 | B84: 2014-10-01 | D84: Mercks | E84: Buy | F84: 850.00 | G84: - | H84: 982.5 | I84: 1050.00 | J84: Profit of Rs.132.50/- | K84: 132.50 | L84: 15.59% | M84: Successful | N84: 2015-02-04
A85: 8 | B85: 2014-10-01 | D85: Grindwell Norton | E85: Buy | F85: 475.00 | G85: - | H85: 515 | I85: 600.00 | J85: Profit of Rs.40/- | K85: 40.00 | L85: 8.42% | M85: Successful | N85: 2014-10-27
A86: 9 | B86: 2014-10-01 | D86: Snowman Logistics | E86: Buy | F86: 86.00 | G86: - | H86: 99 | I86: 140.00 | J86: Profit of Rs.13.00/- | K86: 13.00 | L86: 15.12% | M86: Successful | N86: 2014-10-27
A87: 10 | B87: 2014-10-14 | D87: Birla Corp | E87: Buy | F87: 496.60 | G87: - | H87: 621 | I87: 580.00 | J87: Target Achieved | K87: 124.40 | L87: 25.05% | M87: Successful | N87: 2016-08-23
A88: 11 | B88: 2014-10-14 | D88: Ultratech Cem | E88: Buy | F88: 2481.90 | G88: - | H88: 2840 | I88: 2870.00 | J88: Profit of Rs.358.10/- | K88: 358.10 | L88: 14.43% | M88: Successful | N88: 2015-01-13
A89: 12 | B89: 2014-10-16 | D89: Sintex Inds | E89: Buy | F89: 84.50 | G89: - | H89: 93 | I89: 110.00 | J89: Profit of Rs.8.50/- | K89: 8.50 | L89: 10.06% | M89: Successful | N89: 2014-10-27
A90: 13 | B90: 2014-10-16 | D90: HSIL | E90: Buy | F90: 401.00 | G90: - | H90: 428 | I90: 450.00 | J90: Profit of Rs.27.00/- | K90: 27.00 | L90: 6.73% | M90: Successful | N90: 2015-01-16
A91: 14 | B91: 2014-10-16 | D91: Eveready Inds | E91: Buy | F91: 101.00 | G91: - | H91: 112 | I91: 120.00 | J91: Profit of Rs.11.00/- | K91: 11.00 | L91: 10.89% | M91: Successful | N91: 2014-10-27
A92: 15 | B92: 2014-11-11 | D92: Pennar Inds | E92: Buy | F92: 59.00 | G92: - | H92: 76 | I92: 76.00 | J92: Target Achieved | K92: 17.00 | L92: 28.81% | M92: Successful | N92: 2017-10-24
A93: 16 | B93: 2014-11-11 | D93: Snowman Logistics | E93: Buy | F93: 99.00 | G93: - | H93: 120 | I93: 120.00 | J93: Profit of Rs.21/- | K93: 21.00 | L93: 21.21% | M93: Successful | N93: 2014-11-17
A94: 17 | B94: 2014-11-13 | D94: Dharamsi Morarji Chem | E94: Buy | F94: 22.00 | G94: - | H94: 33.55 | I94: 32.00 | J94: Profit of Rs 11.55/- | K94: 11.55 | L94: 52.50% | M94: Successful | N94: 2015-07-03
A95: 18 | B95: 2014-12-03 | D95: Tatachem | E95: Buy | F95: 440.00 | G95: - | H95: 520 | I95: 520.00 | J95: Profit of Rs 80.00/- | K95: 80.00 | L95: 18.18% | M95: Successful | N95: 2015-07-23
A96: 19 | B96: 2014-12-03 | D96: Advanta | E96: Buy | F96: 360.00 | G96: - | H96: 427 | I96: 425.00 | J96: Profit of Rs.67.00/- | K96: 67.00 | L96: 18.61% | M96: Successful | N96: 2015-02-23
A97: 20 | B97: 2015-01-08 | D97: GDL | E97: Buy | F97: 360.00 | G97: - | H97: 455 | I97: 420.00 | J97: Profit of Rs.95.00/- | K97: 95.00 | L97: 26.39% | M97: Successful | N97: 2015-01-20
A98: 21 | B98: 2015-01-08 | D98: NRB Bearing | E98: Buy | F98: 130.00 | H98: 175.5 | I98: 165.00 | J98: Profit of Rs 45.50/- | K98: 45.50 | L98: 35.00% | M98: Successful | N98: 2017-12-19
A99: 22 | B99: 2015-02-05 | D99: GSFC | E99: Accu | F99: 98.00 | H99: 120 | I99: 120.00 | J99: Target Achieved | K99: 22.00 | L99: 22.45% | M99: Successful | N99: 2017-01-18
A100: 23 | B100: 2015-02-05 | D100: Sundrmfast | E100: Accu | F100: 196.00 | H100: 262 | I100: 255.00 | J100: Target Achieved | K100: 66.00 | L100: 33.67% | M100: Successful | N100: 2016-08-17
A101: 24 | B101: 2015-03-04 | D101: GPPL | E101: Accu | F101: 235 | H101: 77.00 | I101: 280-285 | J101: Loss of Rs.158/- | K101: -158.00 | L101: -67.23% | M101: Unsuccessful | N101: 2019-02-26
A102: 25 | B102: 2015-03-04 | D102: ORIENTCEM | E102: Accu | F102: 185.00 | H102: 224 | I102: 220-225 | J102: Target Achieved | K102: 39.00 | L102: 21.08% | M102: Successful | N102: 2016-10-04
A103: 26 | B103: 2015-03-27 | D103: PFS | E103: Accu | F103: 49.5 | H103: 15.85 | I103: 67.00 | J103: Loss of Rs.33.65/- | K103: -33.65 | L103: -68% | M103: Unsuccessful | N103: 2019-06-11
A104: 27 | B104: 2015-03-30 | D104: Walchandnagar Ind Ltd | E104: Accu | F104: 183.50 | H104: 219 | I104: 218.00 | J104: Profit of Rs.35.50/- | K104: 35.50 | L104: 19.35% | M104: Successful | N104: 2015-04-09
A105: 28 | B105: 2015-04-20 | D105: Kalpataru Power Transmission Ltd | E105: Accu | F105: =(227+237)/2 -> 232.00 | H105: 298 | I105: 298.00 | J105: Target Achieved | K105: 66.00 | L105: 28.45% | M105: Successful | N105: 2017-03-29
A106: 29 | B106: 2015-05-04 | D106: Mastek Ltd | E106: Buy | F106: 385.00 | H106: =212.5+331 -> 543.5 | I106: 510.00 | J106: Profit of Rs 158.50/- | K106: 158.50 | L106: 41.17% | M106: Successful | N106: 2015-08-19
A107: 30 | B107: 2015-05-04 | D107: Suprajit Eng | E107: Buy | F107: 115.50 | H107: 146 | I107: 142.00 | J107: Profit of Rs 30.50/- | K107: 30.50 | L107: 26.41% | M107: Successful | N107: 2015-07-17
A108: 31 | B108: 2015-05-27 | D108: TCI | E108: Buy | F108: 237.50 | H108: 279.5 | I108: 278.00 | J108: Target Achieved | K108: 42.00 | L108: 17.68% | M108: Successful | N108: 2015-08-06
A109: 32 | B109: 2015-06-19 | D109: HSIL | E109: Accu | F109: 340.00 | H109: 448 | I109: 448.00 | J109: Target Achieved | K109: 108.00 | L109: 31.76% | M109: Successful | N109: 2017-10-10
A110: 33 | B110: 2015-07-06 | D110: Capital First | E110: Accu | F110: 390.00 | H110: 460 | I110: 460.00 | J110: Target Achieved | K110: =H110-F110 -> 70.00 | L110: =K110/F110 -> 17.95% | M110: Successful | N110: 2016-04-18
A111: 34 | B111: 2015-07-10 | D111: Dolphin OffShore | E111: Accu | F111: 122.5 | H111: 61.00 | I111: 172.00 | J111: Loss of Rs.61.50/- | K111: -61.50 | L111: -50.20% | M111: Unsuccessful | N111: 2018-08-21
A112: 35 | B112: 2015-08-03 | D112: Allcargo logistics | E112: Accu | F112: 297.50 | H112: 350 | I112: 360.00 | J112: Profit of Rs 52.50/- | K112: 52.50 | L112: 17.65% | M112: Successful | N112: 2015-08-16
A113: 36 | B113: 2015-08-03 | D113: Camline Fine | E113: Accu | F113: 115.50 | H113: 149 | I113: 140.00 | J113: Profit of Rs 33.50/- | K113: 33.50 | L113: 29.00% | M113: Successful | N113: 2017-01-05
A114: 37 | B114: 2015-09-04 | D114: TCI | E114: Accu | F114: 226.00 | H114: 292 | I114: 292.00 | J114: Target Achieved | K114: 66.00 | L114: 29.20% | M114: Successful | N114: 2015-10-09
A115: 38 | B115: 2015-09-07 | D115: Kalpataru Power Transmission Ltd | E115: Accu | F115: 232.50 | H115: 312.5 | I115: 310.00 | J115: Target Achieved | K115: 80.00 | L115: 34.41% | M115: Successful | N115: 2017-03-29
A116: 39 | B116: 2015-09-21 | D116: LLOYD ELECTRIC & ENG LTD | E116: Accu | F116: 196.50 | H116: 238 | I116: 238.00 | J116: Target Achieved | K116: 41.50 | L116: 21.12% | M116: Successful | N116: 2015-10-14
A117: 40 | B117: 2015-09-24 | D117: L&T Finance Holding | E117: Accu | F117: 65.00 | H117: 82 | I117: 82.00 | J117: Target Achieved | K117: 17.00 | L117: 26.15% | M117: Successful | N117: 2016-07-27
A118: 41 | B118: 2015-10-14 | D118: KEC International ltd | E118: Accu | F118: 144.00 | H118: 182.5 | I118: 181.00 | J118: Target Achieved | K118: 38.50 | L118: 26.74% | M118: Successful | N118: 2017-03-23
A119: 42 | B119: 2015-10-14 | D119: Gruh Finance | E119: Accu | F119: 264.00 | H119: 311 | I119: 311.00 | J119: Target Achieved | K119: 47.00 | L119: 17.80% | M119: Successful | N119: 2016-08-22
A120: 43 | B120: 2015-11-10 | D120: Pidilitind | E120: Buy | F120: 549.50 | H120: 630 | I120: 630.00 | J120: Target Achieved | K120: 80.50 | L120: 14.65% | M120: Successful | N120: 2016-02-19
A121: 44 | B121: 2015-12-04 | D121: Zensar Technology | E121: Accu | F121: 1027.50 | H121: 1315 | I121: 1250.00 | J121: Target Achieved | K121: 287.50 | L121: 27.98% | M121: Successful | N121: 2018-05-24
A122: 45 | B122: 2015-12-29 | D122: Vinati Organics Ltd | E122: Accu | F122: 465.00 | H122: 540 | I122: 540.00 | J122: Target Achieved | K122: 75.00 | L122: 16.13% | M122: Successful | N122: 2016-06-09
A123: 46 | B123: 2016-01-11 | D123: GSFC | E123: Buy | F123: 81.00 | H123: 110 | I123: 110.00 | J123: Target Achieved | K123: 29.00 | L123: 35.80% | M123: Successful | N123: 2017-01-10
A124: 47 | B124: 2016-01-13 | D124: SSWL | E124: Buy | F124: 417.50 | H124: 547 | I124: 535.00 | J124: Target Achieved | K124: 129.50 | L124: 31.02% | M124: Successful | N124: 2016-07-27
A125: 48 | B125: 2016-02-08 | D125: Persistent System Ltd | E125: Accu | F125: 650.00 | H125: 800 | I125: 800.00 | J125: Target Achieved | K125: 150.00 | L125: 23.08% | M125: Successful | N125: 2018-02-23
A126: 49 | B126: 2016-03-04 | D126: UPL | E126: Accu | F126: 437.50 | H126: 504.5 | I126: 522.00 | J126: Profit of Rs.67/- | K126: 67.00 | L126: 15.31% | M126: Successful | N126: 2016-04-20
A127: 50 | B127: 2016-03-09 | D127: Ashoka Buildcon Ltd | E127: Accu | F127: 189.50 | H127: 218 | I127: 218.00 | J127: Target Achieved | K127: 28.50 | L127: 15.04% | M127: Successful | N127: 2017-10-26
A128: 51 | B128: 2016-04-11 | D128: PTC INDIA FIN SERV LTD | E128: Accu | F128: 36.5 | H128: 15.85 | I128: 60.00 | J128: Loss of Rs.20.65/- | K128: -20.65 | L128: -56.58% | M128: Unsuccessful | N128: 2019-06-11
A129: 52 | B129: 2016-04-12 | D129: CAMLINFINE $ | E129: Accu | F129: 93.00 | H129: 149 | I129: 140.00 | J129: Profit of Rs 56/- | K129: 56.00 | L129: 60.22% | M129: Successful | N129: 2017-01-05
A130: 53 | B130: 2016-04-12 | D130: Greaves Cotton Ltd. | E130: Accu | F130: 130.00 | H130: 150 | I130: 150-155 | J130: Target Achieved | K130: 20.00 | L130: 15.38% | M130: Successful | N130: 2016-07-13
A131: 54 | B131: 2016-04-13 | D131: DHFL | E131: Accu | F131: 196.00 | H131: 299 | I131: 299.00 | J131: Target Achieved | K131: 103.00 | L131: 52.55% | M131: Successful | N131: 2016-09-07
A132: 55 | B132: 2016-04-13 | D132: Magma | E132: Accu | F132: 88.00 | H132: 103 | I132: 103.00 | J132: Target Achieved | K132: 15.00 | L132: 17.05% | M132: Successful | N132: 2016-06-09
A133: 56 | B133: 2016-05-02 | D133: KEC International ltd $ | E133: Accu | F133: 127.50 | H133: 148 | I133: 148-150 | J133: Target Achieved | K133: =H133-F133 -> 20.50 | L133: =K133/F133 -> 16.08% | M133: Successful | N133: 2016-07-13
A134: 57 | B134: 2016-05-03 | D134: Mindtree | E134: Accu | F134: 675.00 | H134: 815 | I134: 790-800 | J134: Target Achieved | K134: =H134-F134 -> 140.00 | L134: =K134/F134 -> 20.74% | M134: Successful | N134: 2018-02-23
A135: 58 | B135: 2016-06-01 | D135: Atulauto | E135: Accu | F135: 500 | H135: 232.50 | I135: 565-570 | J135: Loss of Rs.267.50 /- | K135: =H135-F135 -> -267.50 | L135: =K135/F135 -> -53.50% | M135: Unsuccessful | N135: 2019-09-27
A136: 59 | B136: 2016-06-06 | D136: TRITURBINE | E136: Accu | F136: 110.00 | H136: 126.5 | I136: 125.00 | J136: Profit of Rs.16.50/- | K136: =H136-F136 -> 16.50 | L136: =K136/F136 -> 15.00% | M136: Successful | N136: 2016-07-01
A137: 60 | B137: 2016-06-17 | D137: Pennar Industries Ltd | E137: Accu | F137: 44.00 | H137: 69.5 | I137: 69.50 | J137: Profit of Rs.25.50/- | K137: =H137-F137 -> 25.50 | L137: =K137/F137 -> 57.95% | M137: Successful | N137: 2017-08-30
A138: 61 | B138: 2016-06-28 | D138: EVEREADY | E138: Accu | F138: 262.50 | H138: 340 | I138: 333.00 | J138: Profit of Rs.77.50/- | K138: 77.50 | L138: 29.52% | M138: Successful | N138: 2017-10-09
A139: 62 | B139: 2016-06-28 | D139: FIEMIND | E139: Accu | F139: 840.00 | H139: 1230 | I139: 1230.00 | J139: Target Achieved | K139: 390.00 | L139: 46.43% | M139: Successful | N139: 2016-10-06
A140: 63 | B140: 2016-07-05 | D140: Bajaj Corp Ltd | E140: Accu | F140: 395 | H140: =(468.5+342.5)/2 -> 405.50 | I140: 510.00 | J140: Profit of Rs.10.50/- | K140: =H140-F140 -> 10.50 | L140: =K140/F140 -> 3% | M140: Neutral | N140: 2019-05-21
A141: 64 | B141: 2016-08-02 | D141: GPPL $ | E141: Buy | F141: =169.5-12.8 -> 156.7 | H141: 77.00 | I141: 198-200 | J141: Loss of Rs.79.7/- | K141: -79.70 | L141: -50.86% | M141: Unsuccessful | N141: 2019-02-26
A142: 65 | B142: 2016-08-04 | D142: WONDERLA HOLIDAYS LTD | E142: Accu | F142: 400 | H142: 305.00 | I142: 475.00 | J142: Loss of Rs.95/- | K142: -95.00 | L142: -23.75% | M142: Unsuccessful | N142: 2019-05-21
A143: 66 | B143: 2016-08-11 | D143: CAMLINFINE | E143: Accu | F143: 86.50 | H143: 130 | I143: 130.00 | J143: Profit of Rs.43.50/- | K143: 43.50 | L143: 50.29% | M143: Successful | N143: 2017-12-22
A144: 67 | B144: 2016-08-18 | D144: GRANULES | E144: Accu | F144: 133.5 | H144: 126.50 | I144: 178.00 | J144: Exit | K144: -7.00 | L144: -5.24% | M144: Unsuccessful | N144: 2016-09-02
A145: 68 | B145: 2016-08-31 | D145: VA TECH WABAG | E145: Accu | F145: 560.00 | H145: 725 | I145: 725.00 | J145: Target Achieved | K145: 165.00 | L145: 29.46% | M145: Successful | N145: 2016-03-27
A146: 69 | B146: 2016-09-01 | D146: SKIPPER LIMITED | E146: Accu | F146: 160.50 | H146: 210 | I146: 210.00 | J146: Target Achieved | K146: 49.50 | L146: 30.84% | M146: Successful | N146: 2017-05-16
A147: 70 | B147: 2016-10-03 | D147: IFBIND | E147: Accu | F147: 430.00 | H147: 596 | I147: 575.00 | J147: Profit of Rs.166/- | K147: 166.00 | L147: 38.60% | M147: Successful | N147: 2017-02-03
A148: 71 | B148: 2016-10-14 | D148: ASIANTILES | E148: Accu | F148: 280.00 | H148: 345 | I148: 345.00 | J148: Target Achieved | K148: =H148-F148 -> 65.00 | L148: =K148/F148 -> 23.21% | M148: Successful | N148: 2017-03-20
A149: 72 | B149: 2016-10-14 | D149: DEEPIND | E149: Accu | F149: 245.00 | H149: 325.5 | I149: 330.00 | J149: Profit of Rs.80.5/- | K149: 80.50 | L149: =K149/F149 -> 32.86% | M149: Successful | N149: 2017-02-03
A150: 73 | B150: 2016-10-17 | D150: DCBBANK | E150: Accu | F150: 125.00 | H150: 160 | I150: 160.00 | J150: Target Achieved | K150: 35.00 | L150: 28.00% | M150: Successful | N150: 2017-03-09
A151: 74 | B151: 2016-10-17 | D151: ORIENTREF | E151: Accu | F151: 114.00 | H151: 145 | I151: 145.00 | J151: Target Achieved | K151: 31.00 | L151: =K151/F151 -> 27.19% | M151: Successful | N151: 2017-05-04
A152: 75 | B152: 2016-10-17 | D152: GANECOS | E152: Accu | F152: 212.00 | H152: 280 | I152: 276.00 | J152: Profit of Rs.68/- | K152: 68.00 | L152: =K152/F152 -> 32.08% | M152: Successful | N152: 2017-05-03
A153: 76 | B153: 2016-11-04 | D153: NBCC | E153: Accu | F153: 155.00 | H153: 210 | I153: 210.00 | J153: Profit of Rs.55/- | K153: 55.00 | L153: =K153/F153 -> 35.48% | M153: Successful | N153: 2017-07-28
A154: 77 | B154: 2016-12-06 | D154: PRECAM | E154: Accu | F154: 150.5 | H154: 72.50 | I154: 174.00 | J154: Loss of Rs.78/- | K154: -78.00 | L154: -51.83% | M154: Unsuccessful | N154: 2018-08-21
A155: 78 | B155: 2016-12-08 | D155: INFRATEL | E155: Accu | F155: 380.00 | H155: 478 | I155: 468.00 | J155: Target Achieved | K155: =H155-F155 -> 98.00 | L155: =K155/F155 -> 25.79% | M155: Successful | N155: 2017-10-17
A156: 79 | B156: 2016-12-30 | D156: GODREJPROP | E156: Accu | F156: 305.00 | H156: 375 | I156: 375.00 | J156: Target Achieved | K156: =H156-F156 -> 70.00 | L156: =K156/F156 -> 22.95% | M156: Successful | N156: 2017-02-02
A157: 80 | B157: 2017-01-04 | D157: DEEPAKNTR | E157: Accu | F157: 99.50 | H157: 158 | I157: 158.00 | J157: Target Achieved | K157: =H157-F157 -> 58.50 | L157: =K157/F157 -> 58.79% | M157: Successful | N157: 2017-06-12
A158: 81 | B158: 2017-01-04 | D158: DEEPAKNTR | E158: Accu | F158: 99.50 | H158: 158 | I158: 158.00 | J158: Target Achieved | K158: 58.50 | L158: 58.79% | M158: Successful | N158: 2017-06-12
A159: 82 | B159: 2017-02-20 | D159: RECLTD | E159: Accu | F159: 140.50 | H159: 220 | I159: 220.00 | J159: Target Achieved | K159: =H159-F159 -> 79.50 | L159: =K159/F159 -> 56.58% | M159: Successful | N159: 2017-05-09
A160: 83 | B160: 2017-02-20 | D160: SUBROS | E160: Accu | F160: 202.50 | H160: 234 | I160: 234.00 | J160: Target Achieved | K160: 31.50 | L160: 15.56% | M160: Successful | N160: 2017-04-11
A161: 84 | B161: 2017-03-24 | D161: VRLLOG | E161: Accu | F161: 300.50 | H161: 417.5 | I161: 420.00 | J161: Profit of Rs.117/- | K161: =H161-F161 -> 117.00 | L161: =K161/F161 -> 38.94% | M161: Successful | N161: 2017-12-01
A162: 85 | B162: 2017-03-24 | D162: FIEMIND | E162: Accu | F162: 850.00 | H162: 1042.5 | I162: 1023.00 | J162: Profit of Rs 192.50/- | K162: 192.50 | L162: 22.65% | M162: Successful | N162: 2017-04-05
A163: 86 | B163: 2017-04-05 | D163: RATNAMANI | E163: Accu | F163: 785.00 | H163: 930 | I163: 920.00 | J163: Profit of Rs.145/- | K163: =H163-F163 -> 145.00 | L163: =K163/F163 -> 18.47% | M163: Successful | N163: 2017-08-29
A164: 87 | B164: 2017-04-06 | D164: ZEEMEDIA | E164: Accu | F164: 40 | H164: 13.10 | I164: 60.00 | J164: Loss of Rs.26.9/- | K164: -26.90 | L164: -67.25% | M164: Unsuccessful | N164: 2018-02-07
A165: 88 | B165: 2017-04-12 | D165: DABUR | E165: Accu | F165: 289.50 | H165: 354 | I165: 360.00 | J165: Profit of Rs.64.5/- | K165: =H165-F165 -> 64.50 | L165: =K165/F165 -> 22.28% | M165: Successful | N165: 2017-11-01
A166: 89 | B166: 2017-04-20 | D166: KPRMILL | E166: Accu | F166: 700.00 | H166: 840 | I166: 840.00 | J166: Profit of Rs.140/- | K166: 140.00 | L166: 20.00% | M166: Successful | N166: 2017-06-07
A167: 90 | B167: 2017-06-01 | D167: ESSELPACK | E167: Accu | F167: 130.00 | H167: 144.25 | I167: 170.00 | J167: Profit of Rs.14.25/- | K167: 14.25 | L167: 10.96% | M167: Successful | N167: 2019-07-29
A168: 91 | B168: 2017-06-15 | D168: KEI | E168: Accu | F168: 214.50 | H168: 262 | I168: 262.00 | J168: Profit of Rs.47.5/- | K168: 47.50 | L168: 22.14% | M168: Successful | N168: 2017-08-30
A169: 92 | B169: 2017-07-17 | D169: MAYURUNIQ | E169: Accu | F169: 370.00 | H169: 447.5 | I169: 450.00 | J169: Target Achieved | K169: 77.50 | L169: 20.95% | M169: Successful | N169: 2017-10-27
A170: 93 | B170: 2017-07-27 | D170: RAMCOCEM | E170: Accu | F170: 657.50 | H170: 825 | I170: 820.00 | J170: Target Achieved | K170: 167.50 | L170: 25.48% | M170: Successful | N170: 2017-12-21
A171: 94 | B171: 2017-08-17 | D171: FINPIPE | E171: Accu | F171: 605.00 | H171: 750 | I171: 750.00 | J171: Profit of Rs.145/- | K171: 145.00 | L171: 23.97% | M171: Successful | N171: 2017-10-19
A172: 95 | B172: 2017-09-01 | D172: SHK | E172: Accu | F172: 255 | H172: 217.25 | I172: 320.00 | J172: Loss of Rs.37.75/- | K172: -37.75 | L172: -15% | M172: Unsuccessful | N172: 2019-07-15
A173: 96 | B173: 2017-09-19 | D173: SKIPPER | E173: Accu | F173: 215.00 | H173: 258 | I173: 258.00 | J173: Target Achieved | K173: 43.00 | L173: 20.00% | M173: Successful | N173: 2017-11-01
A174: 97 | B174: 2017-09-19 | D174: SKIPPER | E174: Accu | F174: 215.00 | H174: 258 | I174: 258.00 | J174: Target Achieved | K174: 43.00 | L174: 20.00% | M174: Successful | N174: 2017-11-01
A175: 98 | B175: 2017-09-20 | D175: CAMLINFINE$ | E175: Accu | F175: 75.00 | H175: 90 | I175: 90.00 | J175: Profit of Rs.15.00/- | K175: =H175-F175 -> 15.00 | L175: =K175/F175 -> 20.00% | M175: Successful | N175: 2017-10-11
A176: 99 | B176: 2017-10-03 | D176: GNA | E176: Accu | F176: 315.00 | H176: 392 | I176: 384.00 | J176: Profit of Rs.77/- | K176: 77.00 | L176: 24.44% | M176: Successful | N176: 2017-10-09
A177: 100 | B177: 2017-10-05 | D177: NOCIL | E177: Accu | F177: 145.00 | H177: 179 | I177: 180.00 | J177: Profit of Rs.34/- | K177: 34.00 | L177: 23.45% | M177: Successful | N177: 2017-10-17
A178: 101 | B178: 2017-10-06 | D178: CENTURYPLY | E178: Accu | F178: 256.00 | H178: 323 | I178: 320.00 | J178: Target Achieved | K178: 67.00 | L178: 26.17% | M178: Successful | N178: 2017-11-28
A179: 102 | B179: 2017-10-09 | D179: EIHOTEL | E179: Accu | F179: 137.50 | H179: 184 | I179: 183.00 | J179: Profit of Rs.46.5/- | K179: 46.50 | L179: 33.82% | M179: Successful | N179: 2018-01-08
A180: 103 | B180: 2017-10-10 | D180: NRBBEARING | E180: Accu | F180: 125.50 | H180: 158 | I180: 155.00 | J180: Profit of Rs.32.5/- | K180: 32.50 | L180: 25.90% | M180: Successful | N180: 2017-11-28
A181: 104 | B181: 2017-10-10 | D181: BOROSIL | E181: Accu | F181: 895.00 | H181: 1122.5 | I181: 1078.00 | J181: Profit of Rs.227.5/- | K181: 227.50 | L181: 25.42% | M181: Successful | N181: 2018-01-17
A182: 105 | B182: 2017-10-12 | D182: CYIENT | E182: Accu | F182: 525.00 | H182: 629 | I182: 629.00 | J182: Target Achieved | K182: 104.00 | L182: 19.81% | M182: Successful | N182: 2018-01-19
A183: 106 | B183: 2017-11-07 | D183: HATSUN | E183: Accu | F183: 740.00 | H183: 892.5 | I183: 900.00 | J183: Profit of Rs.152.5/- | K183: =H183-F183 -> 152.50 | L183: =K183/F183 -> 20.61% | M183: Successful | N183: 2017-11-13
A184: 107 | B184: 2017-12-04 | D184: SANGHIIND | E184: Accu | F184: 118.50 | H184: 143.5 | I184: 145.00 | J184: Profit of Rs.25/- | K184: =H184-F184 -> 25.00 | L184: =K184/F184 -> 21.10% | M184: Successful | N184: 2017-12-28
A185: 108 | B185: 2017-12-21 | D185: KAJARIACER | E185: Accu | F185: 715 | H185: 500.00 | I185: 872.00 | J185: Loss of Rs.215/- | K185: =H185-F185 -> -215.00 | L185: =K185/F185 -> -30.07% | M185: Unsuccessful | N185: 2019-07-24
A186: 109 | B186: 2017-12-29 | D186: GNA | E186: Accu | F186: 435.00 | H186: 542.5 | I186: 539.00 | J186: Target Achieved | K186: 107.50 | L186: 24.71% | M186: Successful | N186: 2018-04-16
A187: 110 | B187: 2017-12-29 | D187: ZENSARTECH | E187: Accu | F187: 885.00 | H187: 1090 | I187: 1084.00 | J187: Target Achieved | K187: 205.00 | L187: 23.16% | M187: Successful | N187: 2018-04-23
A188: 111 | B188: 2018-04-02 | D188: EVERESTIND | E188: Accu | F188: 478.50 | H188: 442 | I188: 613.00 | J188: Loss of Rs.36.50 /- | K188: =H188-F188 -> -36.50 | L188: =K188/F188 -> -7.63% | M188: Unsuccessful | N188: 2019-10-24
A189: 112 | B189: 2018-04-04 | D189: GPPL$ | E189: Accu | F189: =141.5-7.3 -> 134.2 | H189: 77.00 | I189: 180.00 | J189: Loss of Rs.57.2/- | K189: =H189-F189 -> -57.20 | L189: =K189/F189 -> -42.62% | M189: Unsuccessful | N189: 2019-02-26
A190: 113 | B190: 2018-04-19 | D190: MANPASAND | E190: Accu | F190: 430 | H190: 220.00 | I190: 537.00 | J190: Loss of Rs.210/- | K190: =H190-F190 -> -210.00 | L190: =K190/F190 -> -48.84% | M190: Unsuccessful | N190: 2018-06-01
A191: 114 | B191: 2018-04-30 | D191: HEIDELBERG | E191: Accu | F191: 153.50 | H191: 196.00 | I191: 196.00 | J191: Profit of Rs.42.50/- | K191: =H191-F191 -> 42.50 | L191: =K191/F191 -> 28% | M191: Successful | N191: 2019-05-20
A192: 115 | B192: 2018-07-25 | D192: ZEEMEDIA | E192: Accu | F192: 27.5 | H192: 13.10 | I192: 60.00 | J192: Loss of Rs.14.40/- | K192: -14.40 | L192: -52.36% | M192: Unsuccessful | N192: 2018-02-07
A193: 116 | B193: 2018-08-06 | D193: GABRIEL | E193: Accu | F193: 148.5 | H193: 102 | I193: 182.00 | J193: Loss of Rs.46.50/- | K193: =H193-F193 -> -46.50 | L193: =K193/F193 -> -31.31% | M193: Unsuccessful | N193: 2019-07-15
A194: 117 | B194: 2018-08-23 | D194: INDIANHUME | E194: Accu | F194: 285 | H194: 355 | I194: 364.00 | J194: Profit of Rs.70/- | K194: 70.00 | L194: 24.56% | M194: Successful | N194: 2018-12-21
A195: 118 | B195: 2018-08-29 | D195: GRINDWELL | E195: Accu | F195: 525 | H195: 585 | I195: 635.00 | J195: Profit of Rs.60- | K195: =H195-F195 -> 60.00 | L195: =K195/F195 -> 11.43% | M195: Successful | N195: 2019-07-16
A196: 119 | B196: 2018-10-22 | D196: FINPIPE | E196: Accu | F196: 475 | H196: 574 | I196: 570.00 | J196: Target Achieved | K196: 99.00 | L196: 20.84% | M196: Successful | N196: 2018-10-30
A197: 120 | B197: 2018-10-24 | D197: GULFOILLUB | E197: Accu | F197: 707.5 | H197: 872 | I197: 872.00 | J197: Target Achieved | K197: 164.50 | L197: 23.25% | M197: Successful | N197: 2019-01-17
A198: 121 | B198: 2018-10-25 | D198: DBCORP | E198: Accu | F198: 162 | H198: 204 | I198: 209.00 | J198: Profit of Rs.42/- | K198: 42.00 | L198: 25.93% | M198: Successful | N198: 2019-03-15
A199: 122 | B199: 2018-10-26 | D199: RITES | E199: Accu | F199: 240 | H199: 297 | I199: 297.00 | J199: Target Achieved | K199: 57.00 | L199: 23.75% | M199: Successful | N199: 2018-11-13
A200: 123 | B200: 2018-12-05 | D200: BRIGADE | E200: Accu | F200: 202.5 | H200: 255 | I200: 252.00 | J200: Target Achieved | K200: 52.50 | L200: 25.93% | M200: Successful | N200: 2019-03-18 | R200: V
A201: 124 | B201: 2018-12-31 | D201: JKCEMENT | E201: Accu | F201: 710 | H201: 866 | I201: 866.00 | J201: Target Achieved | K201: 156.00 | L201: 21.97% | M201: Successful | N201: 2019-03-29 | R201: V
A202: 125 | B202: 2019-02-26 | D202: MARICO | E202: Accu | F202: 337.25 | H202: 398.5 | I202: 411.00 | J202: Profit of Rs.61.25/- | K202: 61.25 | L202: 18.16% | M202: Successful | N202: 2019-10-22 | R202: V
A203: 126 | B203: 2019-04-04 | D203: ITDCEM | E203: Accu | F203: 130 | H203: 65 | I203: 158.00 | J203: Loss of Rs.65 /- | K203: -65.00 | L203: -50.00% | M203: Unsuccessful | N203: 2019-09-18 | R203: K
A204: 127 | B204: 2017-10-09 | D204: RECLTD | E204: Accu | F204: 141.5 | H204: 183.50 | I204: 210.00 | J204: Part Profit of Rs.42/- | K204: 42.00 | L204: 30% | M204: Successful | N204: 2017-11-03 | R204: K
A205: 128 | B205: 2017-12-05 | D205: ALLCARGO | E205: Accu | F205: 172.00 | H205: 155.25 | I205: 230.00 | J205: Loss of Rs.16.75/- | K205: =H205-F205 -> -16.75 | L205: =K205/F205 -> -9.74% | M205: Unsuccessful | N205: 2019-11-18 | R205: K
A206: 129 | B206: 2018-10-25 | D206: GODREJCP | E206: Accu | F206: 698.50 | H206: 850.00 | I206: 890.00 | J206: Part Profit of Rs.151.50/- | K206: 151.50 | L206: 22% | M206: Successful | N206: 2018-12-19 | R206: V
A207: 130 | B207: 2017-05-22 | D207: GREAVESCOT | E207: Accu | F207: 127.6 | H207: 138.00 | I207: 190.00 | J207: Profit of Rs.10.40 | K207: 10.40 | L207: 8% | M207: Successful | N207: 2019-11-05 | R207: K
A208: 131 | B208: 2018-02-27 | D208: MOLDTKPAC | E208: Accu | F208: 317.00 | I208: 398.00 | J208: Open | M208: Open | R208: K
A209: 132 | B209: 2018-03-05 | D209: LICHSGFIN | E209: Accu | F209: =510-14.4 -> 495.60 | H209: 350 | I209: 672.00 | J209: Loss of Rs.145.60/- | K209: =H209-F209 -> -145.60 | L209: =K209/F209 -> -29.38% | M209: Unsuccessful | N209: 2020-02-26 | R209: V
A210: 133 | B210: 2018-05-17 | D210: PHILIPCARB | E210: Accu | F210: 230.30 | H210: 102.5 | I210: 348.00 | J210: Loss of Rs.127.80/- | K210: =H210-F210 -> -127.80 | L210: =K210/F210 -> -55.49% | M210: Unsuccessful | N210: 2020-03-06 | R210: V
A211: 134 | B211: 2018-06-07 | D211: KEC | E211: Accu | F211: =342.5-5.1 -> 337.40 | I211: 439.00 | J211: Open | M211: Open | R211: K
A212: 135 | B212: 2018-07-04 | D212: ASHOKLEY | E212: Accu | F212: =127.5-5.53 -> 121.97 | I212: 170.00 | J212: Open | M212: Open | R212: V
A213: 136 | B213: 2018-07-13 | D213: FCONSUMER | E213: Accu | F213: 46.50 | H213: 17 | I213: 59.00 | J213: Loss of Rs.29.50/- | K213: =H213-F213 -> -29.50 | L213: =K213/F213 -> -63.44% | M213: Unsuccessful | N213: 2020-02-26 | R213: V
A214: 137 | B214: 2018-10-23 | D214: JKPAPER | E214: Accu | F214: 156.50 | I214: 191.00 | J214: Open | M214: Open | R214: V
A215: 138 | B215: 2018-12-05 | D215: CCL | E215: Accu | F215: 259.50 | I215: 321.00 | J215: Open | M215: Open | R215: V
A216: 139 | B216: 2018-12-05 | D216: VARROC | E216: Accu | F216: 715 | H216: 445 | I216: 840.00 | J216: Loss of Rs.270/- | K216: =H216-F216 -> -270.00 | L216: =K216/F216 -> -37.76% | M216: Unsuccessful | N216: 2019-12-01 | R216: V
A217: 140 | B217: 2019-01-04 | D217: MGL | E217: Accu | F217: 875 | H217: 1165 | I217: 1185.00 | J217: Profit of Rs.290/- | K217: 290.00 | L217: 33.14% | M217: Successful | N217: 2020-01-17 | R217: V
A218: 141 | B218: 2019-04-04 | D218: COCHINSHIP | E218: Accu | F218: =387-14.63 -> 372.37 | H218: 490 | I218: 490.00 | J218: Target Achieved | K218: 117.63 | L218: 31.59% | M218: Successful | N218: 2020-01-20 | R218: V
A219: 142 | B219: 2019-04-23 | D219: MAHINDCIE | E219: Buy | F219: 220 | H219: 127.5 | I219: 284.00 | J219: Loss of Rs.92.50/- | K219: -92.50 | L219: -42.05% | M219: Unsuccessful | N219: 2020-03-06 | R219: V
A220: 143 | B220: 2019-06-06 | D220: RADICO | E220: Buy | F220: 332.8 | H220: 405 | I220: 419.00 | J220: Profit of Rs.72.20/- | K220: =H220-F220 -> 72.20 | L220: =K220/F220 -> 21.69% | M220: Successful | N220: 2020-01-30 | R220: K
A221: 144 | B221: 2019-06-25 | D221: M&MFIN | E221: Accu | F221: 386 | H221: 395.00 | I221: 452.00 | J221: Profit of Rs.9/- | K221: =H221-F221 -> 9.00 | L221: =K221/F221 -> 2% | M221: Neutral | N221: 2020-02-07 | R221: K
A222: 145 | B222: 2019-08-30 | D222: INDHOTEL | E222: Accu | F222: 135-140 | I222: 190.00 | J222: Open | M222: Open | R222: V
A223: 146 | B223: 2019-09-23 | D223: KNRCON | E223: Accu | F223: 235 | H223: 295 | I223: 296.00 | J223: Profit of Rs.60/- | K223: =H223-F223 -> 60.00 | L223: =K223/F223 -> 25.53% | M223: Successful | N223: 2020-01-14 | R223: K
A224: 147 | B224: 2019-10-14 | D224: KEC$ | E224: Accu | F224: 277.5 | H224: 333 | I224: 333.00 | J224: Profit of Rs.55.50/- | K224: =H224-F224 -> 55.50 | L224: =K224/F224 -> 20.00% | M224: Successful | N224: 2020-01-16 | R224: V
A225: 148 | B225: 2019-10-14 | D225: MGL$ | E225: Accu | F225: 930 | H225: 1165 | I225: 1200.00 | J225: Profit of Rs.235/- | K225: =H225-F225 -> 235.00 | L225: =K225/F225 -> 25.27% | M225: Successful | N225: 2020-01-17 | R225: K
A226: 149 | B226: 2019-10-15 | D226: JKPAPER$ | E226: Accu | F226: 111.00 | I226: 141.00 | J226: Open | M226: Open
A227: 150 | B227: 2019-10-15 | D227: RADICO$ | E227: Accu | F227: 296.00 | H227: 370 | I227: 370.00 | J227: Target Achieved | K227: =H227-F227 -> 74.00 | L227: =K227/F227 -> 25.00% | M227: Successful | N227: 2020-01-23
A228: 151 | B228: 2019-10-16 | D228: MOLDTKPAC$ | E228: Accu | F228: 298-302 | I228: 344.00 | J228: Open | M228: Open
A229: 152 | B229: 2020-01-02 | D229: PSPPROJECT | E229: Accu | F229: 490-500 | I229: 590.00 | J229: Open | M229: Open
A230: 153 | B230: 2020-05-15 | D230: BEL | E230: Accu | F230: 67.50 | H230: 86 | I230: 86.00 | J230: Profit of Rs.18.50/- | K230: =H230-F230 -> 18.50 | L230: =K230/F230 -> 27.41% | M230: Successful | N230: 2020-06-26
A231: 154 | B231: 2020-07-23 | D231: RITES | E231: Accu | F231: 244-249 | I231: 296.00 | J231: Open
A232: 155 | B232: 2020-09-18 | D232: IEX | E232: Accu | F232: 204-208 | I232: 248.00 | J232: Open
A233: 156 | B233: 2020-11-05 | D233: IEX | E233: Accu | F233: 180-185 | I233: 248.00 | J233: Open
A234: 157 | B234: 2020-11-05 | D234: CCL | E234: Accu | F234: 245-250 | I234: 320.00 | J234: Open
A235: 158 | B235: 2020-11-05 | D235: POLYCAB | E235: Accu | F235: 920-930 | I235: 1093.00 | J235: Open
A236: 159 | B236: 2020-11-05 | D236: COCHINSHIP | E236: Accu | F236: 330-335 | I236: 406.00 | J236: Open
A237: 160 | B237: 2020-11-06 | D237: RITES | E237: Accu | F237: 237.5-242.5 | I237: 290.00 | J237: Open
B243: Re-initiated $

Sheet Sheet2 (hidden)
A1: SYMBOL | B1: SERIES | C1: OPEN | D1: HIGH | E1: LOW | F1: CLOSE | G1: LAST | H1: PREVCLOSE | I1: TOTTRDQTY | J1: TOTTRDVAL | K1: TIMESTAMP | L1: TOTALTRADES | M1: ISIN | N1: ISIN
A2: 20MICRONS | B2: EQ | C2: 27.9 | D2: 29 | E2: 25.9 | F2: 26.2 | G2: 25.9 | H2: 27.5 | I2: 80527 | J2: 2193820.55 | K2: 2020-04-08 | L2: 1099 | M2: INE144J01027
A3: 21STCENMGM | B3: EQ | C3: 10.15 | D3: 10.5 | E3: 10.1 | F3: 10.4 | G3: 10.5 | H3: 10.3 | I3: 3205 | J3: 32728.25 | K3: 2020-04-08 | L3: 28 | M3: INE253B01015
A4: 3IINFOTECH | B4: EQ | C4: 1.35 | D4: 1.35 | E4: 1.2 | F4: 1.25 | G4: 1.25 | H4: 1.35 | I4: 2793301 | J4: 3578364.95 | K4: 2020-04-08 | L4: 46535 | M4: INE748C01020
A5: 3MINDIA | B5: EQ | C5: 18950 | D5: 19170 | E5: 18155.05 | F5: 18318.2 | G5: 18270 | H5: 18755.7 | I5: 9926 | J5: 183605811.2 | K5: 2020-04-08 | L5: 4453 | M5: INE470A01017
A6: 3PLAND | B6: EQ | C6: 3.7 | D6: 3.85 | E6: 3.7 | F6: 3.85 | G6: 3.85 | H6: 3.7 | I6: 406 | J6: 1557.85 | K6: 2020-04-08 | L6: 9 | M6: INE105C01023
A7: 5PAISA | B7: EQ | C7: 119.95 | D7: 134 | E7: 115 | F7: 123.35 | G7: 120.5 | H7: 116.4 | I7: 6500 | J7: 793277.05 | K7: 2020-04-08 | L7: 265 | M7: INE618L01018
A8: 63MOONS | B8: EQ | C8: 50.7 | D8: 55.45 | E8: 50.7 | F8: 53.7 | G8: 53.55 | H8: 50.7 | I8: 72221 | J8: 3890984.7 | K8: 2020-04-08 | L8: 3078 | M8: INE111B01023
A9: A2ZINFRA | B9: EQ | C9: 3.15 | D9: 3.25 | E9: 3.1 | F9: 3.15 | G9: 3.15 | H9: 3.15 | I9: 116011 | J9: 367778.85 | K9: 2020-04-08 | L9: 227 | M9: INE619I01012
A10: AARTIDRUGS | B10: EQ | C10: 627 | D10: 669.3 | E10: 605 | F10: 631.6 | G10: 625 | H10: 607.85 | I10: 75970 | J10: 48223549.15 | K10: 2020-04-08 | L10: 5720 | M10: INE767A01016
A11: AARTIIND | B11: EQ | C11: 839.95 | D11: 909.8 | E11: 818 | F11: 854.9 | G11: 864 | H11: 830.7 | I11: 477805 | J11: 419092386.9 | K11: 2020-04-08 | L11: 50045 | M11: INE769A01020
A12: AARVEEDEN | B12: EQ | C12: 8.95 | D12: 9.25 | E12: 7.85 | F12: 8.35 | G12: 8.45 | H12: 8.1 | I12: 9251 | J12: 77100.1 | K12: 2020-04-08 | L12: 94 | M12: INE273D01019
A13: AAVAS | B13: EQ | C13: 1101 | D13: 1183 | E13: 1101 | F13: 1135.2 | G13: 1137 | H13: 1142.35 | I13: 24179 | J13: 28073100.85 | K13: 2020-04-08 | L13: 3631 | M13: INE216P01012
A14: ABAN | B14: EQ | C14: 15.7 | D14: 16.2 | E14: 15.7 | F14: 16.2 | G14: 16.2 | H14: 15.45 | I14: 37609 | J14: 608439.6 | K14: 2020-04-08 | L14: 288 | M14: INE421A01028
A15: ABB | B15: EQ | C15: 935 | D15: 965 | E15: 910 | F15: 930.7 | G15: 928 | H15: 931.35 | I15: 87757 | J15: 82358527.9 | K15: 2020-04-08 | L15: 4699 | M15: INE117A01022
A16: ABBOTINDIA | B16: EQ | C16: 16799.45 | D16: 18250 | E16: 16750 | F16: 17481.1 | G16: 17488 | H16: 16699.7 | I16: 57991 | J16: 1023745502 | K16: 2020-04-08 | L16: 21022 | M16: INE358A01014
A17: ABCAPITAL | B17: EQ | C17: 45 | D17: 47.9 | E17: 44.25 | F17: 45.6 | G17: 45.7 | H17: 45.1 | I17: 1253267 | J17: 57952493.6 | K17: 2020-04-08 | L17: 7317 | M17: INE674K01013
A18: ABFRL | B18: EQ | C18: 148 | D18: 152.8 | E18: 146.75 | F18: 149 | G18: 148 | H18: 149.85 | I18: 416099 | J18: 62371769.1 | K18: 2020-04-08 | L18: 10148 | M18: INE647O01011
A19: ABSLNN50ET | B19: EQ | C19: 244 | D19: 248 | E19: 210 | F19: 235 | G19: 235 | H19: 244 | I19: 56 | J19: 12779.4 | K19: 2020-04-08 | L19: 13 | M19: INF209KB1B87
A20: ACC | B20: EQ | C20: 1000 | D20: 1029.9 | E20: 941.25 | F20: 956.05 | G20: 958 | H20: 1009.95 | I20: 2153627 | J20: 2101320389 | K20: 2020-04-08 | L20: 79728 | M20: INE012A01025
A21: ACCELYA | B21: EQ | C21: 874.3 | D21: 886 | E21: 862 | F21: 880.45 | G21: 879.95 | H21: 874.3 | I21: 10865 | J21: 9557704.55 | K21: 2020-04-08 | L21: 923 | M21: INE793A01012
A22: ACE | B22: EQ | C22: 32.75 | D22: 35.2 | E22: 32.55 | F22: 33.25 | G22: 33.35 | H22: 32.95 | I22: 244708 | J22: 8296578.4 | K22: 2020-04-08 | L22: 2925 | M22: INE731H01025
A23: ADANIENT | B23: EQ | C23: 136.85 | D23: 147.15 | E23: 134.9 | F23: 138.1 | G23: 137.5 | H23: 138.15 | I23: 3237290 | J23: 456492273.1 | K23: 2020-04-08 | L23: 23696 | M23: INE423A01024
A24: ADANIGAS | B24: EQ | C24: 93.9 | D24: 96.35 | E24: 90.5 | F24: 90.8 | G24: 90.65 | H24: 94 | I24: 1888606 | J24: 176837924.4 | K24: 2020-04-08 | L24: 14517 | M24: INE399L01023
A25: ADANIGREEN | B25: EQ | C25: 166.85 | D25: 166.85 | E25: 162 | F25: 166.45 | G25: 166.85 | H25: 158.95 | I25: 702014 | J25: 116248737 | K25: 2020-04-08 | L25: 10187 | M25: INE364U01010
A26: ADANIPORTS | B26: EQ | C26: 248 | D26: 255.85 | E26: 242.75 | F26: 250.85 | G26: 249.7 | H26: 248.1 | I26: 6897883 | J26: 1724830525 | K26: 2020-04-08 | L26: 81499 | M26: INE742F01042
A27: ADANIPOWER | B27: EQ | C27: 28.65 | D27: 31.15 | E27: 27.5 | F27: 28.95 | G27: 28.85 | H27: 28.8 | I27: 12308064 | J27: 361987996.9 | K27: 2020-04-08 | L27: 23153 | M27: INE814H01011
A28: ADANITRANS | B28: EQ | C28: 196.65 | D28: 202 | E28: 190 | F28: 193.65 | G28: 193.5 | H28: 198.3 | I28: 306320 | J28: 59783940.3 | K28: 2020-04-08 | L28: 4236 | M28: INE931S01010
A29: ADFFOODS | B29: EQ | C29: 187.85 | D29: 192.25 | E29: 184 | F29: 187.7 | G29: 187.3 | H29: 183.1 | I29: 22107 | J29: 4185556.05 | K29: 2020-04-08 | L29: 773 | M29: INE982B01019
A30: ADHUNIKIND | B30: EQ | C30: 13.3 | D30: 13.3 | E30: 13.3 | F30: 13.3 | G30: 13.3 | H30: 12.7 | I30: 5518 | J30: 73389.4 | K30: 2020-04-08 | L30: 21 | M30: INE452L01012
A31: ADLABS | B31: EQ | C31: 2.75 | D31: 2.85 | E31: 2.75 | F31: 2.85 | G31: 2.85 | H31: 2.75 | I31: 19360 | J31: 54965.35 | K31: 2020-04-08 | L31: 72 | M31: INE172N01012
A32: ADORWELD | B32: EQ | C32: 195.7 | D32: 201.9 | E32: 193.95 | F32: 195.1 | G32: 194.45 | H32: 196.75 | I32: 1438 | J32: 283768.75 | K32: 2020-04-08 | L32: 94 | M32: INE045A01017
A33: ADROITINFO | B33: EQ | C33: 5.5 | D33: 5.7 | E33: 5.45 | F33: 5.7 | G33: 5.7 | H33: 5.7 | I33: 691 | J33: 3857 | K33: 2020-04-08 | L33: 25 | M33: INE737B01033
A34: ADSL | B34: EQ | C34: 13.05 | D34: 13.2 | E34: 12.4 | F34: 12.5 | G34: 12.45 | H34: 12.7 | I34: 16203 | J34: 205559.25 | K34: 2020-04-08 | L34: 143 | M34: INE102I01027
A35: ADVANIHOTR | B35: EQ | C35: 30.1 | D35: 33 | E35: 30.1 | F35: 31.8 | G35: 31.5 | H35: 30.65 | I35: 5340 | J35: 169948.95 | K35: 2020-04-08 | L35: 193 | M35: INE199C01026
A36: ADVENZYMES | B36: EQ | C36: 140.2 | D36: 146.55 | E36: 137.95 | F36: 139.2 | G36: 139.75 | H36: 136.55 | I36: 77441 | J36: 11046136.15 | K36: 2020-04-08 | L36: 1990 | M36: INE837H01020
A37: AEGISCHEM | B37: EQ | C37: 150 | D37: 158.5 | E37: 147.1 | F37: 156.35 | G37: 156.05 | H37: 144.1 | I37: 175470 | J37: 27041093.9 | K37: 2020-04-08 | L37: 4268 | M37: INE208C01025
A38: AFFLE | B38: BE | C38: 1050 | D38: 1053.45 | E38: 1030 | F38: 1053.45 | G38: 1053.45 | H38: 1003.3 | I38: 8191 | J38: 8619737.5 | K38: 2020-04-08 | L38: 470 | M38: INE00WC01019
A39: AGARIND | B39: EQ | C39: 49.8 | D39: 52.85 | E39: 49.05 | F39: 52.25 | G39: 52.5 | H39: 49.95 | I39: 7826 | J39: 404450.25 | K39: 2020-04-08 | L39: 207 | M39: INE204E01012
A40: AGCNET | B40: BE | C40: 224.35 | D40: 235.55 | E40: 213.25 | F40: 234.7 | G40: 235.55 | H40: 224.35 | I40: 2524 | J40: 573063 | K40: 2020-04-08 | L40: 70 | M40: INE676A01019
A41: AGRITECH | B41: EQ | C41: 23.95 | D41: 23.95 | E41: 23.95 | F41: 23.95 | G41: 23.95 | H41: 22.85 | I41: 504 | J41: 12070.8 | K41: 2020-04-08 | L41: 18 | M41: INE449G01018
A42: AGROPHOS | B42: EQ | C42: 5.7 | D42: 5.7 | E42: 5.2 | F42: 5.7 | G42: 5.7 | H42: 5.45 | I42: 40596 | J42: 227201.55 | K42: 2020-04-08 | L42: 340 | M42: INE740V01019
A43: AHLEAST | B43: EQ | C43: 133.15 | D43: 141.85 | E43: 128.15 | F43: 131.55 | G43: 128.35 | H43: 131.5 | I43: 3303 | J43: 439718.1 | K43: 2020-04-08 | L43: 350 | M43: INE926K01017
A44: AHLUCONT | B44: EQ | C44: 145.95 | D44: 148 | E44: 136 | F44: 146.3 | G44: 148 | H44: 144.1 | I44: 153910 | J44: 21077811.2 | K44: 2020-04-08 | L44: 995 | M44: INE758C01029
A45: AHLWEST | B45: EQ | C45: 289.9 | D45: 289.9 | E45: 270.95 | F45: 275 | G45: 275 | H45: 277 | I45: 238 | J45: 67030 | K45: 2020-04-08 | L45: 91 | M45: INE915K01010
A46: AIAENG | B46: EQ | C46: 1259.45 | D46: 1291 | E46: 1229 | F46: 1255.85 | G46: 1268 | H46: 1249.9 | I46: 73842 | J46: 92756824.05 | K46: 2020-04-08 | L46: 10503 | M46: INE212H01026
A47: AIONJSW | B47: EQ | C47: 10.9 | D47: 11.1 | E47: 10.2 | F47: 11.1 | G47: 11.1 | H47: 10.6 | I47: 90347 | J47: 996144.95 | K47: 2020-04-08 | L47: 180 | M47: INE743C01021
A48: AIRAN | B48: EQ | C48: 9.8 | D48: 10.3 | E48: 9.75 | F48: 9.8 | G48: 9.75 | H48: 9.85 | I48: 1826 | J48: 18127.1 | K48: 2020-04-08 | L48: 25 | M48: INE645W01026
A49: AJANTPHARM | B49: EQ | C49: 1325.75 | D49: 1450 | E49: 1325 | F49: 1367.5 | G49: 1363 | H49: 1340.2 | I49: 166582 | J49: 233126032.5 | K49: 2020-04-08 | L49: 8748 | M49: INE031B01049
A50: AJMERA | B50: EQ | C50: 64.95 | D50: 70.5 | E50: 64.6 | F50: 68.4 | G50: 69.9 | H50: 64.65 | I50: 31766 | J50: 2167947.5 | K50: 2020-04-08 | L50: 909 | M50: INE298G01027
A51: AKASH | B51: BE | C51: 90 | D51: 90 | E51: 90 | F51: 90 | G51: 90 | H51: 90.95 | I51: 500 | J51: 45000 | K51: 2020-04-08 | L51: 1 | M51: INE737W01013
A52: AKSHARCHEM | B52: EQ | C52: 174.75 | D52: 177.6 | E52: 165.3 | F52: 169.7 | G52: 167.15 | H52: 165.25 | I52: 3130 | J52: 531878.25 | K52: 2020-04-08 | L52: 293 | M52: INE542B01011
A53: AKSHOPTFBR | B53: EQ | C53: 3.6 | D53: 3.6 | E53: 3.6 | F53: 3.6 | G53: 3.6 | H53: 3.45 | I53: 27750 | J53: 99900 | K53: 2020-04-08 | L53: 45 | M53: INE523B01011
A54: AKZOINDIA | B54: EQ | C54: 2084.95 | D54: 2133 | E54: 2030 | F54: 2047.9 | G54: 2040 | H54: 2086.75 | I54: 12835 | J54: 26789836.95 | K54: 2020-04-08 | L54: 2242 | M54: INE133A01011
A55: ALANKIT | B55: EQ | C55: 12.9 | D55: 12.9 | E55: 12.9 | F55: 12.9 | G55: 12.9 | H55: 12.3 | I55: 14247 | J55: 183786.3 | K55: 2020-04-08 | L55: 75 | M55: INE914E01040
A56: ALBERTDAVD | B56: EQ | C56: 338.8 | D56: 364.75 | E56: 338.8 | F56: 353.15 | G56: 352 | H56: 341.15 | I56: 24334 | J56: 8579416.55 | K56: 2020-04-08 | L56: 1220 | M56: INE155C01010
A57: ALCHEM | B57: BE | C57: 1.4 | D57: 1.4 | E57: 1.4 | F57: 1.4 | G57: 1.4 | H57: 1.35 | I57: 8608 | J57: 12051.2 | K57: 2020-04-08 | L57: 18 | M57: INE964B01033
A58: ALEMBICLTD | B58: EQ | C58: 43.7 | D58: 48.05 | E58: 39.7 | F58: 45.05 | G58: 45.5 | H58: 42.15 | I58: 695128 | J58: 31779132.75 | K58: 2020-04-08 | L58: 6991 | M58: INE426A01027
A59: ALICON | B59: EQ | C59: 195.95 | D59: 196 | E59: 181.05 | F59: 184.75 | G59: 184 | H59: 189.25 | I59: 3909 | J59: 722322.5 | K59: 2020-04-08 | L59: 123 | M59: INE062D01024
A60: ALKALI | B60: EQ | C60: 29.95 | D60: 31.75 | E60: 29.65 | F60: 31.75 | G60: 31.75 | H60: 28.9 | I60: 9346 | J60: 289594.95 | K60: 2020-04-08 | L60: 349 | M60: INE773I01017
A61: ALKEM | B61: EQ | C61: 2360 | D61: 2736.5 | E61: 2326.2 | F61: 2671.15 | G61: 2639 | H61: 2324.05 | I61: 371259 | J61: 967330461.6 | K61: 2020-04-08 | L61: 44106 | M61: INE540L01014
A62: ALKYLAMINE | B62: EQ | C62: 1236.6 | D62: 1398 | E62: 1222.2 | F62: 1334.05 | G62: 1334 | H62: 1232.45 | I62: 41501 | J62: 55061848.25 | K62: 2020-04-08 | L62: 3832 | M62: INE150B01021
A63: ALLCARGO | B63: EQ | C63: 63.05 | D63: 65.85 | E63: 63 | F63: 65.7 | G63: 65.85 | H63: 59.9 | I63: 300794 | J63: 19569467.05 | K63: 2020-04-08 | L63: 3098 | M63: INE418H01029
A64: ALLSEC | B64: EQ | C64: 131.7 | D64: 131.9 | E64: 129.35 | F64: 131.9 | G64: 131.9 | H64: 125.65 | I64: 1335 | J64: 175836.2 | K64: 2020-04-08 | L64: 37 | M64: INE835G01018
A65: ALOKINDS | B65: EQ | C65: 4.7 | D65: 4.7 | E65: 4.7 | F65: 4.7 | G65: 4.7 | H65: 4.5 | I65: 1698707 | J65: 7983922.9 | K65: 2020-04-08 | L65: 397 | M65: INE270A01029
A66: ALPA | B66: EQ | C66: 18.55 | D66: 20.15 | E66: 17.8 | F66: 20.15 | G66: 20.15 | H66: 16.8 | I66: 131233 | J66: 2593665.9 | K66: 2020-04-08 | L66: 858 | M66: INE385I01010
A67: ALPHAGEO | B67: EQ | C67: 126 | D67: 137.5 | E67: 126 | F67: 134.45 | G67: 133.3 | H67: 129.7 | I67: 22258 | J67: 2986986.5 | K67: 2020-04-08 | L67: 783 | M67: INE137C01018
A68: ALPSINDUS | B68: EQ | C68: 0.65 | D68: 0.75 | E68: 0.65 | F68: 0.75 | G68: 0.7 | H68: 0.7 | I68: 25369 | J68: 18108.8 | K68: 2020-04-08 | L68: 33 | M68: INE093B01015
A69: AMARAJABAT | B69: EQ | C69: 501.1 | D69: 513.65 | E69: 488.45 | F69: 502.05 | G69: 504.9 | H69: 501.1 | I69: 755312 | J69: 378881689.9 | K69: 2020-04-08 | L69: 18162 | M69: INE885A01032
A70: AMBER | B70: EQ | C70: 1189.9 | D70: 1199 | E70: 1072 | F70: 1108.05 | G70: 1109.25 | H70: 1189.9 | I70: 93512 | J70: 105805912.2 | K70: 2020-04-08 | L70: 14252 | M70: INE371P01015
A71: AMBIKCO | B71: EQ | C71: 539.25 | D71: 559 | E71: 531.05 | F71: 545.2 | G71: 536.4 | H71: 537.25 | I71: 3988 | J71: 2168349.4 | K71: 2020-04-08 | L71: 406 | M71: INE540G01014
A72: AMBUJACEM | B72: EQ | C72: 158.5 | D72: 159.5 | E72: 148.2 | F72: 149.7 | G72: 149.55 | H72: 159 | I72: 10421438 | J72: 1597618498 | K72: 2020-04-08 | L72: 84074 | M72: INE079A01024
A73: AMDIND | B73: EQ | C73: 9.9 | D73: 10.5 | E73: 9.5 | F73: 9.8 | G73: 9.55 | H73: 10 | I73: 17757 | J73: 177659.15 | K73: 2020-04-08 | L73: 707 | M73: INE005I01014
A74: AMJLAND | B74: EQ | C74: 14.3 | D74: 14.95 | E74: 13.7 | F74: 14 | G74: 14 | H74: 14.25 | I74: 12523 | J74: 176065.3 | K74: 2020-04-08 | L74: 106 | M74: INE606A01024
A75: AMRUTANJAN | B75: EQ | C75: 326 | D75: 352 | E75: 320.1 | F75: 345.45 | G75: 344.3 | H75: 324 | I75: 278725 | J75: 95586275.35 | K75: 2020-04-08 | L75: 9075 | M75: INE098F01031
A76: ANANTRAJ | B76: EQ | C76: 19.55 | D76: 20.15 | E76: 18.6 | F76: 18.75 | G76: 18.8 | H76: 19.55 | I76: 184694 | J76: 3509270.8 | K76: 2020-04-08 | L76: 1012 | M76: INE242C01024
A77: ANDHRACEMT | B77: EQ | C77: 1.8 | D77: 1.9 | E77: 1.7 | F77: 1.85 | G77: 1.9 | H77: 1.75 | I77: 105618 | J77: 196578.05 | K77: 2020-04-08 | L77: 227 | M77: INE666E01012
A78: ANDHRAPAP | B78: EQ | C78: 148.55 | D78: 148.55 | E78: 147 | F78: 148.55 | G78: 148.55 | H78: 141.5 | I78: 2622 | J78: 389210.05 | K78: 2020-04-08 | L78: 70 | M78: INE435A01028
A79: ANDHRSUGAR | B79: EQ | C79: 206.95 | D79: 212 | E79: 195 | F79: 206.05 | G79: 205.85 | H79: 203.55 | I79: 35494 | J79: 7286675.25 | K79: 2020-04-08 | L79: 1328 | M79: INE715B01013
A80: ANIKINDS | B80: EQ | C80: 7.25 | D80: 7.25 | E80: 6.65 | F80: 6.8 | G80: 6.8 | H80: 6.95 | I80: 4994 | J80: 34701.65 | K80: 2020-04-08 | L80: 35 | M80: INE087B01017
A81: ANKITMETAL | B81: EQ | C81: 0.4 | D81: 0.45 | E81: 0.35 | F81: 0.45 | G81: 0.45 | H81: 0.4 | I81: 64810 | J81: 27213.05 | K81: 2020-04-08 | L81: 29 | M81: INE106I01010
A82: ANSALAPI | B82: EQ | C82: 3.65 | D82: 3.8 | E82: 3.65 | F82: 3.8 | G82: 3.8 | H82: 3.65 | I82: 3974 | J82: 15023.75 | K82: 2020-04-08 | L82: 28 | M82: INE436A01026
A83: ANSALHSG | B83: EQ | C83: 3 | D83: 3 | E83: 2.8 | F83: 2.9 | G83: 2.9 | H83: 2.9 | I83: 31510 | J83: 91846.6 | K83: 2020-04-08 | L83: 64 | M83: INE880B01015
A84: ANUP | B84: EQ | C84: 304.75 | D84: 323.7 | E84: 303.1 | F84: 313.2 | G84: 313.05 | H84: 312.75 | I84: 11786 | J84: 3732090.6 | K84: 2020-04-08 | L84: 460 | M84: INE294Z01018
A85: APARINDS | B85: EQ | C85: 296.95 | D85: 300.35 | E85: 290.6 | F85: 295.85 | G85: 295.5 | H85: 296.05 | I85: 6051 | J85: 1806443.45 | K85: 2020-04-08 | L85: 427 | M85: INE372A01015
A86: APCL | B86: EQ | C86: 102.4 | D86: 102.4 | E86: 95.2 | F86: 97.35 | G86: 97 | H86: 98.5 | I86: 3739 | J86: 362867.6 | K86: 2020-04-08 | L86: 79 | M86: INE071F01012
A87: APCOTEXIND | B87: EQ | C87: 87.55 | D87: 94.85 | E87: 86 | F87: 87.5 | G87: 86.1 | H87: 87.45 | I87: 13115 | J87: 1175575.25 | K87: 2020-04-08 | L87: 323 | M87: INE116A01032
A88: APEX | B88: EQ | C88: 190 | D88: 201.65 | E88: 185.1 | F88: 201.65 | G88: 201.65 | H88: 183.35 | I88: 141806 | J88: 27768799.35 | K88: 2020-04-08 | L88: 3293 | M88: INE346W01013
A89: APLAPOLLO | B89: EQ | C89: 1245 | D89: 1274 | E89: 1220 | F89: 1259.5 | G89: 1258 | H89: 1231.75 | I89: 21152 | J89: 26442272.1 | K89: 2020-04-08 | L89: 3032 | M89: INE702C01019
A90: APLLTD | B90: EQ | C90: 630 | D90: 702.65 | E90: 615.5 | F90: 640.85 | G90: 626 | H90: 610.2 | I90: 540272 | J90: 353935242.1 | K90: 2020-04-08 | L90: 30323 | M90: INE901L01018
A91: APOLLO | B91: EQ | C91: 45.5 | D91: 56 | E91: 45.25 | F91: 54.3 | G91: 53.55 | H91: 46.7 | I91: 68951 | J91: 3631629.4 | K91: 2020-04-08 | L91: 1694 | M91: INE713T01010
A92: APOLLOHOSP | B92: EQ | C92: 1225.9 | D92: 1338.4 | E92: 1211 | F92: 1263.95 | G92: 1261 | H92: 1225.95 | I92: 2070270 | J92: 2654141027 | K92: 2020-04-08 | L92: 156926 | M92: INE437A01024
A93: APOLLOPIPE | B93: EQ | C93: 279.5 | D93: 304 | E93: 262.95 | F93: 281.3 | G93: 281 | H93: 280.1 | I93: 12940 | J93: 3607793.25 | K93: 2020-04-08 | L93: 543 | M93: INE126J01016
A94: APOLLOTYRE | B94: EQ | C94: 83.5 | D94: 87.15 | E94: 82 | F94: 83.4 | G94: 83.15 | H94: 83.5 | I94: 2950752 | J94: 248872037.1 | K94: 2020-04-08 | L94: 19408 | M94: INE438A01022
A95: APOLSINHOT | B95: EQ | C95: 460.35 | D95: 460.4 | E95: 421.1 | F95: 439.8 | G95: 436 | H95: 438.6 | I95: 694 | J95: 306874.65 | K95: 2020-04-08 | L95: 84 | M95: INE451F01024
A96: APTECHT | B96: EQ | C96: 85.3 | D96: 87.7 | E96: 83.55 | F96: 84.6 | G96: 84.3 | H96: 85.3 | I96: 106721 | J96: 9133416.7 | K96: 2020-04-08 | L96: 2385 | M96: INE266F01018
A97: ARCHIDPLY | B97: EQ | C97: 16.55 | D97: 17 | E97: 16.45 | F97: 16.85 | G97: 16.95 | H97: 16.75 | I97: 4083 | J97: 68300.2 | K97: 2020-04-08 | L97: 63 | M97: INE877I01016
A98: ARCHIES | B98: EQ | C98: 9.4 | D98: 9.5 | E98: 9 | F98: 9.05 | G98: 9.15 | H98: 9.45 | I98: 24343 | J98: 224667.6 | K98: 2020-04-08 | L98: 150 | M98: INE731A01020
A99: ARCOTECH | B99: EQ | C99: 0.9 | D99: 0.95 | E99: 0.85 | F99: 0.9 | G99: 0.9 | H99: 0.9 | I99: 51482 | J99: 47500.05 | K99: 2020-04-08 | L99: 77 | M99: INE574I01035
A100: ARENTERP | B100: EQ | C100: 12.65 | D100: 12.65 | E100: 12.05 | F100: 12.05 | G100: 12.05 | H100: 12.65 | I100: 63 | J100: 765.15 | K100: 2020-04-08 | L100: 4 | M100: INE610C01014
A101: ARIES | B101: EQ | C101: 44.4 | D101: 47.6 | E101: 42.65 | F101: 43.6 | G101: 44 | H101: 44.4 | I101: 50875 | J101: 2250478.25 | K101: 2020-04-08 | L101: 1080 | M101: INE298I01015
A102: ARIHANT | B102: EQ | C102: 12.05 | D102: 12.55 | E102: 11.6 | F102: 12.15 | G102: 12.5 | H102: 12.05 | I102: 964 | J102: 11418.15 | K102: 2020-04-08 | L102: 27 | M102: INE413D01011
A103: ARIHANTSUP | B103: EQ | C103: 21.4 | D103: 21.45 | E103: 19.45 | F103: 19.5 | G103: 21 | H103: 20.45 | I103: 4362 | J103: 85414.05 | K103: 2020-04-08 | L103: 80 | M103: INE643K01018
A104: ARMANFIN | B104: EQ | C104: 340 | D104: 373.2 | E104: 337.7 | F104: 373.05 | G104: 373.2 | H104: 355.45 | I104: 50867 | J104: 18465582.65 | K104: 2020-04-08 | L104: 911 | M104: INE109C01017
A105: AROGRANITE | B105: EQ | C105: 21.95 | D105: 24.5 | E105: 20.85 | F105: 24.2 | G105: 24.5 | H105: 22.35 | I105: 26052 | J105: 602565.3 | K105: 2020-04-08 | L105: 183 | M105: INE210C01013
A106: ARROWGREEN | B106: BE | C106: 33.55 | D106: 35 | E106: 33.45 | F106: 33.45 | G106: 33.45 | H106: 33.85 | I106: 5735 | J106: 195198.5 | K106: 2020-04-08 | L106: 32 | M106: INE570D01018
A107: ARSHIYA | B107: EQ | C107: 7.1 | D107: 7.6 | E107: 7.1 | F107: 7.6 | G107: 7.6 | H107: 7.25 | I107: 23178 | J107: 175819.45 | K107: 2020-04-08 | L107: 63 | M107: INE968D01022
A108: ARSSINFRA | B108: EQ | C108: 11.25 | D108: 12.3 | E108: 10.9 | F108: 11.8 | G108: 11.85 | H108: 11.15 | I108: 16388 | J108: 189874.85 | K108: 2020-04-08 | L108: 107 | M108: INE267I01010
A109: ARTEMISMED | B109: EQ | C109: 140 | D109: 147 | E109: 136.3 | F109: 138 | G109: 137 | H109: 139.15 | I109: 1729 | J109: 245138.4 | K109: 2020-04-08 | L109: 31 | M109: INE025R01013
A110: ARVIND | B110: EQ | C110: 23.5 | D110: 24.4 | E110: 22.45 | F110: 23.75 | G110: 23.75 | H110: 22.2 | I110: 2137547 | J110: 50521243.45 | K110: 2020-04-08 | L110: 7057 | M110: INE034A01011
A111: ARVINDFASN | B111: EQ | C111: 139.8 | D111: 141.9 | E111: 132.2 | F111: 133.8 | G111: 134.75 | H111: 139.85 | I111: 46445 | J111: 6387304.5 | K111: 2020-04-08 | L111: 1243 | M111: INE955V01021
A112: ARVSMART | B112: EQ | C112: 64.05 | D112: 67 | E112: 64 | F112: 65.4 | G112: 65.5 | H112: 65 | I112: 10000 | J112: 656036.65 | K112: 2020-04-08 | L112: 320 | M112: INE034S01021
A113: ASAHIINDIA | B113: EQ | C113: 152 | D113: 158 | E113: 147.05 | F113: 155.5 | G113: 152.35 | H113: 153.2 | I113: 5605 | J113: 858978.65 | K113: 2020-04-08 | L113: 218 | M113: INE439A01020
A114: ASAHISONG | B114: EQ | C114: 80.8 | D114: 88.95 | E114: 80.05 | F114: 85.25 | G114: 86 | H114: 80.9 | I114: 8055 | J114: 692533.2 | K114: 2020-04-08 | L114: 314 | M114: INE228I01012
A115: ASAL | B115: EQ | C115: 14.8 | D115: 14.9 | E115: 14.5 | F115: 14.5 | G115: 14.5 | H115: 14.25 | I115: 8037 | J115: 118819.3 | K115: 2020-04-08 | L115: 36 | M115: INE900C01027
A116: ASALCBR | B116: EQ | C116: 164.9 | D116: 175 | E116: 158 | F116: 165.7 | G116: 165 | H116: 162.9 | I116: 31033 | J116: 5116102.05 | K116: 2020-04-08 | L116: 970 | M116: INE073G01016
A117: ASHAPURMIN | B117: EQ | C117: 22.1 | D117: 22.1 | E117: 22.05 | F117: 22.1 | G117: 22.1 | H117: 21.05 | I117: 8770 | J117: 193792 | K117: 2020-04-08 | L117: 43 | M117: INE348A01023
A118: ASHIANA | B118: EQ | C118: 52.9 | D118: 52.9 | E118: 49.1 | F118: 49.95 | G118: 50 | H118: 50 | I118: 69042 | J118: 3480534.3 | K118: 2020-04-08 | L118: 621 | M118: INE365D01021
A119: ASHIMASYN | B119: EQ | C119: 3.9 | D119: 3.9 | E119: 3.9 | F119: 3.9 | G119: 3.9 | H119: 3.55 | I119: 28914 | J119: 112764.6 | K119: 2020-04-08 | L119: 46 | M119: INE440A01010
A120: ASHOKA | B120: EQ | C120: 38.35 | D120: 42.7 | E120: 37.8 | F120: 42.7 | G120: 42.7 | H120: 38.85 | I120: 1577514 | J120: 65134101.3 | K120: 2020-04-08 | L120: 8475 | M120: INE442H01029
A121: ASHOKLEY | B121: EQ | C121: 39.85 | D121: 47.8 | E121: 38.75 | F121: 43.85 | G121: 43.6 | H121: 39.85 | I121: 76817768 | J121: 3355417806 | K121: 2020-04-08 | L121: 169889 | M121: INE208A01029
A122: ASIANHOTNR | B122: EQ | C122: 70 | D122: 71.8 | E122: 66 | F122: 71.55 | G122: 71.5 | H122: 65.4 | I122: 4982 | J122: 349215.55 | K122: 2020-04-08 | L122: 198 | M122: INE363A01022
A123: ASIANPAINT | B123: EQ | C123: 1623.8 | D123: 1687.8 | E123: 1600 | F123: 1608.95 | G123: 1608 | H123: 1623.8 | I123: 2382216 | J123: 3911658954 | K123: 2020-04-08 | L123: 101146 | M123: INE021A01026
A124: ASIANTILES | B124: EQ | C124: 156 | D124: 162.9 | E124: 155 | F124: 157.6 | G124: 156.5 | H124: 157.65 | I124: 19917 | J124: 3151924.4 | K124: 2020-04-08 | L124: 431 | M124: INE022I01019
A125: ASPINWALL | B125: EQ | C125: 93 | D125: 98.7 | E125: 83.55 | F125: 93 | G125: 93 | H125: 90 | I125: 413 | J125: 38837.15 | K125: 2020-04-08 | L125: 20 | M125: INE991I01015
A126: ASTEC | B126: EQ | C126: 450.65 | D126: 465.05 | E126: 440 | F126: 460.05 | G126: 460.3 | H126: 443.9 | I126: 5283 | J126: 2392645.5 | K126: 2020-04-08 | L126: 494 | M126: INE563J01010
A127: ASTERDM | B127: EQ | C127: 96 | D127: 103.5 | E127: 93.8 | F127: 99.25 | G127: 99 | H127: 94.55 | I127: 996205 | J127: 98978623.7 | K127: 2020-04-08 | L127: 4570 | M127: INE914M01019
A128: ASTRAL | B128: EQ | C128: 962 | D128: 986 | E128: 952 | F128: 955.45 | G128: 954 | H128: 973.85 | I128: 59212 | J128: 57381672.65 | K128: 2020-04-08 | L128: 7623 | M128: INE006I01046
A129: ASTRAMICRO | B129: EQ | C129: 56.9 | D129: 62.55 | E129: 55.85 | F129: 61.7 | G129: 62.55 | H129: 56.9 | I129: 253097 | J129: 15146656.55 | K129: 2020-04-08 | L129: 1961 | M129: INE386C01029
A130: ASTRAZEN | B130: EQ | C130: 2700 | D130: 2830 | E130: 2544 | F130: 2561.6 | G130: 2549 | H130: 2693.65 | I130: 38510 | J130: 104113109 | K130: 2020-04-08 | L130: 6647 | M130: INE203A01020
A131: ASTRON | B131: EQ | C131: 26.15 | D131: 29.9 | E131: 25.3 | F131: 27.5 | G131: 27.8 | H131: 27.65 | I131: 61618 | J131: 1693449.45 | K131: 2020-04-08 | L131: 1743 | M131: INE646X01014
A132: ATFL | B132: EQ | C132: 479.65 | D132: 499 | E132: 475 | F132: 481.55 | G132: 475 | H132: 479.65 | I132: 6104 | J132: 2975754.9 | K132: 2020-04-08 | L132: 411 | M132: INE209A01019
A133: ATLANTA | B133: EQ | C133: 3 | D133: 3.15 | E133: 3 | F133: 3.15 | G133: 3.15 | H133: 3 | I133: 8624 | J133: 26936.35 | K133: 2020-04-08 | L133: 28 | M133: INE285H01022
A134: ATLASCYCLE | B134: BE | C134: 30 | D134: 31.5 | E134: 29.5 | F134: 30.7 | G134: 30.7 | H134: 30 | I134: 2000 | J134: 60118.65 | K134: 2020-04-08 | L134: 42 | M134: INE446A01025
A135: ATNINTER | B135: BE | C135: 0.1 | D135: 0.1 | E135: 0.1 | F135: 0.1 | G135: 0.1 | H135: 0.1 | I135: 12716 | J135: 1271.6 | K135: 2020-04-08 | L135: 5 | M135: INE803A01027
A136: ATUL | B136: EQ | C136: 3930 | D136: 4005 | E136: 3908.35 | F136: 3951.85 | G136: 3954.95 | H136: 3927.1 | I136: 76768 | J136: 304824820.4 | K136: 2020-04-08 | L136: 11635 | M136: INE100A01010
A137: ATULAUTO | B137: EQ | C137: 151.35 | D137: 154.05 | E137: 146.8 | F137: 153.45 | G137: 153.95 | H137: 146.75 | I137: 13699 | J137: 2093863.3 | K137: 2020-04-08 | L137: 810 | M137: INE951D01028
A138: AUBANK | B138: EQ | C138: 461.2 | D138: 490 | E138: 457 | F138: 480.3 | G138: 473 | H138: 478.4 | I138: 1791057 | J138: 837589012.6 | K138: 2020-04-08 | L138: 59410 | M138: INE949L01017
A139: AURIONPRO | B139: EQ | C139: 41.75 | D139: 43.7 | E139: 40 | F139: 42.9 | G139: 42.9 | H139: 40.95 | I139: 8828 | J139: 376649.05 | K139: 2020-04-08 | L139: 213 | M139: INE132H01018
A140: AUROPHARMA | B140: EQ | C140: 432.5 | D140: 476.3 | E140: 426.3 | F140: 438.15 | G140: 438.9 | H140: 445.7 | I140: 13186213 | J140: 5925576015 | K140: 2020-04-08 | L140: 205238 | M140: INE406A01037
A141: AUSOMENT | B141: EQ | C141: 26.1 | D141: 26.1 | E141: 26.1 | F141: 26.1 | G141: 26.1 | H141: 25 | I141: 100 | J141: 2610 | K141: 2020-04-08 | L141: 1 | M141: INE218C01016
A142: AUTOAXLES | B142: EQ | C142: 413 | D142: 423.5 | E142: 398.05 | F142: 413.45 | G142: 416 | H142: 399.3 | I142: 5448 | J142: 2244823.45 | K142: 2020-04-08 | L142: 638 | M142: INE449A01011
A143: AUTOIND | B143: EQ | C143: 11.3 | D143: 11.35 | E143: 11.1 | F143: 11.35 | G143: 11.35 | H143: 10.85 | I143: 9358 | J143: 105383.05 | K143: 2020-04-08 | L143: 68 | M143: INE718H01014
A144: AUTOLITIND | B144: EQ | C144: 13.2 | D144: 14.4 | E144: 13.2 | F144: 13.8 | G144: 13.9 | H144: 13.75 | I144: 4699 | J144: 65525.8 | K144: 2020-04-08 | L144: 68 | M144: INE448A01013
A145: AVADHSUGAR | B145: EQ | C145: 143.55 | D145: 143.55 | E145: 143.55 | F145: 143.55 | G145: 143.55 | H145: 136.75 | I145: 13174 | J145: 1891127.7 | K145: 2020-04-08 | L145: 157 | M145: INE349W01017
A146: AVANTIFEED | B146: EQ | C146: 311 | D146: 341.55 | E146: 310.5 | F146: 341.35 | G146: 341.55 | H146: 310.5 | I146: 748404 | J146: 246839085.1 | K146: 2020-04-08 | L146: 23272 | M146: INE871C01038
A147: AVTNPL | B147: EQ | C147: 25.45 | D147: 27.8 | E147: 24.25 | F147: 27.25 | G147: 27 | H147: 25.05 | I147: 213540 | J147: 5643644.4 | K147: 2020-04-08 | L147: 1601 | M147: INE488D01021
A148: AXISBANK | B148: EQ | C148: 383.75 | D148: 427.7 | E148: 373.5 | F148: 391.35 | G148: 391.4 | H148: 388.85 | I148: 64930772 | J148: 2.575974593e+10 | K148: 2020-04-08 | L148: 769506 | M148: INE238A01034
A149: AXISCADES | B149: EQ | C149: 30.9 | D149: 31.5 | E149: 28.65 | F149: 31.4 | G149: 31.5 | H149: 30 | I149: 39670 | J149: 1232336.75 | K149: 2020-04-08 | L149: 621 | M149: INE555B01013
A150: AXISGOLD | B150: EQ | C150: 3969.9 | D150: 3989 | E150: 3925 | F150: 3973.3 | G150: 3983 | H150: 3919.55 | I150: 701 | J150: 2769851.6 | K150: 2020-04-08 | L150: 206 | M150: INF846K01347
A151: AXISNIFTY | B151: EQ | C151: 1000.01 | D151: 1000.01 | E151: 1000.01 | F151: 1000.01 | G151: 1000.01 | H151: 1007 | I151: 2 | J151: 2000.02 | K151: 2020-04-08 | L151: 1 | M151: INF846K01ZL0
A152: AYMSYNTEX | B152: EQ | C152: 15.5 | D152: 16.8 | E152: 15.5 | F152: 16.5 | G152: 16.5 | H152: 16.1 | I152: 2637 | J152: 43548.55 | K152: 2020-04-08 | L152: 26 | M152: INE193B01039
A153: BAFNAPH | B153: EQ | C153: 16.05 | D153: 16.05 | E153: 16.05 | F153: 16.05 | G153: 16.05 | H153: 15.3 | I153: 272 | J153: 4365.6 | K153: 2020-04-08 | L153: 8 | M153: INE878I01022
A154: BAGFILMS | B154: BE | C154: 1.75 | D154: 1.8 | E154: 1.75 | F154: 1.8 | G154: 1.8 | H154: 1.75 | I154: 3861 | J154: 6912.3 | K154: 2020-04-08 | L154: 20 | M154: INE116D01028
A155: BAJAJ-AUTO | B155: EQ | C155: 2180 | D155: 2383.45 | E155: 2168.55 | F155: 2241.7 | G155: 2260 | H155: 2280.05 | I155: 840875 | J155: 1933266167 | K155: 2020-04-08 | L155: 59866 | M155: INE917I01010
A156: BAJAJCON | B156: EQ | C156: 136 | D156: 148.65 | E156: 135.1 | F156: 137.95 | G156: 138 | H156: 138.15 | I156: 1031633 | J156: 145711259.1 | K156: 2020-04-08 | L156: 26102 | M156: INE933K01021
A157: BAJAJELEC | B157: EQ | C157: 277.3 | D157: 294.5 | E157: 277.3 | F157: 287.8 | G157: 289 | H157: 277.3 | I157: 58251 | J157: 16797537.55 | K157: 2020-04-08 | L157: 3821 | M157: INE193E01025
A158: BAJAJFINSV | B158: EQ | C158: 4575 | D158: 4950 | E158: 4537.8 | F158: 4608.5 | G158: 4604 | H158: 4724.9 | I158: 1113057 | J158: 5259493342 | K158: 2020-04-08 | L158: 158158 | M158: INE918I01018
A159: BAJAJHIND | B159: EQ | C159: 3.05 | D159: 3.05 | E159: 3.05 | F159: 3.05 | G159: 3.05 | H159: 2.95 | I159: 80900 | J159: 246745 | K159: 2020-04-08 | L159: 110 | M159: INE306A01021
A160: BAJAJHLDNG | B160: EQ | C160: 2027.95 | D160: 2073.85 | E160: 1925 | F160: 2024.75 | G160: 2025 | H160: 1978.9 | I160: 25453 | J160: 51363834.45 | K160: 2020-04-08 | L160: 6198 | M160: INE118A01012
A161: BAJFINANCE | B161: EQ | C161: 2184 | D161: 2374 | E161: 2144.15 | F161: 2332.9 | G161: 2329 | H161: 2253.35 | I161: 9109346 | J161: 2.088826331e+10 | K161: 2020-04-08 | L161: 516967 | M161: INE296A01024
A162: BALAJITELE | B162: EQ | C162: 43 | D162: 45 | E162: 40.8 | F162: 41.9 | G162: 42.15 | H162: 43.75 | I162: 194912 | J162: 8414452.4 | K162: 2020-04-08 | L162: 1677 | M162: INE794B01026
A163: BALAMINES | B163: EQ | C163: 277 | D163: 296 | E163: 260.4 | F163: 283.65 | G163: 284.45 | H163: 271.2 | I163: 70594 | J163: 20058887.5 | K163: 2020-04-08 | L163: 2337 | M163: INE050E01027
A164: BALAXI | B164: BE | C164: 82.7 | D164: 82.7 | E164: 75.05 | F164: 79.9 | G164: 79.9 | H164: 79 | I164: 1047 | J164: 78761.9 | K164: 2020-04-08 | L164: 24 | M164: INE618N01014
A165: BALKRISHNA | B165: EQ | C165: 8.6 | D165: 8.8 | E165: 8.35 | F165: 8.8 | G165: 8.8 | H165: 8.4 | I165: 7860 | J165: 67624.35 | K165: 2020-04-08 | L165: 49 | M165: INE875R01011
A166: BALKRISIND | B166: EQ | C166: 822 | D166: 862 | E166: 815 | F166: 821.35 | G166: 818.3 | H166: 823.55 | I166: 444079 | J166: 371870250.3 | K166: 2020-04-08 | L166: 24462 | M166: INE787D01026
A167: BALLARPUR | B167: EQ | C167: 0.4 | D167: 0.4 | E167: 0.3 | F167: 0.35 | G167: 0.35 | H167: 0.35 | I167: 9769871 | J167: 3419941.15 | K167: 2020-04-08 | L167: 514 | M167: INE294A01037
A168: BALMLAWRIE | B168: EQ | C168: 84 | D168: 87.9 | E168: 81 | F168: 84.75 | G168: 85.65 | H168: 85.5 | I168: 202053 | J168: 17357055.25 | K168: 2020-04-08 | L168: 3105 | M168: INE164A01016
A169: BALPHARMA | B169: EQ | C169: 38.9 | D169: 41.7 | E169: 38.9 | F169: 41.7 | G169: 41.7 | H169: 37.95 | I169: 40933 | J169: 1688199.5 | K169: 2020-04-08 | L169: 518 | M169: INE083D01012
A170: BALRAMCHIN | B170: EQ | C170: 123.85 | D170: 126.4 | E170: 123 | F170: 126.4 | G170: 126.4 | H170: 120.4 | I170: 642515 | J170: 80884980.2 | K170: 2020-04-08 | L170: 7125 | M170: INE119A01028
A171: BANARBEADS | B171: EQ | C171: 30.25 | D171: 32.5 | E171: 29.6 | F171: 29.75 | G171: 29.75 | H171: 31.5 | I171: 160 | J171: 4873.85 | K171: 2020-04-08 | L171: 26 | M171: INE655B01011
A172: BANARISUG | B172: EQ | C172: 900 | D172: 925 | E172: 880 | F172: 886.1 | G172: 880 | H172: 893.1 | I172: 410 | J172: 368979.1 | K172: 2020-04-08 | L172: 94 | M172: INE459A01010
A173: BANCOINDIA | B173: EQ | C173: 65.45 | D173: 67.5 | E173: 64.1 | F173: 65.95 | G173: 66 | H173: 65.45 | I173: 40062 | J173: 2654130.6 | K173: 2020-04-08 | L173: 1013 | M173: INE213C01025
A174: BANDHANBNK | B174: EQ | C174: 167.95 | D174: 209.05 | E174: 167.5 | F174: 193.75 | G174: 195.25 | H174: 167.25 | I174: 30692919 | J174: 5833285762 | K174: 2020-04-08 | L174: 332020 | M174: INE545U01014
A175: BANG | B175: EQ | C175: 12.05 | D175: 13.1 | E175: 11.9 | F175: 13.1 | G175: 13.1 | H175: 12.5 | I175: 1590 | J175: 20489 | K175: 2020-04-08 | L175: 31 | M175: INE863I01016
A176: BANKBARODA | B176: EQ | C176: 48 | D176: 51.5 | E176: 47.3 | F176: 48.35 | G176: 48.45 | H176: 48.15 | I176: 27159204 | J176: 1340103716 | K176: 2020-04-08 | L176: 77070 | M176: INE028A01039
A177: BANKBEES | B177: EQ | C177: 190 | D177: 205.4 | E177: 186.06 | F177: 191.28 | G177: 191.4 | H177: 192.12 | I177: 676832 | J177: 131368353.2 | K177: 2020-04-08 | L177: 10023 | M177: INF204KB15I9
A178: BANKINDIA | B178: EQ | C178: 32.7 | D178: 34.75 | E178: 32.5 | F178: 33.35 | G178: 33.25 | H178: 32.95 | I178: 1236627 | J178: 41574499.75 | K178: 2020-04-08 | L178: 6257 | M178: INE084A01016
A179: BANSWRAS | B179: EQ | C179: 77.4 | D179: 77.4 | E179: 70.2 | F179: 71.15 | G179: 70.2 | H179: 73.75 | I179: 22922 | J179: 1667255.55 | K179: 2020-04-08 | L179: 137 | M179: INE629D01012
A180: BASF | B180: EQ | C180: 1154 | D180: 1154 | E180: 1105 | F180: 1119.95 | G180: 1120.5 | H180: 1138.25 | I180: 26139 | J180: 29425244.35 | K180: 2020-04-08 | L180: 2640 | M180: INE373A01013
A181: BASML | B181: EQ | C181: 74.05 | D181: 84 | E181: 74.05 | F181: 80 | G181: 80 | H181: 78.7 | I181: 1648 | J181: 135366.45 | K181: 2020-04-08 | L181: 154 | M181: INE186H01014
A182: BATAINDIA | B182: EQ | C182: 1246.5 | D182: 1339 | E182: 1228 | F182: 1240.05 | G182: 1238.95 | H182: 1246.4 | I182: 1346088 | J182: 1726485633 | K182: 2020-04-08 | L182: 66274 | M182: INE176A01028
A183: BAYERCROP | B183: EQ | C183: 3500 | D183: 3946.6 | E183: 3499.3 | F183: 3818.15 | G183: 3772.15 | H183: 3510 | I183: 32833 | J183: 125437264 | K183: 2020-04-08 | L183: 6737 | M183: INE462A01022
A184: BBL | B184: EQ | C184: 590 | D184: 621.25 | E184: 590 | F184: 613.05 | G184: 621.25 | H184: 589.55 | I184: 9335 | J184: 5684085.45 | K184: 2020-04-08 | L184: 804 | M184: INE464A01028
A185: BBTC | B185: EQ | C185: 810 | D185: 854.3 | E185: 774 | F185: 784.2 | G185: 787.95 | H185: 788.4 | I185: 76612 | J185: 62014517.65 | K185: 2020-04-08 | L185: 5281 | M185: INE050A01025
A186: BCG | B186: EQ | C186: 3.6 | D186: 3.65 | E186: 3.55 | F186: 3.65 | G186: 3.65 | H186: 3.5 | I186: 305718 | J186: 1113234.95 | K186: 2020-04-08 | L186: 149 | M186: INE425B01027
A187: BCP | B187: EQ | C187: 10.75 | D187: 10.75 | E187: 10.5 | F187: 10.75 | G187: 10.75 | H187: 10.25 | I187: 8192 | J187: 87934.6 | K187: 2020-04-08 | L187: 28 | M187: INE905P01028
A188: BDL | B188: EQ | C188: 191 | D188: 229 | E188: 188.2 | F188: 218.2 | G188: 216.4 | H188: 191.4 | I188: 448405 | J188: 97968192.25 | K188: 2020-04-08 | L188: 13672 | M188: INE171Z01018
A189: BEARDSELL | B189: EQ | C189: 6.7 | D189: 7.3 | E189: 6.7 | F189: 7.3 | G189: 7.3 | H189: 7.05 | I189: 1250 | J189: 8417 | K189: 2020-04-08 | L189: 4 | M189: INE520H01022
A190: BEDMUTHA | B190: EQ | C190: 12.8 | D190: 13.05 | E190: 12.45 | F190: 12.45 | G190: 12.45 | H190: 13.1 | I190: 19584 | J190: 245429.15 | K190: 2020-04-08 | L190: 32 | M190: INE844K01012
A191: BEL | B191: EQ | C191: 69 | D191: 71.3 | E191: 65.1 | F191: 66.4 | G191: 66.5 | H191: 69 | I191: 16699885 | J191: 1138705070 | K191: 2020-04-08 | L191: 69587 | M191: INE263A01024
A192: BEML | B192: EQ | C192: 492 | D192: 523.5 | E192: 492 | F192: 503.6 | G192: 503 | H192: 475.95 | I192: 890527 | J192: 458689246.6 | K192: 2020-04-08 | L192: 23670 | M192: INE258A01016
A193: BEPL | B193: EQ | C193: 31 | D193: 32.75 | E193: 30.3 | F193: 31.25 | G193: 31.6 | H193: 30.25 | I193: 333595 | J193: 10578641.1 | K193: 2020-04-08 | L193: 3321 | M193: INE922A01025
A194: BERGEPAINT | B194: EQ | C194: 479.9 | D194: 487.65 | E194: 460 | F194: 463.5 | G194: 462 | H194: 479.2 | I194: 1729062 | J194: 817908730.6 | K194: 2020-04-08 | L194: 32950 | M194: INE463A01038
A195: BFINVEST | B195: EQ | C195: 258 | D195: 268.8 | E195: 244.6 | F195: 246.3 | G195: 248.95 | H195: 257.45 | I195: 4938 | J195: 1236639.95 | K195: 2020-04-08 | L195: 244 | M195: INE878K01010
A196: BFUTILITIE | B196: EQ | C196: 158.35 | D196: 158.35 | E196: 151.05 | F196: 154.05 | G196: 153.7 | H196: 150.85 | I196: 138134 | J196: 21700813.75 | K196: 2020-04-08 | L196: 1649 | M196: INE243D01012
A197: BGRENERGY | B197: EQ | C197: 22.1 | D197: 22.85 | E197: 20.95 | F197: 21.1 | G197: 21.15 | H197: 22.2 | I197: 172282 | J197: 3763089.75 | K197: 2020-04-08 | L197: 1108 | M197: INE661I01014
A198: BHAGERIA | B198: EQ | C198: 85 | D198: 91.05 | E198: 80.65 | F198: 81.6 | G198: 82.3 | H198: 84.2 | I198: 34795 | J198: 2944870.7 | K198: 2020-04-08 | L198: 925 | M198: INE354C01027
A199: BHAGYANGR | B199: EQ | C199: 14.05 | D199: 15.2 | E199: 14 | F199: 14.4 | G199: 14.4 | H199: 14.4 | I199: 1338 | J199: 19622.25 | K199: 2020-04-08 | L199: 50 | M199: INE458B01036
A200: BHAGYAPROP | B200: EQ | C200: 18 | D200: 20 | E200: 18 | F200: 20 | G200: 20 | H200: 19 | I200: 999 | J200: 19011 | K200: 2020-04-08 | L200: 5 | M200: INE363W01018
... 1470 more rows

Sheet Sheet1 (hidden)

Sheet Sheet3 (hidden)

Sheet Sheet4 (hidden)

Sheet Sheet5 (hidden)
